Workbook

Sheet Listado (hidden)
B1: ELEMENTOS SISTEMA
B2: LISTADO MATRIZ
A4: CÓDIGO ARTÍCULO | B4: DESCRIPCIÓN | C4: COD.ARTICULO | D4: T.M | E4: ALTO | F4: LARGO | G4: UNI.CAJA | H4: CAJAS/PALE | I4: PREC.VENTA
A5: 040113 | B5: PLACA ATT BASIC 13X600X1200 (78) | C5: 040113 | D5: 3 | E5: 0.6 | F5: 1.2 | G5: 1 | H5: 78 | I5: 6.36
A6: 040115 | B6: PLACA ATT BASIC 15X600X1200 (66) | C6: 040115 | D6: 3 | E6: 0.6 | F6: 1.2 | G6: 1 | H6: 66 | I6: 7.58
A7: 040120 | B7: PLACA ATT BASIC 20X600X1200 (48) | C7: 040120 | D7: 3 | E7: 0.6 | F7: 1.2 | G7: 1 | H7: 48 | I7: 10.76
A8: 040213 | B8: PLACA ATT HIDRO 13X600X1200 (78) | C8: 040213 | D8: 3 | E8: 0.6 | F8: 1.2 | G8: 1 | H8: 78 | I8: 11.19
A9: 040215 | B9: PLACA ATT HIDRO 15X600X1200 (66) | C9: 040215 | D9: 3 | E9: 0.6 | F9: 1.2 | G9: 1 | H9: 66 | I9: 12.78
A10: 040220 | B10: PLACA ATT HIDRO 20X600X1200 (48) | C10: 040220 | D10: 3 | E10: 0.6 | F10: 1.2 | G10: 1 | H10: 48 | I10: 18.22
A11: 040313 | B11: PLACA ATT FUEGO 13X600X1200 (78) | C11: 040313 | D11: 3 | E11: 0.6 | F11: 1.2 | G11: 1 | H11: 78 | I11: 9.21
A12: 040315 | B12: PLACA ATT FUEGO 15X600X1200 (66) | C12: 040315 | D12: 3 | E12: 0.6 | F12: 1.2 | G12: 1 | H12: 66 | I12: 11.57
A13: 040320 | B13: PLACA ATT FUEGO 20X600X1200 (48) | C13: 040320 | D13: 3 | E13: 0.6 | F13: 1.2 | G13: 1 | H13: 48 | I13: 18.38
A14: 040413 | B14: PLACA ATT RESIST 13X600X1200 (78) | C14: 040413 | D14: 3 | E14: 1.2 | F14: 0.6 | G14: 1 | H14: 78 | I14: 10.71
A15: 040415 | B15: PLACA ATT RESIST 15X600X1200 (66) | C15: 040415 | D15: 3 | E15: 0.6 | F15: 1.2 | G15: 1 | H15: 66 | I15: 12.66
A16: 040420 | B16: PLACA ATT RESIST 20X600X1200 (48) | C16: 040420 | D16: 3 | E16: 0.6 | F16: 1.2 | G16: 1 | H16: 48 | I16: 20.12
A17: 040513 | B17: PLACA ATT HIDROPLUS 13X600X1200 (78) | C17: 040513 | D17: 3 | E17: 1.2 | F17: 0.6 | G17: 1 | H17: 78 | I17: 14.45
A18: 040515 | B18: PLACA ATT HIDROPLUS 15X600X1200 (66) | C18: 040515 | D18: 3 | E18: 0.6 | F18: 1.2 | G18: 1 | H18: 66 | I18: 17.09
A19: 040520 | B19: PLACA ATT HIDROPLUS 20X600X1200 (48) | C19: 040520 | D19: 3 | E19: 0.6 | F19: 1.2 | G19: 1 | H19: 48 | I19: 26.52
A20: 040613 | B20: PLACA ATT SUPREM 13X600X1200 (78) | C20: 040613 | D20: 3 | E20: 1.2 | F20: 0.6 | G20: 1 | H20: 78 | I20: 12.28
A21: 040615 | B21: PLACA ATT SUPREM 15X600X1200 (66) | C21: 040615 | D21: 3 | E21: 0.6 | F21: 1.2 | G21: 1 | H21: 66 | I21: 15.46
A22: 040620 | B22: PLACA ATT SUPREM 20X600X1200 (48) | C22: 040620 | D22: 3 | E22: 0.6 | F22: 1.2 | G22: 1 | H22: 48 | I22: 22.53
A23: 0470010110 | B23: PASTA ATT JUNTAS 10KG 60 MIN (56) | C23: 0470010110 | D23: 1 | E23: 0 | F23: 0 | G23: 56 | H23: 1 | I23: 19.85
A24: 0470010210 | B24: PASTA ATT JUNTAS 10KG 30 MIN (56) | C24: 0470010210 | D24: 1 | E24: 0 | F24: 0 | G24: 56 | H24: 1 | I24: 19.37
A25: 0470010310 | B25: PASTA ATT JUNTAS 10KG 300 MIN (56) | C25: 0470010310 | D25: 1 | E25: 0 | F25: 0 | G25: 56 | H25: 1 | I25: 38.65
A26: 0470010111 | B26: PASTA ATT JUNTAS H 10KG 60 MIN (56) | C26: 0470010111 | D26: 1 | E26: 0 | F26: 0 | G26: 56 | H26: 1 | I26: 30.34
A27: 0470010511 | B27: PASTA ATT JUNTAS H 10KG 300 MIN (56) | C27: 0470010511 | D27: 1 | E27: 0 | F27: 0 | G27: 56 | H27: 1 | I27: 45.17
A28: 48040101 | B28: MASILLA PARA ENCUENTROS ATT | C28: 48040101 | D28: 2 | E28: 0 | F28: 0 | G28: 300 | H28: 12 | I28: =J28/300 -> 0.0242 | J28: 7.26 | K28: Precio tarifa
A29: 0470010318 | B29: PASTA ATT AGARRE 17KG (35) | C29: 0470010318 | D29: 1 | E29: 0 | F29: 0 | G29: 56 | H29: 1 | I29: 14.74
A30: 0470010410 | B30: PASTA ATT DE ACABADO 10KG (56) | C30: 0470010410 | D30: 1 | E30: 0 | F30: 0 | G30: 1 | H30: 84 | I30: 12.03
A31: 480903T03 | B31: TACO RAPIDO ALTERON 5X30 (100u) | C31: 480903T03 | D31: 1 | E31: 0 | F31: 0 | G31: 1 | H31: 0 | I31: 10.53
A32: 48010348 | B32: JUNTA ESTANCA ATT 50MM (30ML) | C32: 48010348 | D32: 1 | E32: 0 | F32: 0 | G32: 21 | H32: 12 | I32: 16.59
A33: 48010370 | B33: JUNTA ESTANCA ATT 70MM (30ML) | C33: 48010370 | D33: 1 | E33: 0 | F33: 0 | G33: 14 | H33: 12 | I33: 24.06
A34: 48010390 | B34: JUNTA ESTANCA ATT 90MM (30ML) | C34: 48010390 | D34: 1 | E34: 0 | F34: 0 | G34: 10 | H34: 2 | I34: 31.63
A35: 4802010125 | B35: TORNILLOS ATT PP 3,5X25 (1000) | C35: 4802010125 | D35: 1 | E35: 1000 | F35: 0 | G35: 1000 | H35: 0 | I35: 29.06
A36: 4802010135 | B36: TORNILLOS ATT PP 3,5X35 (1000) | C36: 4802010135 | D36: 1 | E36: 1000 | F36: 0 | G36: 1000 | H36: 0 | I36: 33.28
A37: 4802010145 | B37: TORNILLOS ATT PP 3,5X45 (500) | C37: 4802010145 | D37: 1 | E37: 500 | F37: 0 | G37: 500 | H37: 0 | I37: 38.64
A38: 4802010155 | B38: TORNILLOS ATT PP 3,5X55 (500) | C38: 4802010155 | D38: 1 | E38: 500 | F38: 0 | G38: 500 | H38: 0 | I38: 47.74
A39: 4802010170 | B39: TORNILLOS ATT PP 4,2X70 (500) | C39: 4802010170 | D39: 1 | E39: 500 | F39: 0 | G39: 0 | H39: 0 | I39: 58.79
A40: 48104925 | B40: MONTANTE 49X2500 (8u x 16p) | C40: 48104925 | D40: 2 | E40: 0 | F40: 2.5 | G40: 8 | H40: 16 | I40: 4.54
A41: 48104926 | B41: MONTANTE 49X2600 (8u x 16p) | C41: 48104926 | D41: 2 | E41: 0 | F41: 2.6 | G41: 8 | H41: 16 | I41: 4.54
A42: 48104927 | B42: MONTANTE 49X2700 (8u x 16p) | C42: 48104927 | D42: 2 | E42: 0 | F42: 2.7 | G42: 8 | H42: 16 | I42: 4.54
A43: 48104928 | B43: MONTANTE 49X2800 (8u x 16p) | C43: 48104928 | D43: 2 | E43: 0 | F43: 2.8 | G43: 8 | H43: 16 | I43: 4.54
A44: 48104930 | B44: MONTANTE 49X3000 (8u x 16p) | C44: 48104930 | D44: 2 | E44: 0 | F44: 3 | G44: 8 | H44: 16 | I44: 4.54
A45: 48104935 | B45: MONTANTE 49X3500 (8u x 16p) | C45: 48104935 | D45: 2 | E45: 0 | F45: 3.5 | G45: 8 | H45: 16 | I45: 4.54
A46: 48107426 | B46: MONTANTE 74X2600 (8u x 16p) | C46: 48107426 | D46: 2 | E46: 0 | F46: 2.6 | G46: 8 | H46: 12 | I46: 5.13
A47: 48107427 | B47: MONTANTE 74X2700 (8u x 16p) | C47: 48107427 | D47: 2 | E47: 0 | F47: 2.7 | G47: 8 | H47: 12 | I47: 5.13
A48: 48107430 | B48: MONTANTE 74X3000 (8u x 12p) | C48: 48107430 | D48: 2 | E48: 0 | F48: 3 | G48: 8 | H48: 12 | I48: 5.13
A49: 48109930 | B49: MONTANTE 99X3000 (8u x 16p) | C49: 48109930 | D49: 2 | E49: 0 | F49: 3 | G49: 8 | H49: 8 | I49: 5.86
A50: 481110030 | B50: CANAL 100X3000 (8u x 16p) | C50: 481110030 | D50: 2 | E50: 0 | F50: 3 | G50: 8 | H50: 10 | I50: 5.07
A51: 48115030 | B51: CANAL 50X3000 (8u x 16p) | C51: 48115030 | D51: 2 | E51: 0 | F51: 3 | G51: 8 | H51: 16 | I51: 3.55
A52: 48117530 | B52: CANAL 75X3000 (8u x 15p) | C52: 48117530 | D52: 2 | E52: 0 | F52: 3 | G52: 8 | H52: 15 | I52: 4.14
A53: 48127030 | B53: MAESTRA ATT 70X3000 (12u x 16p) | C53: 48127030 | D53: 2 | E53: 0 | F53: 3 | G53: 12 | H53: 63 | I53: 3.38
A54: 48128030 | B54: MAESTRA ATT 82X3000 (10u x 63p) | C54: 48128030 | D54: 2 | E54: 0 | F54: 3 | G54: 12 | H54: 42 | I54: 2.52

Sheet Datos
C1: RENDIMIENTO DE MATERIALES POR M2 DE OBRA
C2: DATOS PROGRAMABLES POR USUARIO
A5: CÓDIGO | C5: DESCRIPCIÓN
A6: 30 | C6: DESCUENTO EN PLACA (%)
A7: 30 | C7: DESCUENTO EN PERFILERÍA (%)
A8: 30 | C8: DESCUENTO EN PASTAS (%)
A9: 30 | C9: DESCUENTO EN TORNILLOS Y FIJACIONES (%)
A10: 30 | C10: DESCUENTO EN CINTAS Y JUNTAS (%)
A11: 20 | C11: BENEFICIO PARA PRESUPUESTO(%)
A12: pedidos@elalteron.com | C12: Dirección para envío de pedidos
A13: repuesto@elalteron.com | C13: Dirección para envío de rendimientos
A14: compras@elalteron.com | C14: Dirección para envío de lista de materiales
A15: clientes@elalteron.com | C15: Dirección para envío de presupuestos
A16: 30 | C16: Precio por hora de la mano de obra (€/h)

Sheet Rendimientos (hidden)
C1: RENDIMIENTO DE MATERIALES POR M2 DE OBRA
C2: CUBICACIONES PARA TRASDOSADO
A5: CODIGO | C5: MATERIALES | D5: UD | E5: CANTIDAD por m2 | F5: PIEZA
C6: PLACA | D6: m2 | E6: 1.02
C7: CANAL | D7: m | E7: 0.8
C8: MONTANTE (modulación 400) | D8: m | E8: 3
C9: MONTANTE (modulación 600) | D9: m | E9: 2.1
C10: TORNILLO PP (modulación 400) TRASDOSADO SIMPLE | D10: ud | E10: 18 | F10: 1000
C11: TORNILLO PP (modulación 400) TRASDOSADO DOBLE 1ª CAPA | D11: ud | E11: 18 | F11: 1000
C12: TORNILLO PP (modulación 400) TRASDOSADO DOBLE 2ª CAPA | D12: ud | E12: =E10 -> 18 | F12: 1000
C13: TORNILLO PP (modulación 400) TRASDOSADO TRIPLE 1ª CAPA | D13: ud | E13: 18 | F13: 500
C14: TORNILLO PP (modulación 400) TRASDOSADO TRIPLE 2ª CAPA | D14: ud | E14: 18 | F14: 1000
C15: TORNILLO PP (modulación 400) TRASDOSADO TRIPLE 3ª CAPA | D15: ud | E15: =E10 -> 18 | F15: 500
C16: TORNILLO PP (modulación 600) TRASDOSADO SIMPLE | D16: ud | E16: 14 | F16: 1000
C17: TORNILLO PP (modulación 600) TRASDOSADO DOBLE 1ª CAPA | D17: ud | E17: 14 | F17: 1000
C18: TORNILLO PP (modulación 600) TRASDOSADO DOBLE 2ª CAPA | D18: ud | E18: =E16 -> 14 | F18: 1000
C19: TORNILLO PP (modulación 600) TRASDOSADO TRIPLE 1ª CAPA | D19: ud | E19: 14 | F19: 1000
C20: TORNILLO PP (modulación 600) TRASDOSADO TRIPLE 2ª CAPA | D20: ud | E20: 14 | F20: 1000
C21: TORNILLO PP (modulación 600) TRASDOSADO TRIPLE 3ª CAPA | D21: ud | E21: =E16 -> 14 | F21: 500
A22: 480903T03 | C22: =VLOOKUP(A22,Listado!$A$5:$B$54,2,FALSE) -> TACO RAPIDO ALTERON 5X30 (100u) | D22: ud | E22: 2 | F22: 100
A23: 48040101 | C23: MASILLA PARA ENCUENTROS ATT | D23: mil | E23: 10 | F23: 300
A24: 48010348 | C24: =VLOOKUP(A24,Listado!$A$5:$B$54,2,FALSE) -> JUNTA ESTANCA ATT 50MM (30ML) | D24: m | E24: =E7 -> 0.8 | F24: 30
B25: Q2 | C25: Totalmente finalizado con nivel de acabado Q2 | D25: kg | E25: 0.11 | F25: 10
A26: 0470010410 | B26: Q3 | C26: Totalmente finalizado con nivel de acabado Q3 | D26: kg | E26: 0.07 | F26: 10
A27: 0470010410 | B27: Q4 | C27: Totalmente finalizado con nivel de acabado Q4 | D27: kg | E27: 0.225 | F27: 10
A28: MODULACIÓN | C28: 600
A29: MODULACIÓN | C29: 400
B30: 42 | C30: Mano de obra tabique sencillo (modulación 400, Q2) | D30: €/m2 | E30: =F30*Datos!$A$16 -> 9 | F30: 0.3
B31: 43 | C31: Mano de obra tabique sencillo (modulación 400, Q3) | D31: €/m2 | E31: =F31*Datos!$A$16 -> 10.2 | F31: 0.34
B32: 44 | C32: Mano de obra tabique sencillo (modulación 400, Q4) | D32: €/m2 | E32: =F32*Datos!$A$16 -> 14.4 | F32: 0.48
B33: 62 | C33: Mano de obra tabique sencillo (modulación 600, Q2) | D33: €/m2 | E33: =F33*Datos!$A$16 -> 7.5 | F33: 0.25
B34: 63 | C34: Mano de obra tabique sencillo (modulación 600, Q3) | D34: €/m2 | E34: =F34*Datos!$A$16 -> 8.7 | F34: 0.29
B35: 64 | C35: Mano de obra tabique sencillo (modulación 600, Q4) | D35: €/m2 | E35: =F35*Datos!$A$16 -> 12.9 | F35: 0.43
B36: 42 | C36: Mano de obra tabique doble placa (modulación 400, Q2) | D36: €/m2 | E36: =A36*Rendimientos!E23 -> 0 | F36: 0.42
B37: 43 | C37: Mano de obra tabique doble placa (modulación 400, Q3) | D37: €/m2 | E37: =F37*Datos!$A$16 -> 13.8 | F37: 0.46
B38: 44 | C38: Mano de obra tabique doble placa (modulación 400, Q4) | D38: €/m2 | E38: =F38*Datos!$A$16 -> 18 | F38: 0.6
B39: 62 | C39: Mano de obra tabique doble placa (modulación 600, Q2) | D39: €/m2 | E39: =F39*Datos!$A$16 -> 11.1 | F39: 0.37
B40: 63 | C40: Mano de obra tabique doble placa (modulación 600, Q3) | D40: €/m2 | E40: =F40*Datos!$A$16 -> 12.3 | F40: 0.41
B41: 64 | C41: Mano de obra tabique doble placa (modulación 600, Q4) | D41: €/m2 | E41: =F41*Datos!$A$16 -> 16.5 | F41: 0.55
B42: 42 | C42: Mano de obra tabique triple placa (modulación 400, Q2) | D42: €/m2 | E42: =F42*Datos!$A$16 -> 16.2 | F42: 0.54
B43: 43 | C43: Mano de obra tabique triple placa (modulación 400, Q3) | D43: €/m2 | E43: =F43*Datos!$A$16 -> 17.4 | F43: 0.58
B44: 44 | C44: Mano de obra tabique triple placa (modulación 400, Q4) | D44: €/m2 | E44: =F44*Datos!$A$16 -> 21.6 | F44: 0.72
B45: 62 | C45: Mano de obra tabique triple placa (modulación 600, Q2) | D45: €/m2 | E45: =F45*Datos!$A$16 -> 14.7 | F45: 0.49
B46: 63 | C46: Mano de obra tabique triple placa (modulación 600, Q3) | D46: €/m2 | E46: =F46*Datos!$A$16 -> 15.9 | F46: 0.53
B47: 64 | C47: Mano de obra tabique triple placa (modulación 600, Q4) | D47: €/m2 | E47: =F47*Datos!$A$16 -> 20.1 | F47: 0.67
C48: Mano de obra tabique doble estructura sencillo (modulación 400, Q2) | D48: €/m2 | E48: =F48*Datos!$A$16 -> 0
C49: Mano de obra tabique doble estructura sencillo (modulación 400, Q3) | D49: €/m2 | E49: =F49*Datos!$A$16 -> 0
C50: Mano de obra tabique doble estructura sencillo (modulación 400, Q4) | D50: €/m2 | E50: =F50*Datos!$A$16 -> 0
C51: Mano de obra tabique doble estructura sencillo (modulación 600, Q2) | D51: €/m2 | E51: =F51*Datos!$A$16 -> 0
C52: Mano de obra tabique doble estructura sencillo (modulación 600, Q3) | D52: €/m2 | E52: =F52*Datos!$A$16 -> 0
C53: Mano de obra tabique doble estructura sencillo (modulación 600, Q4) | D53: €/m2 | E53: =F53*Datos!$A$16 -> 0
C54: Mano de obra tabique doble estructura doble placa (modulación 400, Q2) | D54: €/m2 | E54: =F54*Datos!$A$16 -> 0
C55: Mano de obra tabique doble estructura doble placa (modulación 400, Q3) | D55: €/m2 | E55: =F55*Datos!$A$16 -> 0
C56: Mano de obra tabique doble estructura doble placa (modulación 400, Q4) | D56: €/m2 | E56: =F56*Datos!$A$16 -> 0
C57: Mano de obra tabique doble estructura doble placa (modulación 600, Q2) | D57: €/m2 | E57: =F57*Datos!$A$16 -> 0
C58: Mano de obra tabique doble estructura doble placa (modulación 600, Q3) | D58: €/m2 | E58: =F58*Datos!$A$16 -> 0
C59: Mano de obra tabique doble estructura doble placa (modulación 600, Q4) | D59: €/m2 | E59: =F59*Datos!$A$16 -> 0
C60: Mano de obra tabique doble estructura triple placa (modulación 400, Q2) | D60: €/m2 | E60: =F60*Datos!$A$16 -> 0
C61: Mano de obra tabique doble estructura triple placa (modulación 400, Q3) | D61: €/m2 | E61: =F61*Datos!$A$16 -> 0
C62: Mano de obra tabique doble estructura triple placa (modulación 400, Q4) | D62: €/m2 | E62: =F62*Datos!$A$16 -> 0
C63: Mano de obra tabique doble estructura triple placa (modulación 600, Q2) | D63: €/m2 | E63: =F63*Datos!$A$16 -> 0
C64: Mano de obra tabique doble estructura triple placa (modulación 600, Q3) | D64: €/m2 | E64: =F64*Datos!$A$16 -> 0
C65: Mano de obra tabique doble estructura triple placa (modulación 600, Q4) | D65: €/m2 | E65: =F65*Datos!$A$16 -> 0
C66: Mano de obra tabique doble estructura arriostrado sencillo (modulación 400, Q2) | D66: €/m2 | E66: =F66*Datos!$A$16 -> 0
C67: Mano de obra tabique doble estructura arriostrado sencillo (modulación 400, Q3) | D67: €/m2 | E67: =F67*Datos!$A$16 -> 0
C68: Mano de obra tabique doble estructura arriostrado sencillo (modulación 400, Q4) | D68: €/m2 | E68: =F68*Datos!$A$16 -> 0
C69: Mano de obra tabique doble estructura arriostrado sencillo (modulación 600, Q2) | D69: €/m2 | E69: =F69*Datos!$A$16 -> 0
C70: Mano de obra tabique doble estructura arriostrado sencillo (modulación 600, Q3) | D70: €/m2 | E70: =F70*Datos!$A$16 -> 0
C71: Mano de obra tabique doble estructura arriostrado sencillo (modulación 600, Q4) | D71: €/m2 | E71: =F71*Datos!$A$16 -> 0
C72: Mano de obra tabique doble estructura arriostrado doble placa (modulación 400, Q2) | D72: €/m2 | E72: =F72*Datos!$A$16 -> 0
C73: Mano de obra tabique doble estructura arriostrado doble placa (modulación 400, Q3) | D73: €/m2 | E73: =F73*Datos!$A$16 -> 0
C74: Mano de obra tabique doble estructura arriostrado doble placa (modulación 400, Q4) | D74: €/m2 | E74: =F74*Datos!$A$16 -> 0
C75: Mano de obra tabique doble estructura arriostrado doble placa (modulación 600, Q2) | D75: €/m2 | E75: =F75*Datos!$A$16 -> 0
C76: Mano de obra tabique doble estructura arriostrado doble placa (modulación 600, Q3) | D76: €/m2 | E76: =F76*Datos!$A$16 -> 0
C77: Mano de obra tabique doble estructura arriostrado doble placa (modulación 600, Q4) | D77: €/m2 | E77: =F77*Datos!$A$16 -> 0
C78: Mano de obra tabique doble estructura arriostrado triple placa (modulación 400, Q2) | D78: €/m2 | E78: =F78*Datos!$A$16 -> 0
C79: Mano de obra tabique doble estructura arriostrado triple placa (modulación 400, Q3) | D79: €/m2 | E79: =F79*Datos!$A$16 -> 0
C80: Mano de obra tabique doble estructura arriostrado triple placa (modulación 400, Q4) | D80: €/m2 | E80: =F80*Datos!$A$16 -> 0
C81: Mano de obra tabique doble estructura arriostrado triple placa (modulación 600, Q2) | D81: €/m2 | E81: =F81*Datos!$A$16 -> 0
C82: Mano de obra tabique doble estructura arriostrado triple placa (modulación 600, Q3) | D82: €/m2 | E82: =F82*Datos!$A$16 -> 0
C83: Mano de obra tabique doble estructura arriostrado triple placa (modulación 600, Q4) | D83: €/m2 | E83: =F83*Datos!$A$16 -> 0
C84: Mano de obra tabique especial sencillo (modulación 400, Q2) | D84: €/m2 | E84: =F84*Datos!$A$16 -> 0
C85: Mano de obra tabique especial sencillo (modulación 400, Q3) | D85: €/m2 | E85: =F85*Datos!$A$16 -> 0
C86: Mano de obra tabique especial sencillo (modulación 400, Q4) | D86: €/m2 | E86: =F86*Datos!$A$16 -> 0
C87: Mano de obra tabique especial sencillo (modulación 600, Q2) | D87: €/m2 | E87: =F87*Datos!$A$16 -> 0
C88: Mano de obra tabique especial sencillo (modulación 600, Q3) | D88: €/m2 | E88: =F88*Datos!$A$16 -> 0
C89: Mano de obra tabique especial sencillo (modulación 600, Q4) | D89: €/m2 | E89: =F89*Datos!$A$16 -> 0
C90: Mano de obra tabique especial doble placa (modulación 400, Q2) | D90: €/m2 | E90: =F90*Datos!$A$16 -> 0
C91: Mano de obra tabique especial doble placa (modulación 400, Q3) | D91: €/m2 | E91: =F91*Datos!$A$16 -> 0
C92: Mano de obra tabique especial doble placa (modulación 400, Q4) | D92: €/m2 | E92: =F92*Datos!$A$16 -> 0
C93: Mano de obra tabique especial doble placa (modulación 600, Q2) | D93: €/m2 | E93: =F93*Datos!$A$16 -> 0
C94: Mano de obra tabique especial doble placa (modulación 600, Q3) | D94: €/m2 | E94: =F94*Datos!$A$16 -> 0
C95: Mano de obra tabique especial doble placa (modulación 600, Q4) | D95: €/m2 | E95: =F95*Datos!$A$16 -> 0
C96: Mano de obra tabique especial triple placa (modulación 400, Q2) | D96: €/m2 | E96: =F96*Datos!$A$16 -> 0
C97: Mano de obra tabique especial triple placa (modulación 400, Q3) | D97: €/m2 | E97: =F97*Datos!$A$16 -> 0
C98: Mano de obra tabique especial triple placa (modulación 400, Q4) | D98: €/m2 | E98: =F98*Datos!$A$16 -> 0
C99: Mano de obra tabique especial triple placa (modulación 600, Q2) | D99: €/m2 | E99: =F99*Datos!$A$16 -> 0
C100: Mano de obra tabique especial triple placa (modulación 600, Q3) | D100: €/m2 | E100: =F100*Datos!$A$16 -> 0
C101: Mano de obra tabique especial triple placa (modulación 600, Q4) | D101: €/m2 | E101: =F101*Datos!$A$16 -> 0
B102: 42 | C102: Mano de obra trasdosado sencillo (modulación 400, Q2) | D102: €/m2 | E102: =F102*Datos!$A$16 -> 8.7 | F102: 0.29
B103: 43 | C103: Mano de obra trasdosado sencillo (modulación 400, Q3) | D103: €/m2 | E103: =F103*Datos!$A$16 -> 9.3 | F103: 0.31
B104: 44 | C104: Mano de obra trasdosado sencillo (modulación 400, Q4) | D104: €/m2 | E104: =F104*Datos!$A$16 -> 11.4 | F104: 0.38
B105: 62 | C105: Mano de obra trasdosado sencillo (modulación 600, Q2) | D105: €/m2 | E105: =F105*Datos!$A$16 -> 7.2 | F105: 0.24
B106: 63 | C106: Mano de obra trasdosado sencillo (modulación 600, Q3) | D106: €/m2 | E106: =F106*Datos!$A$16 -> 7.8 | F106: 0.26
B107: 64 | C107: Mano de obra trasdosado sencillo (modulación 600, Q4) | D107: €/m2 | E107: =F107*Datos!$A$16 -> 9.9 | F107: 0.33
B108: 42 | C108: Mano de obra trasdosado doble placa (modulación 400, Q2) | D108: €/m2 | E108: =F108*Datos!$A$16 -> 10.5 | F108: 0.35
B109: 43 | C109: Mano de obra trasdosado doble placa (modulación 400, Q3) | D109: €/m2 | E109: =F109*Datos!$A$16 -> 11.1 | F109: 0.37
B110: 44 | C110: Mano de obra trasdosado doble placa (modulación 400, Q4) | D110: €/m2 | E110: =F110*Datos!$A$16 -> 13.2 | F110: 0.44
B111: 62 | C111: Mano de obra trasdosado doble placa (modulación 600, Q2) | D111: €/m2 | E111: =F111*Datos!$A$16 -> 9 | F111: 0.3
B112: 63 | C112: Mano de obra trasdosado doble placa (modulación 600, Q3) | D112: €/m2 | E112: =F112*Datos!$A$16 -> 9.6 | F112: 0.32
B113: 64 | C113: Mano de obra trasdosado doble placa (modulación 600, Q4) | D113: €/m2 | E113: =F113*Datos!$A$16 -> 11.7 | F113: 0.39
B114: 42 | C114: Mano de obra trasdosado triple placa (modulación 400, Q2) | D114: €/m2 | E114: =F114*Datos!$A$16 -> 12.3 | F114: 0.41
B115: 43 | C115: Mano de obra trasdosado triple placa (modulación 400, Q3) | D115: €/m2 | E115: =F115*Datos!$A$16 -> 12.9 | F115: 0.43
B116: 44 | C116: Mano de obra trasdosado triple placa (modulación 400, Q4) | D116: €/m2 | E116: =F116*Datos!$A$16 -> 15 | F116: 0.5
B117: 62 | C117: Mano de obra trasdosado triple placa (modulación 600, Q2) | D117: €/m2 | E117: =F117*Datos!$A$16 -> 10.8 | F117: 0.36
B118: 63 | C118: Mano de obra trasdosado triple placa (modulación 600, Q3) | D118: €/m2 | E118: =F118*Datos!$A$16 -> 11.4 | F118: 0.38
B119: 64 | C119: Mano de obra trasdosado triple placa (modulación 600, Q4) | D119: €/m2 | E119: =F119*Datos!$A$16 -> 13.5 | F119: 0.45
B120: 42 | C120: Mano de obra trasdosado semidirecto sencillo (modulación 400, Q2) | D120: €/m2 | E120: =F120*Datos!$A$16 -> 4.8 | F120: 0.16
B121: 43 | C121: Mano de obra trasdosado semidirecto sencillo (modulación 400, Q3) | D121: €/m2 | E121: =F121*Datos!$A$16 -> 6 | F121: 0.2
B122: 44 | C122: Mano de obra trasdosado semidirecto sencillo (modulación 400, Q4) | D122: €/m2 | E122: =F122*Datos!$A$16 -> 10.2 | F122: 0.34
B123: 62 | C123: Mano de obra trasdosado semidirecto sencillo (modulación 600, Q2) | D123: €/m2 | E123: =F123*Datos!$A$16 -> 3.3 | F123: 0.11
B124: 63 | C124: Mano de obra trasdosado semidirecto sencillo (modulación 600, Q3) | D124: €/m2 | E124: =F124*Datos!$A$16 -> 4.5 | F124: 0.15
B125: 64 | C125: Mano de obra trasdosado semidirecto sencillo (modulación 600, Q4) | D125: €/m2 | E125: =F125*Datos!$A$16 -> 8.7 | F125: 0.29
B126: 42 | C126: Mano de obra trasdosado semidirecto doble placa (modulación 400, Q2) | D126: €/m2 | E126: =F126*Datos!$A$16 -> 8.4 | F126: 0.28
B127: 43 | C127: Mano de obra trasdosado semidirecto doble placa (modulación 400, Q3) | D127: €/m2 | E127: =F127*Datos!$A$16 -> 9.6 | F127: 0.32
B128: 44 | C128: Mano de obra trasdosado semidirecto doble placa (modulación 400, Q4) | D128: €/m2 | E128: =F128*Datos!$A$16 -> 13.8 | F128: 0.46
B129: 62 | C129: Mano de obra trasdosado semidirecto doble placa (modulación 600, Q2) | D129: €/m2 | E129: =F129*Datos!$A$16 -> 6.9 | F129: 0.23
B130: 63 | C130: Mano de obra trasdosado semidirecto doble placa (modulación 600, Q3) | D130: €/m2 | E130: =F130*Datos!$A$16 -> 8.1 | F130: 0.27
B131: 64 | C131: Mano de obra trasdosado semidirecto doble placa (modulación 600, Q4) | D131: €/m2 | E131: =F131*Datos!$A$16 -> 12.3 | F131: 0.41
B132: 42 | C132: Mano de obra trasdosado semidirecto triple placa (modulación 400, Q2) | D132: €/m2 | E132: =F132*Datos!$A$16 -> 12 | F132: 0.4
B133: 43 | C133: Mano de obra trasdosado semidirecto triple placa (modulación 400, Q3) | D133: €/m2 | E133: =F133*Datos!$A$16 -> 13.2 | F133: 0.44
B134: 44 | C134: Mano de obra trasdosado semidirecto triple placa (modulación 400, Q4) | D134: €/m2 | E134: =F134*Datos!$A$16 -> 17.4 | F134: 0.58
B135: 62 | C135: Mano de obra trasdosado semidirecto triple placa (modulación 600, Q2) | D135: €/m2 | E135: =F135*Datos!$A$16 -> 10.5 | F135: 0.35
B136: 63 | C136: Mano de obra trasdosado semidirecto triple placa (modulación 600, Q3) | D136: €/m2 | E136: =F136*Datos!$A$16 -> 11.7 | F136: 0.39
B137: 64 | C137: Mano de obra trasdosado semidirecto triple placa (modulación 600, Q4) | D137: €/m2 | E137: =F137*Datos!$A$16 -> 15.9 | F137: 0.53
B138: 2 | C138: Mano de obra trasdosado directo sencillo (Q2) | D138: €/m2 | E138: =F138*Datos!$A$16 -> 4.8 | F138: 0.16
B139: 3 | C139: Mano de obra trasdosado directo sencillo (Q3) | D139: €/m2 | E139: =F139*Datos!$A$16 -> 6 | F139: 0.2
B140: 4 | C140: Mano de obra trasdosado directo sencillo (Q4) | D140: €/m2 | E140: =F140*Datos!$A$16 -> 10.2 | F140: 0.34
C141: NOTA: Rendimientos calculados teniendo en cuenta un despedicio del 2% en las placas y del 5% en el resto del sistema.
C142: MAESTRA (modulación 400) | D142: m | E142: 2.96
C143: MAESTRA (modulación 600) | D143: m | E143: 2.15
C144: BANDA ESTANCA (modulación 400) | D144: m | E144: =E142 -> 2.96
C145: BANDA ESTANCA (modulación 600) | D145: m | E145: =E143 -> 2.15
C146: TACO RÁPIDO (modulación 400) | D146: m | E146: 8.44
C147: TACO RÁPIDO (modulación 600) | D147: m | E147: 6.11

Sheet Imágenes 2D (hidden)
B2: 1 | C2: 2 | D2: 3 | E2: 4 | F2: 5 | G2: 6 | I2: 1 | J2: 2 | K2: 3 | L2: 4 | M2: 5 | N2: 6 | P2: 1 | Q2: 2 | R2: 3 | S2: 4 | T2: 5 | U2: 6
A3: Tabique sencillo | H3: Tabique doble placa | O3: Tabique triple placa
B5: 2 | C5: 3 | D5: 4 | E5: 5 | F5: 6
A6: Tabique mixto

Sheet Imágenes 3D (hidden)
B2: 1 | C2: 2 | D2: 3 | E2: 4 | F2: 5 | G2: 6 | I2: 1 | J2: 2 | K2: 3 | L2: 4 | M2: 5 | N2: 6 | P2: 1 | Q2: 2 | R2: 3 | S2: 4 | T2: 5 | U2: 6
A3: Tabique sencillo | H3: Tabique doble placa | O3: Tabique triple placa
B5: 2 | C5: 3 | D5: 4 | E5: 5 | F5: 6
A6: Tabique sencillo

Sheet Índice sistemas
B4: TABIQUE SIMPLE ESTRUCTURA | C4: CÓDIGO | D4: ID | E4: SISTEMAS | F4: M | G4: M | H4: P | I4: Descripción Basic | J4: Descripción Hidro | K4: Descripción Fuego | L4: Descripción Resist | M4: Descripción Hidroplus | N4: Descripción Suprem
A5: PLACA SIMPLE | C5: =F5*100+G5*100+H5*2 -> 64926 | D5: 1.1.1 | E5: TABIQUE ATT® 75/600 (49) [13+49+13] | F5: 600 | G5: 49 | H5: 13 | I5: Tabique formado por una placa BASIC de 13 mm de espesor compuesta por yeso natural, fibra de vidrio y aditivos inorgánicos que le aportan alta dureza y resistencia mecánica. Reacción al fuego: EUROCLASE A1. Sistema de galces desiguales: las placas encajan entre ellas dejando una entrecalle de 3 mm por donde se inserta la pasta de juntas. Este sistema no utiliza cinta de papel. La pasta de juntas se aplica en las cavidades de las placas y una masilla elástica en los encuentros. Atornillada a cada lado de una estructura metálica de acero galvanizado formada por canales de 50 mm y montantes de 51x49x49 mm con una modulación de 600 mm entre ejes, dando un ancho total de tabique de 75 mm. Incluida parte proporcional del resto de materiales: tornillería, pasta de juntas, masilla para encuentros perimetrales, fijaciones, junta estanca, etc. Montaje según norma de instalación UNE 102043 y exigencias del CTE. | J5: Tabique formado por una placa HIDRO de 13 mm de espesor compuesta por yeso natural, fibra de vidrio y aditivos inorgánicos que le aportan alta dureza y resistencia mecánica. Incorpora tratamiento hidrófugo, disminuyendo así su capacidad de absorción de agua (menor al 5%). Idónea para proteger las estancias de los efectos adversos de la humedad. Reacción al fuego: EUROCLASE A1. Sistema de galces desiguales: las placas encajan entre ellas dejando una entrecalle de 3 mm por donde se inserta la pasta de juntas. Este sistema no utiliza cinta de papel. La pasta de juntas se aplica en las cavidades de las placas y una masilla elástica en los encuentros. Atornillada a cada lado de una estructura metálica de acero galvanizado formada por canales de 50 mm y montantes de 51x49x49 mm con una modulación de 600 mm entre ejes, dando un ancho total de tabique de 75 mm. Incluida parte proporcional del resto de materiales: tornillería, pasta de juntas, masilla para encuentros perimetrales, fijaciones, junta estanca, etc. Montaje según norma de instalación UNE 102043 y exigencias del CTE. | K5: Tabique formado por una placa FUEGO de 13 mm de espesor compuesta por yeso natural, fibra de vidrio y aditivos inorgánicos que le aportan alta dureza y resistencia mecánica. Incorpora perlita y un aumento en la densidad que la hace idónea para un excelente comportamiento y resistencia frente al fuego. Reacción al fuego: EUROCLASE A1. Sistema de galces desiguales: las placas encajan entre ellas dejando una entrecalle de 3 mm por donde se inserta la pasta de juntas. Este sistema no utiliza cinta de papel. La pasta de juntas se aplica en las cavidades de las placas y una masilla elástica en los encuentros. Atornillada a cada lado de una estructura metálica de acero galvanizado formada por canales de 50 mm y montantes de 51x49x49 mm con una modulación de 600 mm entre ejes, dando un ancho total de tabique de 75 mm. Incluida parte proporcional del resto de materiales: tornillería, pasta de juntas, masilla para encuentros perimetrales, fijaciones, junta estanca, etc. Montaje según norma de instalación UNE 102043 y exigencias del CTE. | L5: Tabique formado por una placa RESIST de 13 mm de espesor compuesta por yeso natural, fibra de vidrio y aditivos inorgánicos que le aportan alta dureza y resistencia mecánica. Con mayor cantidad de fibra de vidrio y dosificación modificada, aumenta su densidad, mejorando notablemente la resistencia mecánica. Idónea para lugares con altas exigencias en cuanto a deterioro y desgaste. Reacción al fuego: EUROCLASE A1. Sistema de galces desiguales: las placas encajan entre ellas dejando una entrecalle de 3 mm por donde se inserta la pasta de juntas. Este sistema no utiliza cinta de papel. La pasta de juntas se aplica en las cavidades de las placas y una masilla elástica en los encuentros. Atornillada a cada lado de una estructura metálica de acero galvanizado formada por canales de 50 mm y montantes de 51x49x49 mm con una modulación de 600 mm entre ejes, dando un ancho total de tabique de 75 mm. Incluida parte proporcional del resto de materiales: tornillería, pasta de juntas, masilla para encuentros perimetrales, fijaciones, junta estanca, etc. Montaje según norma de instalación UNE 102043 y exigencias del CTE. | M5: Tabique formado por una placa HIDROPLUS de 13 mm de espesor compuesta por yeso natural, fibra de vidrio y aditivos inorgánicos que le aportan alta dureza y resistencia mecánica. Incorpora tratamiento hidrófugo y un aumento en su densidad, características claves para una elevada resistencia a la humedad (absorción de agua menor al 3%) y una gran resistencia mecánica. Idónea para zonas de intemperie. Reacción al fuego: EUROCLASE A1. Sistema de galces desiguales: las placas encajan entre ellas dejando una entrecalle de 3 mm por donde se inserta la pasta de juntas. Este sistema no utiliza cinta de papel. La pasta de juntas se aplica en las cavidades de las placas y una masilla elástica en los encuentros. Atornillada a cada lado de una estructura metálica de acero galvanizado formada por canales de 50 mm y montantes de 51x49x49 mm con una modulación de 600 mm entre ejes, dando un ancho total de tabique de 75 mm. Incluida parte proporcional del resto de materiales: tornillería, pasta de juntas, masilla para encuentros perimetrales, fijaciones, junta estanca, etc. Montaje según norma de instalación UNE 102043 y exigencias del CTE. | N5: Tabique formado por una placa SUPREM de 13 mm de espesor compuesta por yeso natural, fibra de vidrio y aditivos inorgánicos que le aportan alta dureza y resistencia mecánica. Incorpora tratamiento hidrófugo, perlita y un aumento en la densidad para conseguir soluciones constructivas que cumplan, altos requisitos frente al fuego y una capacidad reducida de absorción de agua. Reacción al fuego: EUROCLASE A1. Sistema de galces desiguales: las placas encajan entre ellas dejando una entrecalle de 3 mm por donde se inserta la pasta de juntas. Este sistema no utiliza cinta de papel. La pasta de juntas se aplica en las cavidades de las placas y una masilla elástica en los encuentros. Atornillada a cada lado de una estructura metálica de acero galvanizado formada por canales de 50 mm y montantes de 51x49x49 mm con una modulación de 600 mm entre ejes, dando un ancho total de tabique de 75 mm. Incluida parte proporcional del resto de materiales: tornillería, pasta de juntas, masilla para encuentros perimetrales, fijaciones, junta estanca, etc. Montaje según norma de instalación UNE 102043 y exigencias del CTE.
C6: =F6*100+G6*100+H6*2 -> 64930 | D6: 1.1.2 | E6: TABIQUE ATT® 79/600 (49) [15+49+15] | F6: 600 | G6: 49 | H6: 15 | I6: Tabique formado por una placa BASIC de 15 mm de espesor compuesta por yeso natural, fibra de vidrio y aditivos inorgánicos que le aportan alta dureza y resistencia mecánica. Reacción al fuego: EUROCLASE A1. Sistema de galces desiguales: las placas encajan entre ellas dejando una entrecalle de 3 mm por donde se inserta la pasta de juntas. Este sistema no utiliza cinta de papel. La pasta de juntas se aplica en las cavidades de las placas y una masilla elástica en los encuentros. Atornillada a cada lado de una estructura metálica de acero galvanizado formada por canales de 50 mm y montantes de 51x49x49 mm con una modulación de 600 mm entre ejes, dando un ancho total de tabique de 79 mm. Incluida parte proporcional del resto de materiales: tornillería, pasta de juntas, masilla para encuentros perimetrales, fijaciones, junta estanca, etc. Montaje según norma de instalación UNE 102043 y exigencias del CTE. | J6: Tabique formado por una placa HIDRO de 15 mm de espesor compuesta por yeso natural, fibra de vidrio y aditivos inorgánicos que le aportan alta dureza y resistencia mecánica. Incorpora tratamiento hidrófugo, disminuyendo así su capacidad de absorción de agua (menor al 5%). Idónea para proteger las estancias de los efectos adversos de la humedad. Reacción al fuego: EUROCLASE A1. Sistema de galces desiguales: las placas encajan entre ellas dejando una entrecalle de 3 mm por donde se inserta la pasta de juntas. Este sistema no utiliza cinta de papel. La pasta de juntas se aplica en las cavidades de las placas y una masilla elástica en los encuentros. Atornillada a cada lado de una estructura metálica de acero galvanizado formada por canales de 50 mm y montantes de 51x49x49 mm con una modulación de 600 mm entre ejes, dando un ancho total de tabique de 79 mm. Incluida parte proporcional del resto de materiales: tornillería, pasta de juntas, masilla para encuentros perimetrales, fijaciones, junta estanca, etc. Montaje según norma de instalación UNE 102043 y exigencias del CTE. | K6: Tabique formado por una placa FUEGO de 15 mm de espesor compuesta por yeso natural, fibra de vidrio y aditivos inorgánicos que le aportan alta dureza y resistencia mecánica. Incorpora perlita y un aumento en la densidad que la hace idónea para un excelente comportamiento y resistencia frente al fuego. Reacción al fuego: EUROCLASE A1. Sistema de galces desiguales: las placas encajan entre ellas dejando una entrecalle de 3 mm por donde se inserta la pasta de juntas. Este sistema no utiliza cinta de papel. La pasta de juntas se aplica en las cavidades de las placas y una masilla elástica en los encuentros. Atornillada a cada lado de una estructura metálica de acero galvanizado formada por canales de 50 mm y montantes de 51x49x49 mm con una modulación de 600 mm entre ejes, dando un ancho total de tabique de 79 mm. Incluida parte proporcional del resto de materiales: tornillería, pasta de juntas, masilla para encuentros perimetrales, fijaciones, junta estanca, etc. Montaje según norma de instalación UNE 102043 y exigencias del CTE. | L6: Tabique formado por una placa RESIST de 15 mm de espesor compuesta por yeso natural, fibra de vidrio y aditivos inorgánicos que le aportan alta dureza y resistencia mecánica. Con mayor cantidad de fibra de vidrio y dosificación modificada, aumenta su densidad, mejorando notablemente la resistencia mecánica. Idónea para lugares con altas exigencias en cuanto a deterioro y desgaste. Reacción al fuego: EUROCLASE A1. Sistema de galces desiguales: las placas encajan entre ellas dejando una entrecalle de 3 mm por donde se inserta la pasta de juntas. Este sistema no utiliza cinta de papel. La pasta de juntas se aplica en las cavidades de las placas y una masilla elástica en los encuentros. Atornillada a cada lado de una estructura metálica de acero galvanizado formada por canales de 50 mm y montantes de 51x49x49 mm con una modulación de 600 mm entre ejes, dando un ancho total de tabique de 79 mm. Incluida parte proporcional del resto de materiales: tornillería, pasta de juntas, masilla para encuentros perimetrales, fijaciones, junta estanca, etc. Montaje según norma de instalación UNE 102043 y exigencias del CTE. | M6: Tabique formado por una placa HIDROPLUS de 15 mm de espesor compuesta por yeso natural, fibra de vidrio y aditivos inorgánicos que le aportan alta dureza y resistencia mecánica. Incorpora tratamiento hidrófugo y un aumento en su densidad, características claves para una elevada resistencia a la humedad (absorción de agua menor al 3%) y una gran resistencia mecánica. Idónea para zonas de intemperie. Reacción al fuego: EUROCLASE A1. Sistema de galces desiguales: las placas encajan entre ellas dejando una entrecalle de 3 mm por donde se inserta la pasta de juntas. Este sistema no utiliza cinta de papel. La pasta de juntas se aplica en las cavidades de las placas y una masilla elástica en los encuentros. Atornillada a cada lado de una estructura metálica de acero galvanizado formada por canales de 50 mm y montantes de 51x49x49 mm con una modulación de 600 mm entre ejes, dando un ancho total de tabique de 79 mm. Incluida parte proporcional del resto de materiales: tornillería, pasta de juntas, masilla para encuentros perimetrales, fijaciones, junta estanca, etc. Montaje según norma de instalación UNE 102043 y exigencias del CTE. | N6: Tabique formado por una placa SUPREM de 15 mm de espesor compuesta por yeso natural, fibra de vidrio y aditivos inorgánicos que le aportan alta dureza y resistencia mecánica. Incorpora tratamiento hidrófugo, perlita y un aumento en la densidad para conseguir soluciones constructivas que cumplan, altos requisitos frente al fuego y una capacidad reducida de absorción de agua. Reacción al fuego: EUROCLASE A1. Sistema de galces desiguales: las placas encajan entre ellas dejando una entrecalle de 3 mm por donde se inserta la pasta de juntas. Este sistema no utiliza cinta de papel. La pasta de juntas se aplica en las cavidades de las placas y una masilla elástica en los encuentros. Atornillada a cada lado de una estructura metálica de acero galvanizado formada por canales de 50 mm y montantes de 51x49x49 mm con una modulación de 600 mm entre ejes, dando un ancho total de tabique de 79 mm. Incluida parte proporcional del resto de materiales: tornillería, pasta de juntas, masilla para encuentros perimetrales, fijaciones, junta estanca, etc. Montaje según norma de instalación UNE 102043 y exigencias del CTE.
C7: 64940 | D7: 1.1.3 | E7: TABIQUE ATT® 89/600 (49) [20+49+20] | F7: 600 | G7: 49 | H7: 20 | I7: Tabique formado por una placa BASIC de 20 mm de espesor compuesta por yeso natural, fibra de vidrio y aditivos inorgánicos que le aportan alta dureza y resistencia mecánica. Reacción al fuego: EUROCLASE A1. Sistema de galces desiguales: las placas encajan entre ellas dejando una entrecalle de 3 mm por donde se inserta la pasta de juntas. Este sistema no utiliza cinta de papel. La pasta de juntas se aplica en las cavidades de las placas y una masilla elástica en los encuentros. Atornillada a cada lado de una estructura metálica de acero galvanizado formada por canales de 50 mm y montantes de 51x49x49 mm con una modulación de 600 mm entre ejes, dando un ancho total de tabique de 89 mm. Incluida parte proporcional del resto de materiales: tornillería, pasta de juntas, masilla para encuentros perimetrales, fijaciones, junta estanca, etc. Montaje según norma de instalación UNE 102043 y exigencias del CTE. | J7: Tabique formado por una placa HIDRO de 20 mm de espesor compuesta por yeso natural, fibra de vidrio y aditivos inorgánicos que le aportan alta dureza y resistencia mecánica. Incorpora tratamiento hidrófugo, disminuyendo así su capacidad de absorción de agua (menor al 5%). Idónea para proteger las estancias de los efectos adversos de la humedad. Reacción al fuego: EUROCLASE A1. Sistema de galces desiguales: las placas encajan entre ellas dejando una entrecalle de 3 mm por donde se inserta la pasta de juntas. Este sistema no utiliza cinta de papel. La pasta de juntas se aplica en las cavidades de las placas y una masilla elástica en los encuentros. Atornillada a cada lado de una estructura metálica de acero galvanizado formada por canales de 50 mm y montantes de 51x49x49 mm con una modulación de 600 mm entre ejes, dando un ancho total de tabique de 89 mm. Incluida parte proporcional del resto de materiales: tornillería, pasta de juntas, masilla para encuentros perimetrales, fijaciones, junta estanca, etc. Montaje según norma de instalación UNE 102043 y exigencias del CTE. | K7: Tabique formado por una placa FUEGO de 20 mm de espesor compuesta por yeso natural, fibra de vidrio y aditivos inorgánicos que le aportan alta dureza y resistencia mecánica. Incorpora perlita y un aumento en la densidad que la hace idónea para un excelente comportamiento y resistencia frente al fuego. Reacción al fuego: EUROCLASE A1. Sistema de galces desiguales: las placas encajan entre ellas dejando una entrecalle de 3 mm por donde se inserta la pasta de juntas. Este sistema no utiliza cinta de papel. La pasta de juntas se aplica en las cavidades de las placas y una masilla elástica en los encuentros. Atornillada a cada lado de una estructura metálica de acero galvanizado formada por canales de 50 mm y montantes de 51x49x49 mm con una modulación de 600 mm entre ejes, dando un ancho total de tabique de 89 mm. Incluida parte proporcional del resto de materiales: tornillería, pasta de juntas, masilla para encuentros perimetrales, fijaciones, junta estanca, etc. Montaje según norma de instalación UNE 102043 y exigencias del CTE. | L7: Tabique formado por una placa RESIST de 20 mm de espesor compuesta por yeso natural, fibra de vidrio y aditivos inorgánicos que le aportan alta dureza y resistencia mecánica. Con mayor cantidad de fibra de vidrio y dosificación modificada, aumenta su densidad, mejorando notablemente la resistencia mecánica. Idónea para lugares con altas exigencias en cuanto a deterioro y desgaste. Reacción al fuego: EUROCLASE A1. Sistema de galces desiguales: las placas encajan entre ellas dejando una entrecalle de 3 mm por donde se inserta la pasta de juntas. Este sistema no utiliza cinta de papel. La pasta de juntas se aplica en las cavidades de las placas y una masilla elástica en los encuentros. Atornillada a cada lado de una estructura metálica de acero galvanizado formada por canales de 50 mm y montantes de 51x49x49 mm con una modulación de 600 mm entre ejes, dando un ancho total de tabique de 89 mm. Incluida parte proporcional del resto de materiales: tornillería, pasta de juntas, masilla para encuentros perimetrales, fijaciones, junta estanca, etc. Montaje según norma de instalación UNE 102043 y exigencias del CTE. | M7: Tabique formado por una placa HIDROPLUS de 20 mm de espesor compuesta por yeso natural, fibra de vidrio y aditivos inorgánicos que le aportan alta dureza y resistencia mecánica. Incorpora tratamiento hidrófugo y un aumento en su densidad, características claves para una elevada resistencia a la humedad (absorción de agua menor al 3%) y una gran resistencia mecánica. Idónea para zonas de intemperie. Reacción al fuego: EUROCLASE A1. Sistema de galces desiguales: las placas encajan entre ellas dejando una entrecalle de 3 mm por donde se inserta la pasta de juntas. Este sistema no utiliza cinta de papel. La pasta de juntas se aplica en las cavidades de las placas y una masilla elástica en los encuentros. Atornillada a cada lado de una estructura metálica de acero galvanizado formada por canales de 50 mm y montantes de 51x49x49 mm con una modulación de 600 mm entre ejes, dando un ancho total de tabique de 89 mm. Incluida parte proporcional del resto de materiales: tornillería, pasta de juntas, masilla para encuentros perimetrales, fijaciones, junta estanca, etc. Montaje según norma de instalación UNE 102043 y exigencias del CTE. | N7: Tabique formado por una placa SUPREM de 20 mm de espesor compuesta por yeso natural, fibra de vidrio y aditivos inorgánicos que le aportan alta dureza y resistencia mecánica. Incorpora tratamiento hidrófugo, perlita y un aumento en la densidad para conseguir soluciones constructivas que cumplan, altos requisitos frente al fuego y una capacidad reducida de absorción de agua. Reacción al fuego: EUROCLASE A1. Sistema de galces desiguales: las placas encajan entre ellas dejando una entrecalle de 3 mm por donde se inserta la pasta de juntas. Este sistema no utiliza cinta de papel. La pasta de juntas se aplica en las cavidades de las placas y una masilla elástica en los encuentros. Atornillada a cada lado de una estructura metálica de acero galvanizado formada por canales de 50 mm y montantes de 51x49x49 mm con una modulación de 600 mm entre ejes, dando un ancho total de tabique de 89 mm. Incluida parte proporcional del resto de materiales: tornillería, pasta de juntas, masilla para encuentros perimetrales, fijaciones, junta estanca, etc. Montaje según norma de instalación UNE 102043 y exigencias del CTE.
C8: 67426 | D8: 1.1.4 | E8: TABIQUE ATT® 100/600 (74) [13+74+13] | F8: 600 | G8: 74 | H8: 13 | I8: Tabique formado por una placa BASIC de 13 mm de espesor compuesta por yeso natural, fibra de vidrio y aditivos inorgánicos que le aportan alta dureza y resistencia mecánica. Reacción al fuego: EUROCLASE A1. Sistema de galces desiguales: las placas encajan entre ellas dejando una entrecalle de 3 mm por donde se inserta la pasta de juntas. Este sistema no utiliza cinta de papel. La pasta de juntas se aplica en las cavidades de las placas y una masilla elástica en los encuentros. Atornillada a cada lado de una estructura metálica de acero galvanizado formada por canales de 75 mm y montantes de 51x74x49 mm con una modulación de 600 mm entre ejes, dando un ancho total de tabique de 100 mm. Incluida parte proporcional del resto de materiales: tornillería, pasta de juntas, masilla para encuentros perimetrales, fijaciones, junta estanca, etc. Montaje según norma de instalación UNE 102043 y exigencias del CTE. | J8: Tabique formado por una placa HIDRO de 13 mm de espesor compuesta por yeso natural, fibra de vidrio y aditivos inorgánicos que le aportan alta dureza y resistencia mecánica. Incorpora tratamiento hidrófugo, disminuyendo así su capacidad de absorción de agua (menor al 5%). Idónea para proteger las estancias de los efectos adversos de la humedad. Reacción al fuego: EUROCLASE A1. Sistema de galces desiguales: las placas encajan entre ellas dejando una entrecalle de 3 mm por donde se inserta la pasta de juntas. Este sistema no utiliza cinta de papel. La pasta de juntas se aplica en las cavidades de las placas y una masilla elástica en los encuentros. Atornillada a cada lado de una estructura metálica de acero galvanizado formada por canales de 75 mm y montantes de 51x74x49 mm con una modulación de 600 mm entre ejes, dando un ancho total de tabique de 100 mm. Incluida parte proporcional del resto de materiales: tornillería, pasta de juntas, masilla para encuentros perimetrales, fijaciones, junta estanca, etc. Montaje según norma de instalación UNE 102043 y exigencias del CTE. | K8: Tabique formado por una placa FUEGO de 13 mm de espesor compuesta por yeso natural, fibra de vidrio y aditivos inorgánicos que le aportan alta dureza y resistencia mecánica. Incorpora perlita y un aumento en la densidad que la hace idónea para un excelente comportamiento y resistencia frente al fuego. Reacción al fuego: EUROCLASE A1. Sistema de galces desiguales: las placas encajan entre ellas dejando una entrecalle de 3 mm por donde se inserta la pasta de juntas. Este sistema no utiliza cinta de papel. La pasta de juntas se aplica en las cavidades de las placas y una masilla elástica en los encuentros. Atornillada a cada lado de una estructura metálica de acero galvanizado formada por canales de 75 mm y montantes de 51x74x49 mm con una modulación de 600 mm entre ejes, dando un ancho total de tabique de 100 mm. Incluida parte proporcional del resto de materiales: tornillería, pasta de juntas, masilla para encuentros perimetrales, fijaciones, junta estanca, etc. Montaje según norma de instalación UNE 102043 y exigencias del CTE. | L8: Tabique formado por una placa RESIST de 13 mm de espesor compuesta por yeso natural, fibra de vidrio y aditivos inorgánicos que le aportan alta dureza y resistencia mecánica. Con mayor cantidad de fibra de vidrio y dosificación modificada, aumenta su densidad, mejorando notablemente la resistencia mecánica. Idónea para lugares con altas exigencias en cuanto a deterioro y desgaste. Reacción al fuego: EUROCLASE A1. Sistema de galces desiguales: las placas encajan entre ellas dejando una entrecalle de 3 mm por donde se inserta la pasta de juntas. Este sistema no utiliza cinta de papel. La pasta de juntas se aplica en las cavidades de las placas y una masilla elástica en los encuentros. Atornillada a cada lado de una estructura metálica de acero galvanizado formada por canales de 75 mm y montantes de 51x74x49 mm con una modulación de 600 mm entre ejes, dando un ancho total de tabique de 100 mm. Incluida parte proporcional del resto de materiales: tornillería, pasta de juntas, masilla para encuentros perimetrales, fijaciones, junta estanca, etc. Montaje según norma de instalación UNE 102043 y exigencias del CTE. | M8: Tabique formado por una placa HIDROPLUS de 13 mm de espesor compuesta por yeso natural, fibra de vidrio y aditivos inorgánicos que le aportan alta dureza y resistencia mecánica. Incorpora tratamiento hidrófugo y un aumento en su densidad, características claves para una elevada resistencia a la humedad (absorción de agua menor al 3%) y una gran resistencia mecánica. Idónea para zonas de intemperie. Reacción al fuego: EUROCLASE A1. Sistema de galces desiguales: las placas encajan entre ellas dejando una entrecalle de 3 mm por donde se inserta la pasta de juntas. Este sistema no utiliza cinta de papel. La pasta de juntas se aplica en las cavidades de las placas y una masilla elástica en los encuentros. Atornillada a cada lado de una estructura metálica de acero galvanizado formada por canales de 75 mm y montantes de 51x74x49 mm con una modulación de 600 mm entre ejes, dando un ancho total de tabique de 100 mm. Incluida parte proporcional del resto de materiales: tornillería, pasta de juntas, masilla para encuentros perimetrales, fijaciones, junta estanca, etc. Montaje según norma de instalación UNE 102043 y exigencias del CTE. | N8: Tabique formado por una placa SUPREM de 13 mm de espesor compuesta por yeso natural, fibra de vidrio y aditivos inorgánicos que le aportan alta dureza y resistencia mecánica. Incorpora tratamiento hidrófugo, perlita y un aumento en la densidad para conseguir soluciones constructivas que cumplan, altos requisitos frente al fuego y una capacidad reducida de absorción de agua. Reacción al fuego: EUROCLASE A1. Sistema de galces desiguales: las placas encajan entre ellas dejando una entrecalle de 3 mm por donde se inserta la pasta de juntas. Este sistema no utiliza cinta de papel. La pasta de juntas se aplica en las cavidades de las placas y una masilla elástica en los encuentros. Atornillada a cada lado de una estructura metálica de acero galvanizado formada por canales de 75 mm y montantes de 51x74x49 mm con una modulación de 600 mm entre ejes, dando un ancho total de tabique de 100 mm. Incluida parte proporcional del resto de materiales: tornillería, pasta de juntas, masilla para encuentros perimetrales, fijaciones, junta estanca, etc. Montaje según norma de instalación UNE 102043 y exigencias del CTE.
C9: 67430 | D9: 1.1.5 | E9: TABIQUE ATT® 104/600 (74) [15+74+15] | F9: 600 | G9: 74 | H9: 15 | I9: Tabique formado por una placa BASIC de 15 mm de espesor compuesta por yeso natural, fibra de vidrio y aditivos inorgánicos que le aportan alta dureza y resistencia mecánica. Reacción al fuego: EUROCLASE A1. Sistema de galces desiguales: las placas encajan entre ellas dejando una entrecalle de 3 mm por donde se inserta la pasta de juntas. Este sistema no utiliza cinta de papel. La pasta de juntas se aplica en las cavidades de las placas y una masilla elástica en los encuentros. Atornillada a cada lado de una estructura metálica de acero galvanizado formada por canales de 75 mm y montantes de 51x74x49 mm con una modulación de 600 mm entre ejes, dando un ancho total de tabique de 104 mm. Incluida parte proporcional del resto de materiales: tornillería, pasta de juntas, masilla para encuentros perimetrales, fijaciones, junta estanca, etc. Montaje según norma de instalación UNE 102043 y exigencias del CTE. | J9: Tabique formado por una placa HIDRO de 15 mm de espesor compuesta por yeso natural, fibra de vidrio y aditivos inorgánicos que le aportan alta dureza y resistencia mecánica. Incorpora tratamiento hidrófugo, disminuyendo así su capacidad de absorción de agua (menor al 5%). Idónea para proteger las estancias de los efectos adversos de la humedad. Reacción al fuego: EUROCLASE A1. Sistema de galces desiguales: las placas encajan entre ellas dejando una entrecalle de 3 mm por donde se inserta la pasta de juntas. Este sistema no utiliza cinta de papel. La pasta de juntas se aplica en las cavidades de las placas y una masilla elástica en los encuentros. Atornillada a cada lado de una estructura metálica de acero galvanizado formada por canales de 75 mm y montantes de 51x74x49 mm con una modulación de 600 mm entre ejes, dando un ancho total de tabique de 104 mm. Incluida parte proporcional del resto de materiales: tornillería, pasta de juntas, masilla para encuentros perimetrales, fijaciones, junta estanca, etc. Montaje según norma de instalación UNE 102043 y exigencias del CTE. | K9: Tabique formado por una placa FUEGO de 15 mm de espesor compuesta por yeso natural, fibra de vidrio y aditivos inorgánicos que le aportan alta dureza y resistencia mecánica. Incorpora perlita y un aumento en la densidad que la hace idónea para un excelente comportamiento y resistencia frente al fuego. Reacción al fuego: EUROCLASE A1. Sistema de galces desiguales: las placas encajan entre ellas dejando una entrecalle de 3 mm por donde se inserta la pasta de juntas. Este sistema no utiliza cinta de papel. La pasta de juntas se aplica en las cavidades de las placas y una masilla elástica en los encuentros. Atornillada a cada lado de una estructura metálica de acero galvanizado formada por canales de 75 mm y montantes de 51x74x49 mm con una modulación de 600 mm entre ejes, dando un ancho total de tabique de 104 mm. Incluida parte proporcional del resto de materiales: tornillería, pasta de juntas, masilla para encuentros perimetrales, fijaciones, junta estanca, etc. Montaje según norma de instalación UNE 102043 y exigencias del CTE. | L9: Tabique formado por una placa RESIST de 15 mm de espesor compuesta por yeso natural, fibra de vidrio y aditivos inorgánicos que le aportan alta dureza y resistencia mecánica. Con mayor cantidad de fibra de vidrio y dosificación modificada, aumenta su densidad, mejorando notablemente la resistencia mecánica. Idónea para lugares con altas exigencias en cuanto a deterioro y desgaste. Reacción al fuego: EUROCLASE A1. Sistema de galces desiguales: las placas encajan entre ellas dejando una entrecalle de 3 mm por donde se inserta la pasta de juntas. Este sistema no utiliza cinta de papel. La pasta de juntas se aplica en las cavidades de las placas y una masilla elástica en los encuentros. Atornillada a cada lado de una estructura metálica de acero galvanizado formada por canales de 75 mm y montantes de 51x74x49 mm con una modulación de 600 mm entre ejes, dando un ancho total de tabique de 104 mm. Incluida parte proporcional del resto de materiales: tornillería, pasta de juntas, masilla para encuentros perimetrales, fijaciones, junta estanca, etc. Montaje según norma de instalación UNE 102043 y exigencias del CTE. | M9: Tabique formado por una placa HIDROPLUS de 15 mm de espesor compuesta por yeso natural, fibra de vidrio y aditivos inorgánicos que le aportan alta dureza y resistencia mecánica. Incorpora tratamiento hidrófugo y un aumento en su densidad, características claves para una elevada resistencia a la humedad (absorción de agua menor al 3%) y una gran resistencia mecánica. Idónea para zonas de intemperie. Reacción al fuego: EUROCLASE A1. Sistema de galces desiguales: las placas encajan entre ellas dejando una entrecalle de 3 mm por donde se inserta la pasta de juntas. Este sistema no utiliza cinta de papel. La pasta de juntas se aplica en las cavidades de las placas y una masilla elástica en los encuentros. Atornillada a cada lado de una estructura metálica de acero galvanizado formada por canales de 75 mm y montantes de 51x74x49 mm con una modulación de 600 mm entre ejes, dando un ancho total de tabique de 104 mm. Incluida parte proporcional del resto de materiales: tornillería, pasta de juntas, masilla para encuentros perimetrales, fijaciones, junta estanca, etc. Montaje según norma de instalación UNE 102043 y exigencias del CTE. | N9: Tabique formado por una placa SUPREM de 15 mm de espesor compuesta por yeso natural, fibra de vidrio y aditivos inorgánicos que le aportan alta dureza y resistencia mecánica. Incorpora tratamiento hidrófugo, perlita y un aumento en la densidad para conseguir soluciones constructivas que cumplan, altos requisitos frente al fuego y una capacidad reducida de absorción de agua. Reacción al fuego: EUROCLASE A1. Sistema de galces desiguales: las placas encajan entre ellas dejando una entrecalle de 3 mm por donde se inserta la pasta de juntas. Este sistema no utiliza cinta de papel. La pasta de juntas se aplica en las cavidades de las placas y una masilla elástica en los encuentros. Atornillada a cada lado de una estructura metálica de acero galvanizado formada por canales de 75 mm y montantes de 51x74x49 mm con una modulación de 600 mm entre ejes, dando un ancho total de tabique de 104 mm. Incluida parte proporcional del resto de materiales: tornillería, pasta de juntas, masilla para encuentros perimetrales, fijaciones, junta estanca, etc. Montaje según norma de instalación UNE 102043 y exigencias del CTE.
C10: 67440 | D10: 1.1.6 | E10: TABIQUE ATT® 114/600 (74) [20+74+20] | F10: 600 | G10: 74 | H10: 20 | I10: Tabique formado por una placa BASIC de 20 mm de espesor compuesta por yeso natural, fibra de vidrio y aditivos inorgánicos que le aportan alta dureza y resistencia mecánica. Reacción al fuego: EUROCLASE A1. Sistema de galces desiguales: las placas encajan entre ellas dejando una entrecalle de 3 mm por donde se inserta la pasta de juntas. Este sistema no utiliza cinta de papel. La pasta de juntas se aplica en las cavidades de las placas y una masilla elástica en los encuentros. Atornillada a cada lado de una estructura metálica de acero galvanizado formada por canales de 75 mm y montantes de 51x74x49 mm con una modulación de 600 mm entre ejes, dando un ancho total de tabique de 114 mm. Incluida parte proporcional del resto de materiales: tornillería, pasta de juntas, masilla para encuentros perimetrales, fijaciones, junta estanca, etc. Montaje según norma de instalación UNE 102043 y exigencias del CTE. | J10: Tabique formado por una placa HIDRO de 20 mm de espesor compuesta por yeso natural, fibra de vidrio y aditivos inorgánicos que le aportan alta dureza y resistencia mecánica. Incorpora tratamiento hidrófugo, disminuyendo así su capacidad de absorción de agua (menor al 5%). Idónea para proteger las estancias de los efectos adversos de la humedad. Reacción al fuego: EUROCLASE A1. Sistema de galces desiguales: las placas encajan entre ellas dejando una entrecalle de 3 mm por donde se inserta la pasta de juntas. Este sistema no utiliza cinta de papel. La pasta de juntas se aplica en las cavidades de las placas y una masilla elástica en los encuentros. Atornillada a cada lado de una estructura metálica de acero galvanizado formada por canales de 75 mm y montantes de 51x74x49 mm con una modulación de 600 mm entre ejes, dando un ancho total de tabique de 114 mm. Incluida parte proporcional del resto de materiales: tornillería, pasta de juntas, masilla para encuentros perimetrales, fijaciones, junta estanca, etc. Montaje según norma de instalación UNE 102043 y exigencias del CTE. | K10: Tabique formado por una placa FUEGO de 20 mm de espesor compuesta por yeso natural, fibra de vidrio y aditivos inorgánicos que le aportan alta dureza y resistencia mecánica. Incorpora perlita y un aumento en la densidad que la hace idónea para un excelente comportamiento y resistencia frente al fuego. Reacción al fuego: EUROCLASE A1. Sistema de galces desiguales: las placas encajan entre ellas dejando una entrecalle de 3 mm por donde se inserta la pasta de juntas. Este sistema no utiliza cinta de papel. La pasta de juntas se aplica en las cavidades de las placas y una masilla elástica en los encuentros. Atornillada a cada lado de una estructura metálica de acero galvanizado formada por canales de 75 mm y montantes de 51x74x49 mm con una modulación de 600 mm entre ejes, dando un ancho total de tabique de 114 mm. Incluida parte proporcional del resto de materiales: tornillería, pasta de juntas, masilla para encuentros perimetrales, fijaciones, junta estanca, etc. Montaje según norma de instalación UNE 102043 y exigencias del CTE. | L10: Tabique formado por una placa RESIST de 20 mm de espesor compuesta por yeso natural, fibra de vidrio y aditivos inorgánicos que le aportan alta dureza y resistencia mecánica. Con mayor cantidad de fibra de vidrio y dosificación modificada, aumenta su densidad, mejorando notablemente la resistencia mecánica. Idónea para lugares con altas exigencias en cuanto a deterioro y desgaste. Reacción al fuego: EUROCLASE A1. Sistema de galces desiguales: las placas encajan entre ellas dejando una entrecalle de 3 mm por donde se inserta la pasta de juntas. Este sistema no utiliza cinta de papel. La pasta de juntas se aplica en las cavidades de las placas y una masilla elástica en los encuentros. Atornillada a cada lado de una estructura metálica de acero galvanizado formada por canales de 75 mm y montantes de 51x74x49 mm con una modulación de 600 mm entre ejes, dando un ancho total de tabique de 114 mm. Incluida parte proporcional del resto de materiales: tornillería, pasta de juntas, masilla para encuentros perimetrales, fijaciones, junta estanca, etc. Montaje según norma de instalación UNE 102043 y exigencias del CTE. | M10: Tabique formado por una placa HIDROPLUS de 20 mm de espesor compuesta por yeso natural, fibra de vidrio y aditivos inorgánicos que le aportan alta dureza y resistencia mecánica. Incorpora tratamiento hidrófugo y un aumento en su densidad, características claves para una elevada resistencia a la humedad (absorción de agua menor al 3%) y una gran resistencia mecánica. Idónea para zonas de intemperie. Reacción al fuego: EUROCLASE A1. Sistema de galces desiguales: las placas encajan entre ellas dejando una entrecalle de 3 mm por donde se inserta la pasta de juntas. Este sistema no utiliza cinta de papel. La pasta de juntas se aplica en las cavidades de las placas y una masilla elástica en los encuentros. Atornillada a cada lado de una estructura metálica de acero galvanizado formada por canales de 75 mm y montantes de 51x74x49 mm con una modulación de 600 mm entre ejes, dando un ancho total de tabique de 114 mm. Incluida parte proporcional del resto de materiales: tornillería, pasta de juntas, masilla para encuentros perimetrales, fijaciones, junta estanca, etc. Montaje según norma de instalación UNE 102043 y exigencias del CTE. | N10: Tabique formado por una placa SUPREM de 20 mm de espesor compuesta por yeso natural, fibra de vidrio y aditivos inorgánicos que le aportan alta dureza y resistencia mecánica. Incorpora tratamiento hidrófugo, perlita y un aumento en la densidad para conseguir soluciones constructivas que cumplan, altos requisitos frente al fuego y una capacidad reducida de absorción de agua. Reacción al fuego: EUROCLASE A1. Sistema de galces desiguales: las placas encajan entre ellas dejando una entrecalle de 3 mm por donde se inserta la pasta de juntas. Este sistema no utiliza cinta de papel. La pasta de juntas se aplica en las cavidades de las placas y una masilla elástica en los encuentros. Atornillada a cada lado de una estructura metálica de acero galvanizado formada por canales de 75 mm y montantes de 51x74x49 mm con una modulación de 600 mm entre ejes, dando un ancho total de tabique de 114 mm. Incluida parte proporcional del resto de materiales: tornillería, pasta de juntas, masilla para encuentros perimetrales, fijaciones, junta estanca, etc. Montaje según norma de instalación UNE 102043 y exigencias del CTE.
C11: 69926 | D11: 1.1.7 | E11: TABIQUE ATT® 125/600 (99) [13+99+13] | F11: 600 | G11: 99 | H11: 13 | I11: Tabique formado por una placa BASIC de 13 mm de espesor compuesta por yeso natural, fibra de vidrio y aditivos inorgánicos que le aportan alta dureza y resistencia mecánica. Reacción al fuego: EUROCLASE A1. Sistema de galces desiguales: las placas encajan entre ellas dejando una entrecalle de 3 mm por donde se inserta la pasta de juntas. Este sistema no utiliza cinta de papel. La pasta de juntas se aplica en las cavidades de las placas y una masilla elástica en los encuentros. Atornillada a cada lado de una estructura metálica de acero galvanizado formada por canales de 100 mm y montantes de 51x99x49 mm con una modulación de 600 mm entre ejes, dando un ancho total de tabique de 125 mm. Incluida parte proporcional del resto de materiales: tornillería, pasta de juntas, masilla para encuentros perimetrales, fijaciones, junta estanca, etc. Montaje según norma de instalación UNE 102043 y exigencias del CTE. | J11: Tabique formado por una placa HIDRO de 13 mm de espesor compuesta por yeso natural, fibra de vidrio y aditivos inorgánicos que le aportan alta dureza y resistencia mecánica. Incorpora tratamiento hidrófugo, disminuyendo así su capacidad de absorción de agua (menor al 5%). Idónea para proteger las estancias de los efectos adversos de la humedad. Reacción al fuego: EUROCLASE A1. Sistema de galces desiguales: las placas encajan entre ellas dejando una entrecalle de 3 mm por donde se inserta la pasta de juntas. Este sistema no utiliza cinta de papel. La pasta de juntas se aplica en las cavidades de las placas y una masilla elástica en los encuentros. Atornillada a cada lado de una estructura metálica de acero galvanizado formada por canales de 100 mm y montantes de 51x99x49 mm con una modulación de 600 mm entre ejes, dando un ancho total de tabique de 125 mm. Incluida parte proporcional del resto de materiales: tornillería, pasta de juntas, masilla para encuentros perimetrales, fijaciones, junta estanca, etc. Montaje según norma de instalación UNE 102043 y exigencias del CTE. | K11: Tabique formado por una placa FUEGO de 13 mm de espesor compuesta por yeso natural, fibra de vidrio y aditivos inorgánicos que le aportan alta dureza y resistencia mecánica. Incorpora perlita y un aumento en la densidad que la hace idónea para un excelente comportamiento y resistencia frente al fuego. Reacción al fuego: EUROCLASE A1. Sistema de galces desiguales: las placas encajan entre ellas dejando una entrecalle de 3 mm por donde se inserta la pasta de juntas. Este sistema no utiliza cinta de papel. La pasta de juntas se aplica en las cavidades de las placas y una masilla elástica en los encuentros. Atornillada a cada lado de una estructura metálica de acero galvanizado formada por canales de 100 mm y montantes de 51x99x49 mm con una modulación de 600 mm entre ejes, dando un ancho total de tabique de 125 mm. Incluida parte proporcional del resto de materiales: tornillería, pasta de juntas, masilla para encuentros perimetrales, fijaciones, junta estanca, etc. Montaje según norma de instalación UNE 102043 y exigencias del CTE. | L11: Tabique formado por una placa RESIST de 13 mm de espesor compuesta por yeso natural, fibra de vidrio y aditivos inorgánicos que le aportan alta dureza y resistencia mecánica. Con mayor cantidad de fibra de vidrio y dosificación modificada, aumenta su densidad, mejorando notablemente la resistencia mecánica. Idónea para lugares con altas exigencias en cuanto a deterioro y desgaste. Reacción al fuego: EUROCLASE A1. Sistema de galces desiguales: las placas encajan entre ellas dejando una entrecalle de 3 mm por donde se inserta la pasta de juntas. Este sistema no utiliza cinta de papel. La pasta de juntas se aplica en las cavidades de las placas y una masilla elástica en los encuentros. Atornillada a cada lado de una estructura metálica de acero galvanizado formada por canales de 100 mm y montantes de 51x99x49 mm con una modulación de 600 mm entre ejes, dando un ancho total de tabique de 125 mm. Incluida parte proporcional del resto de materiales: tornillería, pasta de juntas, masilla para encuentros perimetrales, fijaciones, junta estanca, etc. Montaje según norma de instalación UNE 102043 y exigencias del CTE. | M11: Tabique formado por una placa HIDROPLUS de 13 mm de espesor compuesta por yeso natural, fibra de vidrio y aditivos inorgánicos que le aportan alta dureza y resistencia mecánica. Incorpora tratamiento hidrófugo y un aumento en su densidad, características claves para una elevada resistencia a la humedad (absorción de agua menor al 3%) y una gran resistencia mecánica. Idónea para zonas de intemperie. Reacción al fuego: EUROCLASE A1. Sistema de galces desiguales: las placas encajan entre ellas dejando una entrecalle de 3 mm por donde se inserta la pasta de juntas. Este sistema no utiliza cinta de papel. La pasta de juntas se aplica en las cavidades de las placas y una masilla elástica en los encuentros. Atornillada a cada lado de una estructura metálica de acero galvanizado formada por canales de 100 mm y montantes de 51x99x49 mm con una modulación de 600 mm entre ejes, dando un ancho total de tabique de 125 mm. Incluida parte proporcional del resto de materiales: tornillería, pasta de juntas, masilla para encuentros perimetrales, fijaciones, junta estanca, etc. Montaje según norma de instalación UNE 102043 y exigencias del CTE. | N11: Tabique formado por una placa SUPREM de 13 mm de espesor compuesta por yeso natural, fibra de vidrio y aditivos inorgánicos que le aportan alta dureza y resistencia mecánica. Incorpora tratamiento hidrófugo, perlita y un aumento en la densidad para conseguir soluciones constructivas que cumplan, altos requisitos frente al fuego y una capacidad reducida de absorción de agua. Reacción al fuego: EUROCLASE A1. Sistema de galces desiguales: las placas encajan entre ellas dejando una entrecalle de 3 mm por donde se inserta la pasta de juntas. Este sistema no utiliza cinta de papel. La pasta de juntas se aplica en las cavidades de las placas y una masilla elástica en los encuentros. Atornillada a cada lado de una estructura metálica de acero galvanizado formada por canales de 100 mm y montantes de 51x99x49 mm con una modulación de 600 mm entre ejes, dando un ancho total de tabique de 125 mm. Incluida parte proporcional del resto de materiales: tornillería, pasta de juntas, masilla para encuentros perimetrales, fijaciones, junta estanca, etc. Montaje según norma de instalación UNE 102043 y exigencias del CTE.
A12: PLACA DOBLE | C12: 69930 | D12: 1.1.8 | E12: TABIQUE ATT® 129/600 (99) [15+99+15] | F12: 600 | G12: 99 | H12: 15 | I12: Tabique formado por una placa BASIC de 15 mm de espesor compuesta por yeso natural, fibra de vidrio y aditivos inorgánicos que le aportan alta dureza y resistencia mecánica. Reacción al fuego: EUROCLASE A1. Sistema de galces desiguales: las placas encajan entre ellas dejando una entrecalle de 3 mm por donde se inserta la pasta de juntas. Este sistema no utiliza cinta de papel. La pasta de juntas se aplica en las cavidades de las placas y una masilla elástica en los encuentros. Atornillada a cada lado de una estructura metálica de acero galvanizado formada por canales de 100 mm y montantes de 51x99x49 mm con una modulación de 600 mm entre ejes, dando un ancho total de tabique de 129 mm. Incluida parte proporcional del resto de materiales: tornillería, pasta de juntas, masilla para encuentros perimetrales, fijaciones, junta estanca, etc. Montaje según norma de instalación UNE 102043 y exigencias del CTE. | J12: Tabique formado por una placa HIDRO de 15 mm de espesor compuesta por yeso natural, fibra de vidrio y aditivos inorgánicos que le aportan alta dureza y resistencia mecánica. Incorpora tratamiento hidrófugo, disminuyendo así su capacidad de absorción de agua (menor al 5%). Idónea para proteger las estancias de los efectos adversos de la humedad. Reacción al fuego: EUROCLASE A1. Sistema de galces desiguales: las placas encajan entre ellas dejando una entrecalle de 3 mm por donde se inserta la pasta de juntas. Este sistema no utiliza cinta de papel. La pasta de juntas se aplica en las cavidades de las placas y una masilla elástica en los encuentros. Atornillada a cada lado de una estructura metálica de acero galvanizado formada por canales de 100 mm y montantes de 51x99x49 mm con una modulación de 600 mm entre ejes, dando un ancho total de tabique de 129 mm. Incluida parte proporcional del resto de materiales: tornillería, pasta de juntas, masilla para encuentros perimetrales, fijaciones, junta estanca, etc. Montaje según norma de instalación UNE 102043 y exigencias del CTE. | K12: Tabique formado por una placa FUEGO de 15 mm de espesor compuesta por yeso natural, fibra de vidrio y aditivos inorgánicos que le aportan alta dureza y resistencia mecánica. Incorpora perlita y un aumento en la densidad que la hace idónea para un excelente comportamiento y resistencia frente al fuego. Reacción al fuego: EUROCLASE A1. Sistema de galces desiguales: las placas encajan entre ellas dejando una entrecalle de 3 mm por donde se inserta la pasta de juntas. Este sistema no utiliza cinta de papel. La pasta de juntas se aplica en las cavidades de las placas y una masilla elástica en los encuentros. Atornillada a cada lado de una estructura metálica de acero galvanizado formada por canales de 100 mm y montantes de 51x99x49 mm con una modulación de 600 mm entre ejes, dando un ancho total de tabique de 129 mm. Incluida parte proporcional del resto de materiales: tornillería, pasta de juntas, masilla para encuentros perimetrales, fijaciones, junta estanca, etc. Montaje según norma de instalación UNE 102043 y exigencias del CTE. | L12: Tabique formado por una placa RESIST de 15 mm de espesor compuesta por yeso natural, fibra de vidrio y aditivos inorgánicos que le aportan alta dureza y resistencia mecánica. Con mayor cantidad de fibra de vidrio y dosificación modificada, aumenta su densidad, mejorando notablemente la resistencia mecánica. Idónea para lugares con altas exigencias en cuanto a deterioro y desgaste. Reacción al fuego: EUROCLASE A1. Sistema de galces desiguales: las placas encajan entre ellas dejando una entrecalle de 3 mm por donde se inserta la pasta de juntas. Este sistema no utiliza cinta de papel. La pasta de juntas se aplica en las cavidades de las placas y una masilla elástica en los encuentros. Atornillada a cada lado de una estructura metálica de acero galvanizado formada por canales de 100 mm y montantes de 51x99x49 mm con una modulación de 600 mm entre ejes, dando un ancho total de tabique de 129 mm. Incluida parte proporcional del resto de materiales: tornillería, pasta de juntas, masilla para encuentros perimetrales, fijaciones, junta estanca, etc. Montaje según norma de instalación UNE 102043 y exigencias del CTE. | M12: Tabique formado por una placa HIDROPLUS de 15 mm de espesor compuesta por yeso natural, fibra de vidrio y aditivos inorgánicos que le aportan alta dureza y resistencia mecánica. Incorpora tratamiento hidrófugo y un aumento en su densidad, características claves para una elevada resistencia a la humedad (absorción de agua menor al 3%) y una gran resistencia mecánica. Idónea para zonas de intemperie. Reacción al fuego: EUROCLASE A1. Sistema de galces desiguales: las placas encajan entre ellas dejando una entrecalle de 3 mm por donde se inserta la pasta de juntas. Este sistema no utiliza cinta de papel. La pasta de juntas se aplica en las cavidades de las placas y una masilla elástica en los encuentros. Atornillada a cada lado de una estructura metálica de acero galvanizado formada por canales de 100 mm y montantes de 51x99x49 mm con una modulación de 600 mm entre ejes, dando un ancho total de tabique de 129 mm. Incluida parte proporcional del resto de materiales: tornillería, pasta de juntas, masilla para encuentros perimetrales, fijaciones, junta estanca, etc. Montaje según norma de instalación UNE 102043 y exigencias del CTE. | N12: Tabique formado por una placa SUPREM de 15 mm de espesor compuesta por yeso natural, fibra de vidrio y aditivos inorgánicos que le aportan alta dureza y resistencia mecánica. Incorpora tratamiento hidrófugo, perlita y un aumento en la densidad para conseguir soluciones constructivas que cumplan, altos requisitos frente al fuego y una capacidad reducida de absorción de agua. Reacción al fuego: EUROCLASE A1. Sistema de galces desiguales: las placas encajan entre ellas dejando una entrecalle de 3 mm por donde se inserta la pasta de juntas. Este sistema no utiliza cinta de papel. La pasta de juntas se aplica en las cavidades de las placas y una masilla elástica en los encuentros. Atornillada a cada lado de una estructura metálica de acero galvanizado formada por canales de 100 mm y montantes de 51x99x49 mm con una modulación de 600 mm entre ejes, dando un ancho total de tabique de 129 mm. Incluida parte proporcional del resto de materiales: tornillería, pasta de juntas, masilla para encuentros perimetrales, fijaciones, junta estanca, etc. Montaje según norma de instalación UNE 102043 y exigencias del CTE.
C13: 69940 | D13: 1.1.9 | E13: TABIQUE ATT® 139/600 (99) [20+99+20] | F13: 600 | G13: 99 | H13: 20 | I13: Tabique formado por una placa BASIC de 20 mm de espesor compuesta por yeso natural, fibra de vidrio y aditivos inorgánicos que le aportan alta dureza y resistencia mecánica. Reacción al fuego: EUROCLASE A1. Sistema de galces desiguales: las placas encajan entre ellas dejando una entrecalle de 3 mm por donde se inserta la pasta de juntas. Este sistema no utiliza cinta de papel. La pasta de juntas se aplica en las cavidades de las placas y una masilla elástica en los encuentros. Atornillada a cada lado de una estructura metálica de acero galvanizado formada por canales de 100 mm y montantes de 51x99x49 mm con una modulación de 600 mm entre ejes, dando un ancho total de tabique de 139 mm. Incluida parte proporcional del resto de materiales: tornillería, pasta de juntas, masilla para encuentros perimetrales, fijaciones, junta estanca, etc. Montaje según norma de instalación UNE 102043 y exigencias del CTE. | J13: Tabique formado por una placa HIDRO de 20 mm de espesor compuesta por yeso natural, fibra de vidrio y aditivos inorgánicos que le aportan alta dureza y resistencia mecánica. Incorpora tratamiento hidrófugo, disminuyendo así su capacidad de absorción de agua (menor al 5%). Idónea para proteger las estancias de los efectos adversos de la humedad. Reacción al fuego: EUROCLASE A1. Sistema de galces desiguales: las placas encajan entre ellas dejando una entrecalle de 3 mm por donde se inserta la pasta de juntas. Este sistema no utiliza cinta de papel. La pasta de juntas se aplica en las cavidades de las placas y una masilla elástica en los encuentros. Atornillada a cada lado de una estructura metálica de acero galvanizado formada por canales de 100 mm y montantes de 51x99x49 mm con una modulación de 600 mm entre ejes, dando un ancho total de tabique de 139 mm. Incluida parte proporcional del resto de materiales: tornillería, pasta de juntas, masilla para encuentros perimetrales, fijaciones, junta estanca, etc. Montaje según norma de instalación UNE 102043 y exigencias del CTE. | K13: Tabique formado por una placa FUEGO de 20 mm de espesor compuesta por yeso natural, fibra de vidrio y aditivos inorgánicos que le aportan alta dureza y resistencia mecánica. Incorpora perlita y un aumento en la densidad que la hace idónea para un excelente comportamiento y resistencia frente al fuego. Reacción al fuego: EUROCLASE A1. Sistema de galces desiguales: las placas encajan entre ellas dejando una entrecalle de 3 mm por donde se inserta la pasta de juntas. Este sistema no utiliza cinta de papel. La pasta de juntas se aplica en las cavidades de las placas y una masilla elástica en los encuentros. Atornillada a cada lado de una estructura metálica de acero galvanizado formada por canales de 100 mm y montantes de 51x99x49 mm con una modulación de 600 mm entre ejes, dando un ancho total de tabique de 139 mm. Incluida parte proporcional del resto de materiales: tornillería, pasta de juntas, masilla para encuentros perimetrales, fijaciones, junta estanca, etc. Montaje según norma de instalación UNE 102043 y exigencias del CTE. | L13: Tabique formado por una placa RESIST de 20 mm de espesor compuesta por yeso natural, fibra de vidrio y aditivos inorgánicos que le aportan alta dureza y resistencia mecánica. Con mayor cantidad de fibra de vidrio y dosificación modificada, aumenta su densidad, mejorando notablemente la resistencia mecánica. Idónea para lugares con altas exigencias en cuanto a deterioro y desgaste. Reacción al fuego: EUROCLASE A1. Sistema de galces desiguales: las placas encajan entre ellas dejando una entrecalle de 3 mm por donde se inserta la pasta de juntas. Este sistema no utiliza cinta de papel. La pasta de juntas se aplica en las cavidades de las placas y una masilla elástica en los encuentros. Atornillada a cada lado de una estructura metálica de acero galvanizado formada por canales de 100 mm y montantes de 51x99x49 mm con una modulación de 600 mm entre ejes, dando un ancho total de tabique de 139 mm. Incluida parte proporcional del resto de materiales: tornillería, pasta de juntas, masilla para encuentros perimetrales, fijaciones, junta estanca, etc. Montaje según norma de instalación UNE 102043 y exigencias del CTE. | M13: Tabique formado por una placa HIDROPLUS de 20 mm de espesor compuesta por yeso natural, fibra de vidrio y aditivos inorgánicos que le aportan alta dureza y resistencia mecánica. Incorpora tratamiento hidrófugo y un aumento en su densidad, características claves para una elevada resistencia a la humedad (absorción de agua menor al 3%) y una gran resistencia mecánica. Idónea para zonas de intemperie. Reacción al fuego: EUROCLASE A1. Sistema de galces desiguales: las placas encajan entre ellas dejando una entrecalle de 3 mm por donde se inserta la pasta de juntas. Este sistema no utiliza cinta de papel. La pasta de juntas se aplica en las cavidades de las placas y una masilla elástica en los encuentros. Atornillada a cada lado de una estructura metálica de acero galvanizado formada por canales de 100 mm y montantes de 51x99x49 mm con una modulación de 600 mm entre ejes, dando un ancho total de tabique de 139 mm. Incluida parte proporcional del resto de materiales: tornillería, pasta de juntas, masilla para encuentros perimetrales, fijaciones, junta estanca, etc. Montaje según norma de instalación UNE 102043 y exigencias del CTE. | N13: Tabique formado por una placa SUPREM de 20 mm de espesor compuesta por yeso natural, fibra de vidrio y aditivos inorgánicos que le aportan alta dureza y resistencia mecánica. Incorpora tratamiento hidrófugo, perlita y un aumento en la densidad para conseguir soluciones constructivas que cumplan, altos requisitos frente al fuego y una capacidad reducida de absorción de agua. Reacción al fuego: EUROCLASE A1. Sistema de galces desiguales: las placas encajan entre ellas dejando una entrecalle de 3 mm por donde se inserta la pasta de juntas. Este sistema no utiliza cinta de papel. La pasta de juntas se aplica en las cavidades de las placas y una masilla elástica en los encuentros. Atornillada a cada lado de una estructura metálica de acero galvanizado formada por canales de 100 mm y montantes de 51x99x49 mm con una modulación de 600 mm entre ejes, dando un ancho total de tabique de 139 mm. Incluida parte proporcional del resto de materiales: tornillería, pasta de juntas, masilla para encuentros perimetrales, fijaciones, junta estanca, etc. Montaje según norma de instalación UNE 102043 y exigencias del CTE.
C14: =F14*100+G14*100+H14*2 -> 44926 | D14: 1.1.10 | E14: TABIQUE ATT® 75/400 (49) [13+49+13] | F14: 400 | G14: 49 | H14: 13 | I14: Tabique formado por una placa BASIC de 13 mm de espesor compuesta por yeso natural, fibra de vidrio y aditivos inorgánicos que le aportan alta dureza y resistencia mecánica. Reacción al fuego: EUROCLASE A1. Sistema de galces desiguales: las placas encajan entre ellas dejando una entrecalle de 3 mm por donde se inserta la pasta de juntas. Este sistema no utiliza cinta de papel. La pasta de juntas se aplica en las cavidades de las placas y una masilla elástica en los encuentros. Atornillada a cada lado de una estructura metálica de acero galvanizado formada por canales de 50 mm y montantes de 51x49x49 mm con una modulación de 400 mm entre ejes, dando un ancho total de tabique de 75 mm. Incluida parte proporcional del resto de materiales: tornillería, pasta de juntas, masilla para encuentros perimetrales, fijaciones, junta estanca, etc. Montaje según norma de instalación UNE 102043 y exigencias del CTE. | J14: Tabique formado por una placa HIDRO de 13 mm de espesor compuesta por yeso natural, fibra de vidrio y aditivos inorgánicos que le aportan alta dureza y resistencia mecánica. Incorpora tratamiento hidrófugo, disminuyendo así su capacidad de absorción de agua (menor al 5%). Idónea para proteger las estancias de los efectos adversos de la humedad. Reacción al fuego: EUROCLASE A1. Sistema de galces desiguales: las placas encajan entre ellas dejando una entrecalle de 3 mm por donde se inserta la pasta de juntas. Este sistema no utiliza cinta de papel. La pasta de juntas se aplica en las cavidades de las placas y una masilla elástica en los encuentros. Atornillada a cada lado de una estructura metálica de acero galvanizado formada por canales de 50 mm y montantes de 51x49x49 mm con una modulación de 400 mm entre ejes, dando un ancho total de tabique de 75 mm. Incluida parte proporcional del resto de materiales: tornillería, pasta de juntas, masilla para encuentros perimetrales, fijaciones, junta estanca, etc. Montaje según norma de instalación UNE 102043 y exigencias del CTE. | K14: Tabique formado por una placa FUEGO de 13 mm de espesor compuesta por yeso natural, fibra de vidrio y aditivos inorgánicos que le aportan alta dureza y resistencia mecánica. Incorpora perlita y un aumento en la densidad que la hace idónea para un excelente comportamiento y resistencia frente al fuego. Reacción al fuego: EUROCLASE A1. Sistema de galces desiguales: las placas encajan entre ellas dejando una entrecalle de 3 mm por donde se inserta la pasta de juntas. Este sistema no utiliza cinta de papel. La pasta de juntas se aplica en las cavidades de las placas y una masilla elástica en los encuentros. Atornillada a cada lado de una estructura metálica de acero galvanizado formada por canales de 50 mm y montantes de 51x49x49 mm con una modulación de 400 mm entre ejes, dando un ancho total de tabique de 75 mm. Incluida parte proporcional del resto de materiales: tornillería, pasta de juntas, masilla para encuentros perimetrales, fijaciones, junta estanca, etc. Montaje según norma de instalación UNE 102043 y exigencias del CTE. | L14: Tabique formado por una placa RESIST de 13 mm de espesor compuesta por yeso natural, fibra de vidrio y aditivos inorgánicos que le aportan alta dureza y resistencia mecánica. Con mayor cantidad de fibra de vidrio y dosificación modificada, aumenta su densidad, mejorando notablemente la resistencia mecánica. Idónea para lugares con altas exigencias en cuanto a deterioro y desgaste. Reacción al fuego: EUROCLASE A1. Sistema de galces desiguales: las placas encajan entre ellas dejando una entrecalle de 3 mm por donde se inserta la pasta de juntas. Este sistema no utiliza cinta de papel. La pasta de juntas se aplica en las cavidades de las placas y una masilla elástica en los encuentros. Atornillada a cada lado de una estructura metálica de acero galvanizado formada por canales de 50 mm y montantes de 51x49x49 mm con una modulación de 400 mm entre ejes, dando un ancho total de tabique de 75 mm. Incluida parte proporcional del resto de materiales: tornillería, pasta de juntas, masilla para encuentros perimetrales, fijaciones, junta estanca, etc. Montaje según norma de instalación UNE 102043 y exigencias del CTE. | M14: Tabique formado por una placa HIDROPLUS de 13 mm de espesor compuesta por yeso natural, fibra de vidrio y aditivos inorgánicos que le aportan alta dureza y resistencia mecánica. Incorpora tratamiento hidrófugo y un aumento en su densidad, características claves para una elevada resistencia a la humedad (absorción de agua menor al 3%) y una gran resistencia mecánica. Idónea para zonas de intemperie. Reacción al fuego: EUROCLASE A1. Sistema de galces desiguales: las placas encajan entre ellas dejando una entrecalle de 3 mm por donde se inserta la pasta de juntas. Este sistema no utiliza cinta de papel. La pasta de juntas se aplica en las cavidades de las placas y una masilla elástica en los encuentros. Atornillada a cada lado de una estructura metálica de acero galvanizado formada por canales de 50 mm y montantes de 51x49x49 mm con una modulación de 400 mm entre ejes, dando un ancho total de tabique de 75 mm. Incluida parte proporcional del resto de materiales: tornillería, pasta de juntas, masilla para encuentros perimetrales, fijaciones, junta estanca, etc. Montaje según norma de instalación UNE 102043 y exigencias del CTE. | N14: Tabique formado por una placa SUPREM de 13 mm de espesor compuesta por yeso natural, fibra de vidrio y aditivos inorgánicos que le aportan alta dureza y resistencia mecánica. Incorpora tratamiento hidrófugo, perlita y un aumento en la densidad para conseguir soluciones constructivas que cumplan, altos requisitos frente al fuego y una capacidad reducida de absorción de agua. Reacción al fuego: EUROCLASE A1. Sistema de galces desiguales: las placas encajan entre ellas dejando una entrecalle de 3 mm por donde se inserta la pasta de juntas. Este sistema no utiliza cinta de papel. La pasta de juntas se aplica en las cavidades de las placas y una masilla elástica en los encuentros. Atornillada a cada lado de una estructura metálica de acero galvanizado formada por canales de 50 mm y montantes de 51x49x49 mm con una modulación de 400 mm entre ejes, dando un ancho total de tabique de 75 mm. Incluida parte proporcional del resto de materiales: tornillería, pasta de juntas, masilla para encuentros perimetrales, fijaciones, junta estanca, etc. Montaje según norma de instalación UNE 102043 y exigencias del CTE.
C15: =F15*100+G15*100+H15*2 -> 44930 | D15: 1.1.11 | E15: TABIQUE ATT® 79/400 (49) [15+49+15] | F15: 400 | G15: 49 | H15: 15 | I15: Tabique formado por una placa BASIC de 15 mm de espesor compuesta por yeso natural, fibra de vidrio y aditivos inorgánicos que le aportan alta dureza y resistencia mecánica. Reacción al fuego: EUROCLASE A1. Sistema de galces desiguales: las placas encajan entre ellas dejando una entrecalle de 3 mm por donde se inserta la pasta de juntas. Este sistema no utiliza cinta de papel. La pasta de juntas se aplica en las cavidades de las placas y una masilla elástica en los encuentros. Atornillada a cada lado de una estructura metálica de acero galvanizado formada por canales de 50 mm y montantes de 51x49x49 mm con una modulación de 400 mm entre ejes, dando un ancho total de tabique de 79 mm. Incluida parte proporcional del resto de materiales: tornillería, pasta de juntas, masilla para encuentros perimetrales, fijaciones, junta estanca, etc. Montaje según norma de instalación UNE 102043 y exigencias del CTE. | J15: Tabique formado por una placa HIDRO de 15 mm de espesor compuesta por yeso natural, fibra de vidrio y aditivos inorgánicos que le aportan alta dureza y resistencia mecánica. Incorpora tratamiento hidrófugo, disminuyendo así su capacidad de absorción de agua (menor al 5%). Idónea para proteger las estancias de los efectos adversos de la humedad. Reacción al fuego: EUROCLASE A1. Sistema de galces desiguales: las placas encajan entre ellas dejando una entrecalle de 3 mm por donde se inserta la pasta de juntas. Este sistema no utiliza cinta de papel. La pasta de juntas se aplica en las cavidades de las placas y una masilla elástica en los encuentros. Atornillada a cada lado de una estructura metálica de acero galvanizado formada por canales de 50 mm y montantes de 51x49x49 mm con una modulación de 400 mm entre ejes, dando un ancho total de tabique de 79 mm. Incluida parte proporcional del resto de materiales: tornillería, pasta de juntas, masilla para encuentros perimetrales, fijaciones, junta estanca, etc. Montaje según norma de instalación UNE 102043 y exigencias del CTE. | K15: Tabique formado por una placa FUEGO de 15 mm de espesor compuesta por yeso natural, fibra de vidrio y aditivos inorgánicos que le aportan alta dureza y resistencia mecánica. Incorpora perlita y un aumento en la densidad que la hace idónea para un excelente comportamiento y resistencia frente al fuego. Reacción al fuego: EUROCLASE A1. Sistema de galces desiguales: las placas encajan entre ellas dejando una entrecalle de 3 mm por donde se inserta la pasta de juntas. Este sistema no utiliza cinta de papel. La pasta de juntas se aplica en las cavidades de las placas y una masilla elástica en los encuentros. Atornillada a cada lado de una estructura metálica de acero galvanizado formada por canales de 50 mm y montantes de 51x49x49 mm con una modulación de 400 mm entre ejes, dando un ancho total de tabique de 79 mm. Incluida parte proporcional del resto de materiales: tornillería, pasta de juntas, masilla para encuentros perimetrales, fijaciones, junta estanca, etc. Montaje según norma de instalación UNE 102043 y exigencias del CTE. | L15: Tabique formado por una placa RESIST de 15 mm de espesor compuesta por yeso natural, fibra de vidrio y aditivos inorgánicos que le aportan alta dureza y resistencia mecánica. Con mayor cantidad de fibra de vidrio y dosificación modificada, aumenta su densidad, mejorando notablemente la resistencia mecánica. Idónea para lugares con altas exigencias en cuanto a deterioro y desgaste. Reacción al fuego: EUROCLASE A1. Sistema de galces desiguales: las placas encajan entre ellas dejando una entrecalle de 3 mm por donde se inserta la pasta de juntas. Este sistema no utiliza cinta de papel. La pasta de juntas se aplica en las cavidades de las placas y una masilla elástica en los encuentros. Atornillada a cada lado de una estructura metálica de acero galvanizado formada por canales de 50 mm y montantes de 51x49x49 mm con una modulación de 400 mm entre ejes, dando un ancho total de tabique de 79 mm. Incluida parte proporcional del resto de materiales: tornillería, pasta de juntas, masilla para encuentros perimetrales, fijaciones, junta estanca, etc. Montaje según norma de instalación UNE 102043 y exigencias del CTE. | M15: Tabique formado por una placa HIDROPLUS de 15 mm de espesor compuesta por yeso natural, fibra de vidrio y aditivos inorgánicos que le aportan alta dureza y resistencia mecánica. Incorpora tratamiento hidrófugo y un aumento en su densidad, características claves para una elevada resistencia a la humedad (absorción de agua menor al 3%) y una gran resistencia mecánica. Idónea para zonas de intemperie. Reacción al fuego: EUROCLASE A1. Sistema de galces desiguales: las placas encajan entre ellas dejando una entrecalle de 3 mm por donde se inserta la pasta de juntas. Este sistema no utiliza cinta de papel. La pasta de juntas se aplica en las cavidades de las placas y una masilla elástica en los encuentros. Atornillada a cada lado de una estructura metálica de acero galvanizado formada por canales de 50 mm y montantes de 51x49x49 mm con una modulación de 400 mm entre ejes, dando un ancho total de tabique de 79 mm. Incluida parte proporcional del resto de materiales: tornillería, pasta de juntas, masilla para encuentros perimetrales, fijaciones, junta estanca, etc. Montaje según norma de instalación UNE 102043 y exigencias del CTE. | N15: Tabique formado por una placa SUPREM de 15 mm de espesor compuesta por yeso natural, fibra de vidrio y aditivos inorgánicos que le aportan alta dureza y resistencia mecánica. Incorpora tratamiento hidrófugo, perlita y un aumento en la densidad para conseguir soluciones constructivas que cumplan, altos requisitos frente al fuego y una capacidad reducida de absorción de agua. Reacción al fuego: EUROCLASE A1. Sistema de galces desiguales: las placas encajan entre ellas dejando una entrecalle de 3 mm por donde se inserta la pasta de juntas. Este sistema no utiliza cinta de papel. La pasta de juntas se aplica en las cavidades de las placas y una masilla elástica en los encuentros. Atornillada a cada lado de una estructura metálica de acero galvanizado formada por canales de 50 mm y montantes de 51x49x49 mm con una modulación de 400 mm entre ejes, dando un ancho total de tabique de 79 mm. Incluida parte proporcional del resto de materiales: tornillería, pasta de juntas, masilla para encuentros perimetrales, fijaciones, junta estanca, etc. Montaje según norma de instalación UNE 102043 y exigencias del CTE.
C16: 44940 | D16: 1.1.12 | E16: TABIQUE ATT® 89/400 (49) [20+49+20] | F16: 400 | G16: 49 | H16: 20 | I16: Tabique formado por una placa BASIC de 20 mm de espesor compuesta por yeso natural, fibra de vidrio y aditivos inorgánicos que le aportan alta dureza y resistencia mecánica. Reacción al fuego: EUROCLASE A1. Sistema de galces desiguales: las placas encajan entre ellas dejando una entrecalle de 3 mm por donde se inserta la pasta de juntas. Este sistema no utiliza cinta de papel. La pasta de juntas se aplica en las cavidades de las placas y una masilla elástica en los encuentros. Atornillada a cada lado de una estructura metálica de acero galvanizado formada por canales de 50 mm y montantes de 51x49x49 mm con una modulación de 400 mm entre ejes, dando un ancho total de tabique de 89 mm. Incluida parte proporcional del resto de materiales: tornillería, pasta de juntas, masilla para encuentros perimetrales, fijaciones, junta estanca, etc. Montaje según norma de instalación UNE 102043 y exigencias del CTE. | J16: Tabique formado por una placa HIDRO de 20 mm de espesor compuesta por yeso natural, fibra de vidrio y aditivos inorgánicos que le aportan alta dureza y resistencia mecánica. Incorpora tratamiento hidrófugo, disminuyendo así su capacidad de absorción de agua (menor al 5%). Idónea para proteger las estancias de los efectos adversos de la humedad. Reacción al fuego: EUROCLASE A1. Sistema de galces desiguales: las placas encajan entre ellas dejando una entrecalle de 3 mm por donde se inserta la pasta de juntas. Este sistema no utiliza cinta de papel. La pasta de juntas se aplica en las cavidades de las placas y una masilla elástica en los encuentros. Atornillada a cada lado de una estructura metálica de acero galvanizado formada por canales de 50 mm y montantes de 51x49x49 mm con una modulación de 400 mm entre ejes, dando un ancho total de tabique de 89 mm. Incluida parte proporcional del resto de materiales: tornillería, pasta de juntas, masilla para encuentros perimetrales, fijaciones, junta estanca, etc. Montaje según norma de instalación UNE 102043 y exigencias del CTE. | K16: Tabique formado por una placa FUEGO de 20 mm de espesor compuesta por yeso natural, fibra de vidrio y aditivos inorgánicos que le aportan alta dureza y resistencia mecánica. Incorpora perlita y un aumento en la densidad que la hace idónea para un excelente comportamiento y resistencia frente al fuego. Reacción al fuego: EUROCLASE A1. Sistema de galces desiguales: las placas encajan entre ellas dejando una entrecalle de 3 mm por donde se inserta la pasta de juntas. Este sistema no utiliza cinta de papel. La pasta de juntas se aplica en las cavidades de las placas y una masilla elástica en los encuentros. Atornillada a cada lado de una estructura metálica de acero galvanizado formada por canales de 50 mm y montantes de 51x49x49 mm con una modulación de 400 mm entre ejes, dando un ancho total de tabique de 89 mm. Incluida parte proporcional del resto de materiales: tornillería, pasta de juntas, masilla para encuentros perimetrales, fijaciones, junta estanca, etc. Montaje según norma de instalación UNE 102043 y exigencias del CTE. | L16: Tabique formado por una placa RESIST de 20 mm de espesor compuesta por yeso natural, fibra de vidrio y aditivos inorgánicos que le aportan alta dureza y resistencia mecánica. Con mayor cantidad de fibra de vidrio y dosificación modificada, aumenta su densidad, mejorando notablemente la resistencia mecánica. Idónea para lugares con altas exigencias en cuanto a deterioro y desgaste. Reacción al fuego: EUROCLASE A1. Sistema de galces desiguales: las placas encajan entre ellas dejando una entrecalle de 3 mm por donde se inserta la pasta de juntas. Este sistema no utiliza cinta de papel. La pasta de juntas se aplica en las cavidades de las placas y una masilla elástica en los encuentros. Atornillada a cada lado de una estructura metálica de acero galvanizado formada por canales de 50 mm y montantes de 51x49x49 mm con una modulación de 400 mm entre ejes, dando un ancho total de tabique de 89 mm. Incluida parte proporcional del resto de materiales: tornillería, pasta de juntas, masilla para encuentros perimetrales, fijaciones, junta estanca, etc. Montaje según norma de instalación UNE 102043 y exigencias del CTE. | M16: Tabique formado por una placa HIDROPLUS de 20 mm de espesor compuesta por yeso natural, fibra de vidrio y aditivos inorgánicos que le aportan alta dureza y resistencia mecánica. Incorpora tratamiento hidrófugo y un aumento en su densidad, características claves para una elevada resistencia a la humedad (absorción de agua menor al 3%) y una gran resistencia mecánica. Idónea para zonas de intemperie. Reacción al fuego: EUROCLASE A1. Sistema de galces desiguales: las placas encajan entre ellas dejando una entrecalle de 3 mm por donde se inserta la pasta de juntas. Este sistema no utiliza cinta de papel. La pasta de juntas se aplica en las cavidades de las placas y una masilla elástica en los encuentros. Atornillada a cada lado de una estructura metálica de acero galvanizado formada por canales de 50 mm y montantes de 51x49x49 mm con una modulación de 400 mm entre ejes, dando un ancho total de tabique de 89 mm. Incluida parte proporcional del resto de materiales: tornillería, pasta de juntas, masilla para encuentros perimetrales, fijaciones, junta estanca, etc. Montaje según norma de instalación UNE 102043 y exigencias del CTE. | N16: Tabique formado por una placa SUPREM de 20 mm de espesor compuesta por yeso natural, fibra de vidrio y aditivos inorgánicos que le aportan alta dureza y resistencia mecánica. Incorpora tratamiento hidrófugo, perlita y un aumento en la densidad para conseguir soluciones constructivas que cumplan, altos requisitos frente al fuego y una capacidad reducida de absorción de agua. Reacción al fuego: EUROCLASE A1. Sistema de galces desiguales: las placas encajan entre ellas dejando una entrecalle de 3 mm por donde se inserta la pasta de juntas. Este sistema no utiliza cinta de papel. La pasta de juntas se aplica en las cavidades de las placas y una masilla elástica en los encuentros. Atornillada a cada lado de una estructura metálica de acero galvanizado formada por canales de 50 mm y montantes de 51x49x49 mm con una modulación de 400 mm entre ejes, dando un ancho total de tabique de 89 mm. Incluida parte proporcional del resto de materiales: tornillería, pasta de juntas, masilla para encuentros perimetrales, fijaciones, junta estanca, etc. Montaje según norma de instalación UNE 102043 y exigencias del CTE.
C17: 47426 | D17: 1.1.13 | E17: TABIQUE ATT® 100/400 (74) [13+74+13] | F17: 400 | G17: 74 | H17: 13 | I17: Tabique formado por una placa BASIC de 13 mm de espesor compuesta por yeso natural, fibra de vidrio y aditivos inorgánicos que le aportan alta dureza y resistencia mecánica. Reacción al fuego: EUROCLASE A1. Sistema de galces desiguales: las placas encajan entre ellas dejando una entrecalle de 3 mm por donde se inserta la pasta de juntas. Este sistema no utiliza cinta de papel. La pasta de juntas se aplica en las cavidades de las placas y una masilla elástica en los encuentros. Atornillada a cada lado de una estructura metálica de acero galvanizado formada por canales de 75 mm y montantes de 51x74x49 mm con una modulación de 400 mm entre ejes, dando un ancho total de tabique de 100 mm. Incluida parte proporcional del resto de materiales: tornillería, pasta de juntas, masilla para encuentros perimetrales, fijaciones, junta estanca, etc. Montaje según norma de instalación UNE 102043 y exigencias del CTE. | J17: Tabique formado por una placa HIDRO de 13 mm de espesor compuesta por yeso natural, fibra de vidrio y aditivos inorgánicos que le aportan alta dureza y resistencia mecánica. Incorpora tratamiento hidrófugo, disminuyendo así su capacidad de absorción de agua (menor al 5%). Idónea para proteger las estancias de los efectos adversos de la humedad. Reacción al fuego: EUROCLASE A1. Sistema de galces desiguales: las placas encajan entre ellas dejando una entrecalle de 3 mm por donde se inserta la pasta de juntas. Este sistema no utiliza cinta de papel. La pasta de juntas se aplica en las cavidades de las placas y una masilla elástica en los encuentros. Atornillada a cada lado de una estructura metálica de acero galvanizado formada por canales de 75 mm y montantes de 51x74x49 mm con una modulación de 400 mm entre ejes, dando un ancho total de tabique de 100 mm. Incluida parte proporcional del resto de materiales: tornillería, pasta de juntas, masilla para encuentros perimetrales, fijaciones, junta estanca, etc. Montaje según norma de instalación UNE 102043 y exigencias del CTE. | K17: Tabique formado por una placa FUEGO de 13 mm de espesor compuesta por yeso natural, fibra de vidrio y aditivos inorgánicos que le aportan alta dureza y resistencia mecánica. Incorpora perlita y un aumento en la densidad que la hace idónea para un excelente comportamiento y resistencia frente al fuego. Reacción al fuego: EUROCLASE A1. Sistema de galces desiguales: las placas encajan entre ellas dejando una entrecalle de 3 mm por donde se inserta la pasta de juntas. Este sistema no utiliza cinta de papel. La pasta de juntas se aplica en las cavidades de las placas y una masilla elástica en los encuentros. Atornillada a cada lado de una estructura metálica de acero galvanizado formada por canales de 75 mm y montantes de 51x74x49 mm con una modulación de 400 mm entre ejes, dando un ancho total de tabique de 100 mm. Incluida parte proporcional del resto de materiales: tornillería, pasta de juntas, masilla para encuentros perimetrales, fijaciones, junta estanca, etc. Montaje según norma de instalación UNE 102043 y exigencias del CTE. | L17: Tabique formado por una placa RESIST de 13 mm de espesor compuesta por yeso natural, fibra de vidrio y aditivos inorgánicos que le aportan alta dureza y resistencia mecánica. Con mayor cantidad de fibra de vidrio y dosificación modificada, aumenta su densidad, mejorando notablemente la resistencia mecánica. Idónea para lugares con altas exigencias en cuanto a deterioro y desgaste. Reacción al fuego: EUROCLASE A1. Sistema de galces desiguales: las placas encajan entre ellas dejando una entrecalle de 3 mm por donde se inserta la pasta de juntas. Este sistema no utiliza cinta de papel. La pasta de juntas se aplica en las cavidades de las placas y una masilla elástica en los encuentros. Atornillada a cada lado de una estructura metálica de acero galvanizado formada por canales de 75 mm y montantes de 51x74x49 mm con una modulación de 400 mm entre ejes, dando un ancho total de tabique de 100 mm. Incluida parte proporcional del resto de materiales: tornillería, pasta de juntas, masilla para encuentros perimetrales, fijaciones, junta estanca, etc. Montaje según norma de instalación UNE 102043 y exigencias del CTE. | M17: Tabique formado por una placa HIDROPLUS de 13 mm de espesor compuesta por yeso natural, fibra de vidrio y aditivos inorgánicos que le aportan alta dureza y resistencia mecánica. Incorpora tratamiento hidrófugo y un aumento en su densidad, características claves para una elevada resistencia a la humedad (absorción de agua menor al 3%) y una gran resistencia mecánica. Idónea para zonas de intemperie. Reacción al fuego: EUROCLASE A1. Sistema de galces desiguales: las placas encajan entre ellas dejando una entrecalle de 3 mm por donde se inserta la pasta de juntas. Este sistema no utiliza cinta de papel. La pasta de juntas se aplica en las cavidades de las placas y una masilla elástica en los encuentros. Atornillada a cada lado de una estructura metálica de acero galvanizado formada por canales de 75 mm y montantes de 51x74x49 mm con una modulación de 400 mm entre ejes, dando un ancho total de tabique de 100 mm. Incluida parte proporcional del resto de materiales: tornillería, pasta de juntas, masilla para encuentros perimetrales, fijaciones, junta estanca, etc. Montaje según norma de instalación UNE 102043 y exigencias del CTE. | N17: Tabique formado por una placa SUPREM de 13 mm de espesor compuesta por yeso natural, fibra de vidrio y aditivos inorgánicos que le aportan alta dureza y resistencia mecánica. Incorpora tratamiento hidrófugo, perlita y un aumento en la densidad para conseguir soluciones constructivas que cumplan, altos requisitos frente al fuego y una capacidad reducida de absorción de agua. Reacción al fuego: EUROCLASE A1. Sistema de galces desiguales: las placas encajan entre ellas dejando una entrecalle de 3 mm por donde se inserta la pasta de juntas. Este sistema no utiliza cinta de papel. La pasta de juntas se aplica en las cavidades de las placas y una masilla elástica en los encuentros. Atornillada a cada lado de una estructura metálica de acero galvanizado formada por canales de 75 mm y montantes de 51x74x49 mm con una modulación de 400 mm entre ejes, dando un ancho total de tabique de 100 mm. Incluida parte proporcional del resto de materiales: tornillería, pasta de juntas, masilla para encuentros perimetrales, fijaciones, junta estanca, etc. Montaje según norma de instalación UNE 102043 y exigencias del CTE.
C18: 47430 | D18: 1.1.14 | E18: TABIQUE ATT® 104/400 (74) [15+74+15] | F18: 400 | G18: 74 | H18: 15 | I18: Tabique formado por una placa BASIC de 15 mm de espesor compuesta por yeso natural, fibra de vidrio y aditivos inorgánicos que le aportan alta dureza y resistencia mecánica. Reacción al fuego: EUROCLASE A1. Sistema de galces desiguales: las placas encajan entre ellas dejando una entrecalle de 3 mm por donde se inserta la pasta de juntas. Este sistema no utiliza cinta de papel. La pasta de juntas se aplica en las cavidades de las placas y una masilla elástica en los encuentros. Atornillada a cada lado de una estructura metálica de acero galvanizado formada por canales de 75 mm y montantes de 51x74x49 mm con una modulación de 400 mm entre ejes, dando un ancho total de tabique de 104 mm. Incluida parte proporcional del resto de materiales: tornillería, pasta de juntas, masilla para encuentros perimetrales, fijaciones, junta estanca, etc. Montaje según norma de instalación UNE 102043 y exigencias del CTE. | J18: Tabique formado por una placa HIDRO de 15 mm de espesor compuesta por yeso natural, fibra de vidrio y aditivos inorgánicos que le aportan alta dureza y resistencia mecánica. Incorpora tratamiento hidrófugo, disminuyendo así su capacidad de absorción de agua (menor al 5%). Idónea para proteger las estancias de los efectos adversos de la humedad. Reacción al fuego: EUROCLASE A1. Sistema de galces desiguales: las placas encajan entre ellas dejando una entrecalle de 3 mm por donde se inserta la pasta de juntas. Este sistema no utiliza cinta de papel. La pasta de juntas se aplica en las cavidades de las placas y una masilla elástica en los encuentros. Atornillada a cada lado de una estructura metálica de acero galvanizado formada por canales de 75 mm y montantes de 51x74x49 mm con una modulación de 400 mm entre ejes, dando un ancho total de tabique de 104 mm. Incluida parte proporcional del resto de materiales: tornillería, pasta de juntas, masilla para encuentros perimetrales, fijaciones, junta estanca, etc. Montaje según norma de instalación UNE 102043 y exigencias del CTE. | K18: Tabique formado por una placa FUEGO de 15 mm de espesor compuesta por yeso natural, fibra de vidrio y aditivos inorgánicos que le aportan alta dureza y resistencia mecánica. Incorpora perlita y un aumento en la densidad que la hace idónea para un excelente comportamiento y resistencia frente al fuego. Reacción al fuego: EUROCLASE A1. Sistema de galces desiguales: las placas encajan entre ellas dejando una entrecalle de 3 mm por donde se inserta la pasta de juntas. Este sistema no utiliza cinta de papel. La pasta de juntas se aplica en las cavidades de las placas y una masilla elástica en los encuentros. Atornillada a cada lado de una estructura metálica de acero galvanizado formada por canales de 75 mm y montantes de 51x74x49 mm con una modulación de 400 mm entre ejes, dando un ancho total de tabique de 104 mm. Incluida parte proporcional del resto de materiales: tornillería, pasta de juntas, masilla para encuentros perimetrales, fijaciones, junta estanca, etc. Montaje según norma de instalación UNE 102043 y exigencias del CTE. | L18: Tabique formado por una placa RESIST de 15 mm de espesor compuesta por yeso natural, fibra de vidrio y aditivos inorgánicos que le aportan alta dureza y resistencia mecánica. Con mayor cantidad de fibra de vidrio y dosificación modificada, aumenta su densidad, mejorando notablemente la resistencia mecánica. Idónea para lugares con altas exigencias en cuanto a deterioro y desgaste. Reacción al fuego: EUROCLASE A1. Sistema de galces desiguales: las placas encajan entre ellas dejando una entrecalle de 3 mm por donde se inserta la pasta de juntas. Este sistema no utiliza cinta de papel. La pasta de juntas se aplica en las cavidades de las placas y una masilla elástica en los encuentros. Atornillada a cada lado de una estructura metálica de acero galvanizado formada por canales de 75 mm y montantes de 51x74x49 mm con una modulación de 400 mm entre ejes, dando un ancho total de tabique de 104 mm. Incluida parte proporcional del resto de materiales: tornillería, pasta de juntas, masilla para encuentros perimetrales, fijaciones, junta estanca, etc. Montaje según norma de instalación UNE 102043 y exigencias del CTE. | M18: Tabique formado por una placa HIDROPLUS de 15 mm de espesor compuesta por yeso natural, fibra de vidrio y aditivos inorgánicos que le aportan alta dureza y resistencia mecánica. Incorpora tratamiento hidrófugo y un aumento en su densidad, características claves para una elevada resistencia a la humedad (absorción de agua menor al 3%) y una gran resistencia mecánica. Idónea para zonas de intemperie. Reacción al fuego: EUROCLASE A1. Sistema de galces desiguales: las placas encajan entre ellas dejando una entrecalle de 3 mm por donde se inserta la pasta de juntas. Este sistema no utiliza cinta de papel. La pasta de juntas se aplica en las cavidades de las placas y una masilla elástica en los encuentros. Atornillada a cada lado de una estructura metálica de acero galvanizado formada por canales de 75 mm y montantes de 51x74x49 mm con una modulación de 400 mm entre ejes, dando un ancho total de tabique de 104 mm. Incluida parte proporcional del resto de materiales: tornillería, pasta de juntas, masilla para encuentros perimetrales, fijaciones, junta estanca, etc. Montaje según norma de instalación UNE 102043 y exigencias del CTE. | N18: Tabique formado por una placa SUPREM de 15 mm de espesor compuesta por yeso natural, fibra de vidrio y aditivos inorgánicos que le aportan alta dureza y resistencia mecánica. Incorpora tratamiento hidrófugo, perlita y un aumento en la densidad para conseguir soluciones constructivas que cumplan, altos requisitos frente al fuego y una capacidad reducida de absorción de agua. Reacción al fuego: EUROCLASE A1. Sistema de galces desiguales: las placas encajan entre ellas dejando una entrecalle de 3 mm por donde se inserta la pasta de juntas. Este sistema no utiliza cinta de papel. La pasta de juntas se aplica en las cavidades de las placas y una masilla elástica en los encuentros. Atornillada a cada lado de una estructura metálica de acero galvanizado formada por canales de 75 mm y montantes de 51x74x49 mm con una modulación de 400 mm entre ejes, dando un ancho total de tabique de 104 mm. Incluida parte proporcional del resto de materiales: tornillería, pasta de juntas, masilla para encuentros perimetrales, fijaciones, junta estanca, etc. Montaje según norma de instalación UNE 102043 y exigencias del CTE.
A19: PLACA TRIPLE | C19: 47440 | D19: 1.1.15 | E19: TABIQUE ATT® 114/400 (74) [20+74+20] | F19: 400 | G19: 74 | H19: 20 | I19: Tabique formado por una placa BASIC de 20 mm de espesor compuesta por yeso natural, fibra de vidrio y aditivos inorgánicos que le aportan alta dureza y resistencia mecánica. Reacción al fuego: EUROCLASE A1. Sistema de galces desiguales: las placas encajan entre ellas dejando una entrecalle de 3 mm por donde se inserta la pasta de juntas. Este sistema no utiliza cinta de papel. La pasta de juntas se aplica en las cavidades de las placas y una masilla elástica en los encuentros. Atornillada a cada lado de una estructura metálica de acero galvanizado formada por canales de 75 mm y montantes de 51x74x49 mm con una modulación de 400 mm entre ejes, dando un ancho total de tabique de 114 mm. Incluida parte proporcional del resto de materiales: tornillería, pasta de juntas, masilla para encuentros perimetrales, fijaciones, junta estanca, etc. Montaje según norma de instalación UNE 102043 y exigencias del CTE. | J19: Tabique formado por una placa HIDRO de 20 mm de espesor compuesta por yeso natural, fibra de vidrio y aditivos inorgánicos que le aportan alta dureza y resistencia mecánica. Incorpora tratamiento hidrófugo, disminuyendo así su capacidad de absorción de agua (menor al 5%). Idónea para proteger las estancias de los efectos adversos de la humedad. Reacción al fuego: EUROCLASE A1. Sistema de galces desiguales: las placas encajan entre ellas dejando una entrecalle de 3 mm por donde se inserta la pasta de juntas. Este sistema no utiliza cinta de papel. La pasta de juntas se aplica en las cavidades de las placas y una masilla elástica en los encuentros. Atornillada a cada lado de una estructura metálica de acero galvanizado formada por canales de 75 mm y montantes de 51x74x49 mm con una modulación de 400 mm entre ejes, dando un ancho total de tabique de 114 mm. Incluida parte proporcional del resto de materiales: tornillería, pasta de juntas, masilla para encuentros perimetrales, fijaciones, junta estanca, etc. Montaje según norma de instalación UNE 102043 y exigencias del CTE. | K19: Tabique formado por una placa FUEGO de 20 mm de espesor compuesta por yeso natural, fibra de vidrio y aditivos inorgánicos que le aportan alta dureza y resistencia mecánica. Incorpora perlita y un aumento en la densidad que la hace idónea para un excelente comportamiento y resistencia frente al fuego. Reacción al fuego: EUROCLASE A1. Sistema de galces desiguales: las placas encajan entre ellas dejando una entrecalle de 3 mm por donde se inserta la pasta de juntas. Este sistema no utiliza cinta de papel. La pasta de juntas se aplica en las cavidades de las placas y una masilla elástica en los encuentros. Atornillada a cada lado de una estructura metálica de acero galvanizado formada por canales de 75 mm y montantes de 51x74x49 mm con una modulación de 400 mm entre ejes, dando un ancho total de tabique de 114 mm. Incluida parte proporcional del resto de materiales: tornillería, pasta de juntas, masilla para encuentros perimetrales, fijaciones, junta estanca, etc. Montaje según norma de instalación UNE 102043 y exigencias del CTE. | L19: Tabique formado por una placa RESIST de 20 mm de espesor compuesta por yeso natural, fibra de vidrio y aditivos inorgánicos que le aportan alta dureza y resistencia mecánica. Con mayor cantidad de fibra de vidrio y dosificación modificada, aumenta su densidad, mejorando notablemente la resistencia mecánica. Idónea para lugares con altas exigencias en cuanto a deterioro y desgaste. Reacción al fuego: EUROCLASE A1. Sistema de galces desiguales: las placas encajan entre ellas dejando una entrecalle de 3 mm por donde se inserta la pasta de juntas. Este sistema no utiliza cinta de papel. La pasta de juntas se aplica en las cavidades de las placas y una masilla elástica en los encuentros. Atornillada a cada lado de una estructura metálica de acero galvanizado formada por canales de 75 mm y montantes de 51x74x49 mm con una modulación de 400 mm entre ejes, dando un ancho total de tabique de 114 mm. Incluida parte proporcional del resto de materiales: tornillería, pasta de juntas, masilla para encuentros perimetrales, fijaciones, junta estanca, etc. Montaje según norma de instalación UNE 102043 y exigencias del CTE. | M19: Tabique formado por una placa HIDROPLUS de 20 mm de espesor compuesta por yeso natural, fibra de vidrio y aditivos inorgánicos que le aportan alta dureza y resistencia mecánica. Incorpora tratamiento hidrófugo y un aumento en su densidad, características claves para una elevada resistencia a la humedad (absorción de agua menor al 3%) y una gran resistencia mecánica. Idónea para zonas de intemperie. Reacción al fuego: EUROCLASE A1. Sistema de galces desiguales: las placas encajan entre ellas dejando una entrecalle de 3 mm por donde se inserta la pasta de juntas. Este sistema no utiliza cinta de papel. La pasta de juntas se aplica en las cavidades de las placas y una masilla elástica en los encuentros. Atornillada a cada lado de una estructura metálica de acero galvanizado formada por canales de 75 mm y montantes de 51x74x49 mm con una modulación de 400 mm entre ejes, dando un ancho total de tabique de 114 mm. Incluida parte proporcional del resto de materiales: tornillería, pasta de juntas, masilla para encuentros perimetrales, fijaciones, junta estanca, etc. Montaje según norma de instalación UNE 102043 y exigencias del CTE. | N19: Tabique formado por una placa SUPREM de 20 mm de espesor compuesta por yeso natural, fibra de vidrio y aditivos inorgánicos que le aportan alta dureza y resistencia mecánica. Incorpora tratamiento hidrófugo, perlita y un aumento en la densidad para conseguir soluciones constructivas que cumplan, altos requisitos frente al fuego y una capacidad reducida de absorción de agua. Reacción al fuego: EUROCLASE A1. Sistema de galces desiguales: las placas encajan entre ellas dejando una entrecalle de 3 mm por donde se inserta la pasta de juntas. Este sistema no utiliza cinta de papel. La pasta de juntas se aplica en las cavidades de las placas y una masilla elástica en los encuentros. Atornillada a cada lado de una estructura metálica de acero galvanizado formada por canales de 75 mm y montantes de 51x74x49 mm con una modulación de 400 mm entre ejes, dando un ancho total de tabique de 114 mm. Incluida parte proporcional del resto de materiales: tornillería, pasta de juntas, masilla para encuentros perimetrales, fijaciones, junta estanca, etc. Montaje según norma de instalación UNE 102043 y exigencias del CTE.
C20: 49926 | D20: 1.1.16 | E20: TABIQUE ATT® 125/400 (99) [13+99+13] | F20: 400 | G20: 99 | H20: 13 | I20: Tabique formado por una placa BASIC de 13 mm de espesor compuesta por yeso natural, fibra de vidrio y aditivos inorgánicos que le aportan alta dureza y resistencia mecánica. Reacción al fuego: EUROCLASE A1. Sistema de galces desiguales: las placas encajan entre ellas dejando una entrecalle de 3 mm por donde se inserta la pasta de juntas. Este sistema no utiliza cinta de papel. La pasta de juntas se aplica en las cavidades de las placas y una masilla elástica en los encuentros. Atornillada a cada lado de una estructura metálica de acero galvanizado formada por canales de 100 mm y montantes de 51x99x49 mm con una modulación de 400 mm entre ejes, dando un ancho total de tabique de 125 mm. Incluida parte proporcional del resto de materiales: tornillería, pasta de juntas, masilla para encuentros perimetrales, fijaciones, junta estanca, etc. Montaje según norma de instalación UNE 102043 y exigencias del CTE. | J20: Tabique formado por una placa HIDRO de 13 mm de espesor compuesta por yeso natural, fibra de vidrio y aditivos inorgánicos que le aportan alta dureza y resistencia mecánica. Incorpora tratamiento hidrófugo, disminuyendo así su capacidad de absorción de agua (menor al 5%). Idónea para proteger las estancias de los efectos adversos de la humedad. Reacción al fuego: EUROCLASE A1. Sistema de galces desiguales: las placas encajan entre ellas dejando una entrecalle de 3 mm por donde se inserta la pasta de juntas. Este sistema no utiliza cinta de papel. La pasta de juntas se aplica en las cavidades de las placas y una masilla elástica en los encuentros. Atornillada a cada lado de una estructura metálica de acero galvanizado formada por canales de 100 mm y montantes de 51x99x49 mm con una modulación de 400 mm entre ejes, dando un ancho total de tabique de 125 mm. Incluida parte proporcional del resto de materiales: tornillería, pasta de juntas, masilla para encuentros perimetrales, fijaciones, junta estanca, etc. Montaje según norma de instalación UNE 102043 y exigencias del CTE. | K20: Tabique formado por una placa FUEGO de 13 mm de espesor compuesta por yeso natural, fibra de vidrio y aditivos inorgánicos que le aportan alta dureza y resistencia mecánica. Incorpora perlita y un aumento en la densidad que la hace idónea para un excelente comportamiento y resistencia frente al fuego. Reacción al fuego: EUROCLASE A1. Sistema de galces desiguales: las placas encajan entre ellas dejando una entrecalle de 3 mm por donde se inserta la pasta de juntas. Este sistema no utiliza cinta de papel. La pasta de juntas se aplica en las cavidades de las placas y una masilla elástica en los encuentros. Atornillada a cada lado de una estructura metálica de acero galvanizado formada por canales de 100 mm y montantes de 51x99x49 mm con una modulación de 400 mm entre ejes, dando un ancho total de tabique de 125 mm. Incluida parte proporcional del resto de materiales: tornillería, pasta de juntas, masilla para encuentros perimetrales, fijaciones, junta estanca, etc. Montaje según norma de instalación UNE 102043 y exigencias del CTE. | L20: Tabique formado por una placa RESIST de 13 mm de espesor compuesta por yeso natural, fibra de vidrio y aditivos inorgánicos que le aportan alta dureza y resistencia mecánica. Con mayor cantidad de fibra de vidrio y dosificación modificada, aumenta su densidad, mejorando notablemente la resistencia mecánica. Idónea para lugares con altas exigencias en cuanto a deterioro y desgaste. Reacción al fuego: EUROCLASE A1. Sistema de galces desiguales: las placas encajan entre ellas dejando una entrecalle de 3 mm por donde se inserta la pasta de juntas. Este sistema no utiliza cinta de papel. La pasta de juntas se aplica en las cavidades de las placas y una masilla elástica en los encuentros. Atornillada a cada lado de una estructura metálica de acero galvanizado formada por canales de 100 mm y montantes de 51x99x49 mm con una modulación de 400 mm entre ejes, dando un ancho total de tabique de 125 mm. Incluida parte proporcional del resto de materiales: tornillería, pasta de juntas, masilla para encuentros perimetrales, fijaciones, junta estanca, etc. Montaje según norma de instalación UNE 102043 y exigencias del CTE. | M20: Tabique formado por una placa HIDROPLUS de 13 mm de espesor compuesta por yeso natural, fibra de vidrio y aditivos inorgánicos que le aportan alta dureza y resistencia mecánica. Incorpora tratamiento hidrófugo y un aumento en su densidad, características claves para una elevada resistencia a la humedad (absorción de agua menor al 3%) y una gran resistencia mecánica. Idónea para zonas de intemperie. Reacción al fuego: EUROCLASE A1. Sistema de galces desiguales: las placas encajan entre ellas dejando una entrecalle de 3 mm por donde se inserta la pasta de juntas. Este sistema no utiliza cinta de papel. La pasta de juntas se aplica en las cavidades de las placas y una masilla elástica en los encuentros. Atornillada a cada lado de una estructura metálica de acero galvanizado formada por canales de 100 mm y montantes de 51x99x49 mm con una modulación de 400 mm entre ejes, dando un ancho total de tabique de 125 mm. Incluida parte proporcional del resto de materiales: tornillería, pasta de juntas, masilla para encuentros perimetrales, fijaciones, junta estanca, etc. Montaje según norma de instalación UNE 102043 y exigencias del CTE. | N20: Tabique formado por una placa SUPREM de 13 mm de espesor compuesta por yeso natural, fibra de vidrio y aditivos inorgánicos que le aportan alta dureza y resistencia mecánica. Incorpora tratamiento hidrófugo, perlita y un aumento en la densidad para conseguir soluciones constructivas que cumplan, altos requisitos frente al fuego y una capacidad reducida de absorción de agua. Reacción al fuego: EUROCLASE A1. Sistema de galces desiguales: las placas encajan entre ellas dejando una entrecalle de 3 mm por donde se inserta la pasta de juntas. Este sistema no utiliza cinta de papel. La pasta de juntas se aplica en las cavidades de las placas y una masilla elástica en los encuentros. Atornillada a cada lado de una estructura metálica de acero galvanizado formada por canales de 100 mm y montantes de 51x99x49 mm con una modulación de 400 mm entre ejes, dando un ancho total de tabique de 125 mm. Incluida parte proporcional del resto de materiales: tornillería, pasta de juntas, masilla para encuentros perimetrales, fijaciones, junta estanca, etc. Montaje según norma de instalación UNE 102043 y exigencias del CTE.
C21: 49930 | D21: 1.1.17 | E21: TABIQUE ATT® 129/400 (99) [15+99+15] | F21: 400 | G21: 99 | H21: 15 | I21: Tabique formado por una placa BASIC de 15 mm de espesor compuesta por yeso natural, fibra de vidrio y aditivos inorgánicos que le aportan alta dureza y resistencia mecánica. Reacción al fuego: EUROCLASE A1. Sistema de galces desiguales: las placas encajan entre ellas dejando una entrecalle de 3 mm por donde se inserta la pasta de juntas. Este sistema no utiliza cinta de papel. La pasta de juntas se aplica en las cavidades de las placas y una masilla elástica en los encuentros. Atornillada a cada lado de una estructura metálica de acero galvanizado formada por canales de 100 mm y montantes de 51x99x49 mm con una modulación de 400 mm entre ejes, dando un ancho total de tabique de 129 mm. Incluida parte proporcional del resto de materiales: tornillería, pasta de juntas, masilla para encuentros perimetrales, fijaciones, junta estanca, etc. Montaje según norma de instalación UNE 102043 y exigencias del CTE. | J21: Tabique formado por una placa HIDRO de 15 mm de espesor compuesta por yeso natural, fibra de vidrio y aditivos inorgánicos que le aportan alta dureza y resistencia mecánica. Incorpora tratamiento hidrófugo, disminuyendo así su capacidad de absorción de agua (menor al 5%). Idónea para proteger las estancias de los efectos adversos de la humedad. Reacción al fuego: EUROCLASE A1. Sistema de galces desiguales: las placas encajan entre ellas dejando una entrecalle de 3 mm por donde se inserta la pasta de juntas. Este sistema no utiliza cinta de papel. La pasta de juntas se aplica en las cavidades de las placas y una masilla elástica en los encuentros. Atornillada a cada lado de una estructura metálica de acero galvanizado formada por canales de 100 mm y montantes de 51x99x49 mm con una modulación de 400 mm entre ejes, dando un ancho total de tabique de 129 mm. Incluida parte proporcional del resto de materiales: tornillería, pasta de juntas, masilla para encuentros perimetrales, fijaciones, junta estanca, etc. Montaje según norma de instalación UNE 102043 y exigencias del CTE. | K21: Tabique formado por una placa FUEGO de 15 mm de espesor compuesta por yeso natural, fibra de vidrio y aditivos inorgánicos que le aportan alta dureza y resistencia mecánica. Incorpora perlita y un aumento en la densidad que la hace idónea para un excelente comportamiento y resistencia frente al fuego. Reacción al fuego: EUROCLASE A1. Sistema de galces desiguales: las placas encajan entre ellas dejando una entrecalle de 3 mm por donde se inserta la pasta de juntas. Este sistema no utiliza cinta de papel. La pasta de juntas se aplica en las cavidades de las placas y una masilla elástica en los encuentros. Atornillada a cada lado de una estructura metálica de acero galvanizado formada por canales de 100 mm y montantes de 51x99x49 mm con una modulación de 400 mm entre ejes, dando un ancho total de tabique de 129 mm. Incluida parte proporcional del resto de materiales: tornillería, pasta de juntas, masilla para encuentros perimetrales, fijaciones, junta estanca, etc. Montaje según norma de instalación UNE 102043 y exigencias del CTE. | L21: Tabique formado por una placa RESIST de 15 mm de espesor compuesta por yeso natural, fibra de vidrio y aditivos inorgánicos que le aportan alta dureza y resistencia mecánica. Con mayor cantidad de fibra de vidrio y dosificación modificada, aumenta su densidad, mejorando notablemente la resistencia mecánica. Idónea para lugares con altas exigencias en cuanto a deterioro y desgaste. Reacción al fuego: EUROCLASE A1. Sistema de galces desiguales: las placas encajan entre ellas dejando una entrecalle de 3 mm por donde se inserta la pasta de juntas. Este sistema no utiliza cinta de papel. La pasta de juntas se aplica en las cavidades de las placas y una masilla elástica en los encuentros. Atornillada a cada lado de una estructura metálica de acero galvanizado formada por canales de 100 mm y montantes de 51x99x49 mm con una modulación de 400 mm entre ejes, dando un ancho total de tabique de 129 mm. Incluida parte proporcional del resto de materiales: tornillería, pasta de juntas, masilla para encuentros perimetrales, fijaciones, junta estanca, etc. Montaje según norma de instalación UNE 102043 y exigencias del CTE. | M21: Tabique formado por una placa HIDROPLUS de 15 mm de espesor compuesta por yeso natural, fibra de vidrio y aditivos inorgánicos que le aportan alta dureza y resistencia mecánica. Incorpora tratamiento hidrófugo y un aumento en su densidad, características claves para una elevada resistencia a la humedad (absorción de agua menor al 3%) y una gran resistencia mecánica. Idónea para zonas de intemperie. Reacción al fuego: EUROCLASE A1. Sistema de galces desiguales: las placas encajan entre ellas dejando una entrecalle de 3 mm por donde se inserta la pasta de juntas. Este sistema no utiliza cinta de papel. La pasta de juntas se aplica en las cavidades de las placas y una masilla elástica en los encuentros. Atornillada a cada lado de una estructura metálica de acero galvanizado formada por canales de 100 mm y montantes de 51x99x49 mm con una modulación de 400 mm entre ejes, dando un ancho total de tabique de 129 mm. Incluida parte proporcional del resto de materiales: tornillería, pasta de juntas, masilla para encuentros perimetrales, fijaciones, junta estanca, etc. Montaje según norma de instalación UNE 102043 y exigencias del CTE. | N21: Tabique formado por una placa SUPREM de 15 mm de espesor compuesta por yeso natural, fibra de vidrio y aditivos inorgánicos que le aportan alta dureza y resistencia mecánica. Incorpora tratamiento hidrófugo, perlita y un aumento en la densidad para conseguir soluciones constructivas que cumplan, altos requisitos frente al fuego y una capacidad reducida de absorción de agua. Reacción al fuego: EUROCLASE A1. Sistema de galces desiguales: las placas encajan entre ellas dejando una entrecalle de 3 mm por donde se inserta la pasta de juntas. Este sistema no utiliza cinta de papel. La pasta de juntas se aplica en las cavidades de las placas y una masilla elástica en los encuentros. Atornillada a cada lado de una estructura metálica de acero galvanizado formada por canales de 100 mm y montantes de 51x99x49 mm con una modulación de 400 mm entre ejes, dando un ancho total de tabique de 129 mm. Incluida parte proporcional del resto de materiales: tornillería, pasta de juntas, masilla para encuentros perimetrales, fijaciones, junta estanca, etc. Montaje según norma de instalación UNE 102043 y exigencias del CTE.
C22: 49940 | D22: 1.1.18 | E22: TABIQUE ATT® 139/400 (99) [20+99+20] | F22: 400 | G22: 99 | H22: 20 | I22: Tabique formado por una placa BASIC de 20 mm de espesor compuesta por yeso natural, fibra de vidrio y aditivos inorgánicos que le aportan alta dureza y resistencia mecánica. Reacción al fuego: EUROCLASE A1. Sistema de galces desiguales: las placas encajan entre ellas dejando una entrecalle de 3 mm por donde se inserta la pasta de juntas. Este sistema no utiliza cinta de papel. La pasta de juntas se aplica en las cavidades de las placas y una masilla elástica en los encuentros. Atornillada a cada lado de una estructura metálica de acero galvanizado formada por canales de 100 mm y montantes de 51x99x49 mm con una modulación de 400 mm entre ejes, dando un ancho total de tabique de 139 mm. Incluida parte proporcional del resto de materiales: tornillería, pasta de juntas, masilla para encuentros perimetrales, fijaciones, junta estanca, etc. Montaje según norma de instalación UNE 102043 y exigencias del CTE. | J22: Tabique formado por una placa HIDRO de 20 mm de espesor compuesta por yeso natural, fibra de vidrio y aditivos inorgánicos que le aportan alta dureza y resistencia mecánica. Incorpora tratamiento hidrófugo, disminuyendo así su capacidad de absorción de agua (menor al 5%). Idónea para proteger las estancias de los efectos adversos de la humedad. Reacción al fuego: EUROCLASE A1. Sistema de galces desiguales: las placas encajan entre ellas dejando una entrecalle de 3 mm por donde se inserta la pasta de juntas. Este sistema no utiliza cinta de papel. La pasta de juntas se aplica en las cavidades de las placas y una masilla elástica en los encuentros. Atornillada a cada lado de una estructura metálica de acero galvanizado formada por canales de 100 mm y montantes de 51x99x49 mm con una modulación de 400 mm entre ejes, dando un ancho total de tabique de 139 mm. Incluida parte proporcional del resto de materiales: tornillería, pasta de juntas, masilla para encuentros perimetrales, fijaciones, junta estanca, etc. Montaje según norma de instalación UNE 102043 y exigencias del CTE. | K22: Tabique formado por una placa FUEGO de 20 mm de espesor compuesta por yeso natural, fibra de vidrio y aditivos inorgánicos que le aportan alta dureza y resistencia mecánica. Incorpora perlita y un aumento en la densidad que la hace idónea para un excelente comportamiento y resistencia frente al fuego. Reacción al fuego: EUROCLASE A1. Sistema de galces desiguales: las placas encajan entre ellas dejando una entrecalle de 3 mm por donde se inserta la pasta de juntas. Este sistema no utiliza cinta de papel. La pasta de juntas se aplica en las cavidades de las placas y una masilla elástica en los encuentros. Atornillada a cada lado de una estructura metálica de acero galvanizado formada por canales de 100 mm y montantes de 51x99x49 mm con una modulación de 400 mm entre ejes, dando un ancho total de tabique de 139 mm. Incluida parte proporcional del resto de materiales: tornillería, pasta de juntas, masilla para encuentros perimetrales, fijaciones, junta estanca, etc. Montaje según norma de instalación UNE 102043 y exigencias del CTE. | L22: Tabique formado por una placa RESIST de 20 mm de espesor compuesta por yeso natural, fibra de vidrio y aditivos inorgánicos que le aportan alta dureza y resistencia mecánica. Con mayor cantidad de fibra de vidrio y dosificación modificada, aumenta su densidad, mejorando notablemente la resistencia mecánica. Idónea para lugares con altas exigencias en cuanto a deterioro y desgaste. Reacción al fuego: EUROCLASE A1. Sistema de galces desiguales: las placas encajan entre ellas dejando una entrecalle de 3 mm por donde se inserta la pasta de juntas. Este sistema no utiliza cinta de papel. La pasta de juntas se aplica en las cavidades de las placas y una masilla elástica en los encuentros. Atornillada a cada lado de una estructura metálica de acero galvanizado formada por canales de 100 mm y montantes de 51x99x49 mm con una modulación de 400 mm entre ejes, dando un ancho total de tabique de 139 mm. Incluida parte proporcional del resto de materiales: tornillería, pasta de juntas, masilla para encuentros perimetrales, fijaciones, junta estanca, etc. Montaje según norma de instalación UNE 102043 y exigencias del CTE. | M22: Tabique formado por una placa HIDROPLUS de 20 mm de espesor compuesta por yeso natural, fibra de vidrio y aditivos inorgánicos que le aportan alta dureza y resistencia mecánica. Incorpora tratamiento hidrófugo y un aumento en su densidad, características claves para una elevada resistencia a la humedad (absorción de agua menor al 3%) y una gran resistencia mecánica. Idónea para zonas de intemperie. Reacción al fuego: EUROCLASE A1. Sistema de galces desiguales: las placas encajan entre ellas dejando una entrecalle de 3 mm por donde se inserta la pasta de juntas. Este sistema no utiliza cinta de papel. La pasta de juntas se aplica en las cavidades de las placas y una masilla elástica en los encuentros. Atornillada a cada lado de una estructura metálica de acero galvanizado formada por canales de 100 mm y montantes de 51x99x49 mm con una modulación de 400 mm entre ejes, dando un ancho total de tabique de 139 mm. Incluida parte proporcional del resto de materiales: tornillería, pasta de juntas, masilla para encuentros perimetrales, fijaciones, junta estanca, etc. Montaje según norma de instalación UNE 102043 y exigencias del CTE. | N22: Tabique formado por una placa SUPREM de 20 mm de espesor compuesta por yeso natural, fibra de vidrio y aditivos inorgánicos que le aportan alta dureza y resistencia mecánica. Incorpora tratamiento hidrófugo, perlita y un aumento en la densidad para conseguir soluciones constructivas que cumplan, altos requisitos frente al fuego y una capacidad reducida de absorción de agua. Reacción al fuego: EUROCLASE A1. Sistema de galces desiguales: las placas encajan entre ellas dejando una entrecalle de 3 mm por donde se inserta la pasta de juntas. Este sistema no utiliza cinta de papel. La pasta de juntas se aplica en las cavidades de las placas y una masilla elástica en los encuentros. Atornillada a cada lado de una estructura metálica de acero galvanizado formada por canales de 100 mm y montantes de 51x99x49 mm con una modulación de 400 mm entre ejes, dando un ancho total de tabique de 139 mm. Incluida parte proporcional del resto de materiales: tornillería, pasta de juntas, masilla para encuentros perimetrales, fijaciones, junta estanca, etc. Montaje según norma de instalación UNE 102043 y exigencias del CTE.
C23: 64952 | D23: 1.2.1 | E23: TABIQUE ATT® 101/600 (49) [13+13+49+13+13] | F23: 600 | G23: 49 | H23: 26 | I23: Tabique formado por dos placas BASIC de 13 mm de espesor compuestas por yeso natural, fibra de vidrio y aditivos inorgánicos que le aportan alta dureza y resistencia mecánica. Reacción al fuego: EUROCLASE A1. Sistema de galces desiguales: las placas encajan entre ellas dejando una entrecalle de 3 mm por donde se inserta la pasta de juntas. Este sistema no utiliza cinta de papel. La pasta de juntas se aplica en las cavidades de las placas y una masilla elástica en los encuentros. Atornillada a cada lado de una estructura metálica de acero galvanizado formada por canales de 50 mm y montantes de 51x49x49 mm con una modulación de 600 mm entre ejes, dando un ancho total de tabique de 101 mm. Incluida parte proporcional del resto de materiales: tornillería, pasta de juntas, masilla para encuentros perimetrales, fijaciones, junta estanca, etc. Montaje según norma de instalación UNE 102043 y exigencias del CTE. | J23: Tabique formado por dos placas HIDRO de 13 mm de espesor compuestas por yeso natural, fibra de vidrio y aditivos inorgánicos que le aportan alta dureza y resistencia mecánica. Incorpora tratamiento hidrófugo, disminuyendo así su capacidad de absorción de agua (menor al 5%). Idónea para proteger las estancias de los efectos adversos de la humedad. Reacción al fuego: EUROCLASE A1. Sistema de galces desiguales: las placas encajan entre ellas dejando una entrecalle de 3 mm por donde se inserta la pasta de juntas. Este sistema no utiliza cinta de papel. La pasta de juntas se aplica en las cavidades de las placas y una masilla elástica en los encuentros. Atornillada a cada lado de una estructura metálica de acero galvanizado formada por canales de 50 mm y montantes de 51x49x49 mm con una modulación de 600 mm entre ejes, dando un ancho total de tabique de 101 mm. Incluida parte proporcional del resto de materiales: tornillería, pasta de juntas, masilla para encuentros perimetrales, fijaciones, junta estanca, etc. Montaje según norma de instalación UNE 102043 y exigencias del CTE. | K23: Tabique formado por dos placas FUEGO de 13 mm de espesor compuestas por yeso natural, fibra de vidrio y aditivos inorgánicos que le aportan alta dureza y resistencia mecánica. Incorpora perlita y un aumento en la densidad que la hace idónea para un excelente comportamiento y resistencia frente al fuego. Reacción al fuego: EUROCLASE A1. Sistema de galces desiguales: las placas encajan entre ellas dejando una entrecalle de 3 mm por donde se inserta la pasta de juntas. Este sistema no utiliza cinta de papel. La pasta de juntas se aplica en las cavidades de las placas y una masilla elástica en los encuentros. Atornillada a cada lado de una estructura metálica de acero galvanizado formada por canales de 50 mm y montantes de 51x49x49 mm con una modulación de 600 mm entre ejes, dando un ancho total de tabique de 101 mm. Incluida parte proporcional del resto de materiales: tornillería, pasta de juntas, masilla para encuentros perimetrales, fijaciones, junta estanca, etc. Montaje según norma de instalación UNE 102043 y exigencias del CTE. | L23: Tabique formado por dos placas RESIST de 13 mm de espesor compuestas por yeso natural, fibra de vidrio y aditivos inorgánicos que le aportan alta dureza y resistencia mecánica. Con mayor cantidad de fibra de vidrio y dosificación modificada, aumenta su densidad, mejorando notablemente la resistencia mecánica. Idónea para lugares con altas exigencias en cuanto a deterioro y desgaste. Reacción al fuego: EUROCLASE A1. Sistema de galces desiguales: las placas encajan entre ellas dejando una entrecalle de 3 mm por donde se inserta la pasta de juntas. Este sistema no utiliza cinta de papel. La pasta de juntas se aplica en las cavidades de las placas y una masilla elástica en los encuentros. Atornillada a cada lado de una estructura metálica de acero galvanizado formada por canales de 50 mm y montantes de 51x49x49 mm con una modulación de 600 mm entre ejes, dando un ancho total de tabique de 101 mm. Incluida parte proporcional del resto de materiales: tornillería, pasta de juntas, masilla para encuentros perimetrales, fijaciones, junta estanca, etc. Montaje según norma de instalación UNE 102043 y exigencias del CTE. | M23: Tabique formado por dos placas HIDROPLUS de 13 mm de espesor compuestas por yeso natural, fibra de vidrio y aditivos inorgánicos que le aportan alta dureza y resistencia mecánica. Incorpora tratamiento hidrófugo y un aumento en su densidad, características claves para una elevada resistencia a la humedad (absorción de agua menor al 3%) y una gran resistencia mecánica. Idónea para zonas de intemperie. Reacción al fuego: EUROCLASE A1. Sistema de galces desiguales: las placas encajan entre ellas dejando una entrecalle de 3 mm por donde se inserta la pasta de juntas. Este sistema no utiliza cinta de papel. La pasta de juntas se aplica en las cavidades de las placas y una masilla elástica en los encuentros. Atornillada a cada lado de una estructura metálica de acero galvanizado formada por canales de 50 mm y montantes de 51x49x49 mm con una modulación de 600 mm entre ejes, dando un ancho total de tabique de 101 mm. Incluida parte proporcional del resto de materiales: tornillería, pasta de juntas, masilla para encuentros perimetrales, fijaciones, junta estanca, etc. Montaje según norma de instalación UNE 102043 y exigencias del CTE. | N23: Tabique formado por dos placas SUPREM de 13 mm de espesor compuestas por yeso natural, fibra de vidrio y aditivos inorgánicos que le aportan alta dureza y resistencia mecánica. Incorpora tratamiento hidrófugo, perlita y un aumento en la densidad para conseguir soluciones constructivas que cumplan, altos requisitos frente al fuego y una capacidad reducida de absorción de agua. Reacción al fuego: EUROCLASE A1. Sistema de galces desiguales: las placas encajan entre ellas dejando una entrecalle de 3 mm por donde se inserta la pasta de juntas. Este sistema no utiliza cinta de papel. La pasta de juntas se aplica en las cavidades de las placas y una masilla elástica en los encuentros. Atornillada a cada lado de una estructura metálica de acero galvanizado formada por canales de 50 mm y montantes de 51x49x49 mm con una modulación de 600 mm entre ejes, dando un ancho total de tabique de 101 mm. Incluida parte proporcional del resto de materiales: tornillería, pasta de juntas, masilla para encuentros perimetrales, fijaciones, junta estanca, etc. Montaje según norma de instalación UNE 102043 y exigencias del CTE.
C24: 64960 | D24: 1.2.2 | E24: TABIQUE ATT® 109/600 (49) [15+15+49+15+15] | F24: 600 | G24: 49 | H24: 30 | I24: Tabique formado por dos placas BASIC de 15 mm de espesor compuestas por yeso natural, fibra de vidrio y aditivos inorgánicos que le aportan alta dureza y resistencia mecánica. Reacción al fuego: EUROCLASE A1. Sistema de galces desiguales: las placas encajan entre ellas dejando una entrecalle de 3 mm por donde se inserta la pasta de juntas. Este sistema no utiliza cinta de papel. La pasta de juntas se aplica en las cavidades de las placas y una masilla elástica en los encuentros. Atornillada a cada lado de una estructura metálica de acero galvanizado formada por canales de 50 mm y montantes de 51x49x49 mm con una modulación de 600 mm entre ejes, dando un ancho total de tabique de 109 mm. Incluida parte proporcional del resto de materiales: tornillería, pasta de juntas, masilla para encuentros perimetrales, fijaciones, junta estanca, etc. Montaje según norma de instalación UNE 102043 y exigencias del CTE. | J24: Tabique formado por dos placas HIDRO de 15 mm de espesor compuestas por yeso natural, fibra de vidrio y aditivos inorgánicos que le aportan alta dureza y resistencia mecánica. Incorpora tratamiento hidrófugo, disminuyendo así su capacidad de absorción de agua (menor al 5%). Idónea para proteger las estancias de los efectos adversos de la humedad. Reacción al fuego: EUROCLASE A1. Sistema de galces desiguales: las placas encajan entre ellas dejando una entrecalle de 3 mm por donde se inserta la pasta de juntas. Este sistema no utiliza cinta de papel. La pasta de juntas se aplica en las cavidades de las placas y una masilla elástica en los encuentros. Atornillada a cada lado de una estructura metálica de acero galvanizado formada por canales de 50 mm y montantes de 51x49x49 mm con una modulación de 600 mm entre ejes, dando un ancho total de tabique de 109 mm. Incluida parte proporcional del resto de materiales: tornillería, pasta de juntas, masilla para encuentros perimetrales, fijaciones, junta estanca, etc. Montaje según norma de instalación UNE 102043 y exigencias del CTE. | K24: Tabique formado por dos placas FUEGO de 15 mm de espesor compuestas por yeso natural, fibra de vidrio y aditivos inorgánicos que le aportan alta dureza y resistencia mecánica. Incorpora perlita y un aumento en la densidad que la hace idónea para un excelente comportamiento y resistencia frente al fuego. Reacción al fuego: EUROCLASE A1. Sistema de galces desiguales: las placas encajan entre ellas dejando una entrecalle de 3 mm por donde se inserta la pasta de juntas. Este sistema no utiliza cinta de papel. La pasta de juntas se aplica en las cavidades de las placas y una masilla elástica en los encuentros. Atornillada a cada lado de una estructura metálica de acero galvanizado formada por canales de 50 mm y montantes de 51x49x49 mm con una modulación de 600 mm entre ejes, dando un ancho total de tabique de 109 mm. Incluida parte proporcional del resto de materiales: tornillería, pasta de juntas, masilla para encuentros perimetrales, fijaciones, junta estanca, etc. Montaje según norma de instalación UNE 102043 y exigencias del CTE. | L24: Tabique formado por dos placas RESIST de 15 mm de espesor compuestas por yeso natural, fibra de vidrio y aditivos inorgánicos que le aportan alta dureza y resistencia mecánica. Con mayor cantidad de fibra de vidrio y dosificación modificada, aumenta su densidad, mejorando notablemente la resistencia mecánica. Idónea para lugares con altas exigencias en cuanto a deterioro y desgaste. Reacción al fuego: EUROCLASE A1. Sistema de galces desiguales: las placas encajan entre ellas dejando una entrecalle de 3 mm por donde se inserta la pasta de juntas. Este sistema no utiliza cinta de papel. La pasta de juntas se aplica en las cavidades de las placas y una masilla elástica en los encuentros. Atornillada a cada lado de una estructura metálica de acero galvanizado formada por canales de 50 mm y montantes de 51x49x49 mm con una modulación de 600 mm entre ejes, dando un ancho total de tabique de 109 mm. Incluida parte proporcional del resto de materiales: tornillería, pasta de juntas, masilla para encuentros perimetrales, fijaciones, junta estanca, etc. Montaje según norma de instalación UNE 102043 y exigencias del CTE. | M24: Tabique formado por dos placas HIDROPLUS de 15 mm de espesor compuestas por yeso natural, fibra de vidrio y aditivos inorgánicos que le aportan alta dureza y resistencia mecánica. Incorpora tratamiento hidrófugo y un aumento en su densidad, características claves para una elevada resistencia a la humedad (absorción de agua menor al 3%) y una gran resistencia mecánica. Idónea para zonas de intemperie. Reacción al fuego: EUROCLASE A1. Sistema de galces desiguales: las placas encajan entre ellas dejando una entrecalle de 3 mm por donde se inserta la pasta de juntas. Este sistema no utiliza cinta de papel. La pasta de juntas se aplica en las cavidades de las placas y una masilla elástica en los encuentros. Atornillada a cada lado de una estructura metálica de acero galvanizado formada por canales de 50 mm y montantes de 51x49x49 mm con una modulación de 600 mm entre ejes, dando un ancho total de tabique de 109 mm. Incluida parte proporcional del resto de materiales: tornillería, pasta de juntas, masilla para encuentros perimetrales, fijaciones, junta estanca, etc. Montaje según norma de instalación UNE 102043 y exigencias del CTE. | N24: Tabique formado por dos placas SUPREM de 15 mm de espesor compuestas por yeso natural, fibra de vidrio y aditivos inorgánicos que le aportan alta dureza y resistencia mecánica. Incorpora tratamiento hidrófugo, perlita y un aumento en la densidad para conseguir soluciones constructivas que cumplan, altos requisitos frente al fuego y una capacidad reducida de absorción de agua. Reacción al fuego: EUROCLASE A1. Sistema de galces desiguales: las placas encajan entre ellas dejando una entrecalle de 3 mm por donde se inserta la pasta de juntas. Este sistema no utiliza cinta de papel. La pasta de juntas se aplica en las cavidades de las placas y una masilla elástica en los encuentros. Atornillada a cada lado de una estructura metálica de acero galvanizado formada por canales de 50 mm y montantes de 51x49x49 mm con una modulación de 600 mm entre ejes, dando un ancho total de tabique de 109 mm. Incluida parte proporcional del resto de materiales: tornillería, pasta de juntas, masilla para encuentros perimetrales, fijaciones, junta estanca, etc. Montaje según norma de instalación UNE 102043 y exigencias del CTE.
C25: 64980 | D25: 1.2.3 | E25: TABIQUE ATT® 129/600 (49) [20+20+49+20+20] | F25: 600 | G25: 49 | H25: 40 | I25: Tabique formado por dos placas BASIC de 20 mm de espesor compuestas por yeso natural, fibra de vidrio y aditivos inorgánicos que le aportan alta dureza y resistencia mecánica. Reacción al fuego: EUROCLASE A1. Sistema de galces desiguales: las placas encajan entre ellas dejando una entrecalle de 3 mm por donde se inserta la pasta de juntas. Este sistema no utiliza cinta de papel. La pasta de juntas se aplica en las cavidades de las placas y una masilla elástica en los encuentros. Atornillada a cada lado de una estructura metálica de acero galvanizado formada por canales de 50 mm y montantes de 51x49x49 mm con una modulación de 600 mm entre ejes, dando un ancho total de tabique de 129 mm. Incluida parte proporcional del resto de materiales: tornillería, pasta de juntas, masilla para encuentros perimetrales, fijaciones, junta estanca, etc. Montaje según norma de instalación UNE 102043 y exigencias del CTE. | J25: Tabique formado por dos placas HIDRO de 20 mm de espesor compuestas por yeso natural, fibra de vidrio y aditivos inorgánicos que le aportan alta dureza y resistencia mecánica. Incorpora tratamiento hidrófugo, disminuyendo así su capacidad de absorción de agua (menor al 5%). Idónea para proteger las estancias de los efectos adversos de la humedad. Reacción al fuego: EUROCLASE A1. Sistema de galces desiguales: las placas encajan entre ellas dejando una entrecalle de 3 mm por donde se inserta la pasta de juntas. Este sistema no utiliza cinta de papel. La pasta de juntas se aplica en las cavidades de las placas y una masilla elástica en los encuentros. Atornillada a cada lado de una estructura metálica de acero galvanizado formada por canales de 50 mm y montantes de 51x49x49 mm con una modulación de 600 mm entre ejes, dando un ancho total de tabique de 129 mm. Incluida parte proporcional del resto de materiales: tornillería, pasta de juntas, masilla para encuentros perimetrales, fijaciones, junta estanca, etc. Montaje según norma de instalación UNE 102043 y exigencias del CTE. | K25: Tabique formado por dos placas FUEGO de 20 mm de espesor compuestas por yeso natural, fibra de vidrio y aditivos inorgánicos que le aportan alta dureza y resistencia mecánica. Incorpora perlita y un aumento en la densidad que la hace idónea para un excelente comportamiento y resistencia frente al fuego. Reacción al fuego: EUROCLASE A1. Sistema de galces desiguales: las placas encajan entre ellas dejando una entrecalle de 3 mm por donde se inserta la pasta de juntas. Este sistema no utiliza cinta de papel. La pasta de juntas se aplica en las cavidades de las placas y una masilla elástica en los encuentros. Atornillada a cada lado de una estructura metálica de acero galvanizado formada por canales de 50 mm y montantes de 51x49x49 mm con una modulación de 600 mm entre ejes, dando un ancho total de tabique de 129 mm. Incluida parte proporcional del resto de materiales: tornillería, pasta de juntas, masilla para encuentros perimetrales, fijaciones, junta estanca, etc. Montaje según norma de instalación UNE 102043 y exigencias del CTE. | L25: Tabique formado por dos placas RESIST de 20 mm de espesor compuestas por yeso natural, fibra de vidrio y aditivos inorgánicos que le aportan alta dureza y resistencia mecánica. Con mayor cantidad de fibra de vidrio y dosificación modificada, aumenta su densidad, mejorando notablemente la resistencia mecánica. Idónea para lugares con altas exigencias en cuanto a deterioro y desgaste. Reacción al fuego: EUROCLASE A1. Sistema de galces desiguales: las placas encajan entre ellas dejando una entrecalle de 3 mm por donde se inserta la pasta de juntas. Este sistema no utiliza cinta de papel. La pasta de juntas se aplica en las cavidades de las placas y una masilla elástica en los encuentros. Atornillada a cada lado de una estructura metálica de acero galvanizado formada por canales de 50 mm y montantes de 51x49x49 mm con una modulación de 600 mm entre ejes, dando un ancho total de tabique de 129 mm. Incluida parte proporcional del resto de materiales: tornillería, pasta de juntas, masilla para encuentros perimetrales, fijaciones, junta estanca, etc. Montaje según norma de instalación UNE 102043 y exigencias del CTE. | M25: Tabique formado por dos placas HIDROPLUS de 20 mm de espesor compuestas por yeso natural, fibra de vidrio y aditivos inorgánicos que le aportan alta dureza y resistencia mecánica. Incorpora tratamiento hidrófugo y un aumento en su densidad, características claves para una elevada resistencia a la humedad (absorción de agua menor al 3%) y una gran resistencia mecánica. Idónea para zonas de intemperie. Reacción al fuego: EUROCLASE A1. Sistema de galces desiguales: las placas encajan entre ellas dejando una entrecalle de 3 mm por donde se inserta la pasta de juntas. Este sistema no utiliza cinta de papel. La pasta de juntas se aplica en las cavidades de las placas y una masilla elástica en los encuentros. Atornillada a cada lado de una estructura metálica de acero galvanizado formada por canales de 50 mm y montantes de 51x49x49 mm con una modulación de 600 mm entre ejes, dando un ancho total de tabique de 129 mm. Incluida parte proporcional del resto de materiales: tornillería, pasta de juntas, masilla para encuentros perimetrales, fijaciones, junta estanca, etc. Montaje según norma de instalación UNE 102043 y exigencias del CTE. | N25: Tabique formado por dos placas SUPREM de 20 mm de espesor compuestas por yeso natural, fibra de vidrio y aditivos inorgánicos que le aportan alta dureza y resistencia mecánica. Incorpora tratamiento hidrófugo, perlita y un aumento en la densidad para conseguir soluciones constructivas que cumplan, altos requisitos frente al fuego y una capacidad reducida de absorción de agua. Reacción al fuego: EUROCLASE A1. Sistema de galces desiguales: las placas encajan entre ellas dejando una entrecalle de 3 mm por donde se inserta la pasta de juntas. Este sistema no utiliza cinta de papel. La pasta de juntas se aplica en las cavidades de las placas y una masilla elástica en los encuentros. Atornillada a cada lado de una estructura metálica de acero galvanizado formada por canales de 50 mm y montantes de 51x49x49 mm con una modulación de 600 mm entre ejes, dando un ancho total de tabique de 129 mm. Incluida parte proporcional del resto de materiales: tornillería, pasta de juntas, masilla para encuentros perimetrales, fijaciones, junta estanca, etc. Montaje según norma de instalación UNE 102043 y exigencias del CTE.
A26: PLACA MIXTA | C26: 67452 | D26: 1.2.4 | E26: TABIQUE ATT® 126/600 (74) [13+13+74+13+13] | F26: 600 | G26: 74 | H26: 26 | I26: Tabique formado por dos placas BASIC de 13 mm de espesor compuestas por yeso natural, fibra de vidrio y aditivos inorgánicos que le aportan alta dureza y resistencia mecánica. Reacción al fuego: EUROCLASE A1. Sistema de galces desiguales: las placas encajan entre ellas dejando una entrecalle de 3 mm por donde se inserta la pasta de juntas. Este sistema no utiliza cinta de papel. La pasta de juntas se aplica en las cavidades de las placas y una masilla elástica en los encuentros. Atornillada a cada lado de una estructura metálica de acero galvanizado formada por canales de 75 mm y montantes de 51x74x49 mm con una modulación de 600 mm entre ejes, dando un ancho total de tabique de 126 mm. Incluida parte proporcional del resto de materiales: tornillería, pasta de juntas, masilla para encuentros perimetrales, fijaciones, junta estanca, etc. Montaje según norma de instalación UNE 102043 y exigencias del CTE. | J26: Tabique formado por dos placas HIDRO de 13 mm de espesor compuestas por yeso natural, fibra de vidrio y aditivos inorgánicos que le aportan alta dureza y resistencia mecánica. Incorpora tratamiento hidrófugo, disminuyendo así su capacidad de absorción de agua (menor al 5%). Idónea para proteger las estancias de los efectos adversos de la humedad. Reacción al fuego: EUROCLASE A1. Sistema de galces desiguales: las placas encajan entre ellas dejando una entrecalle de 3 mm por donde se inserta la pasta de juntas. Este sistema no utiliza cinta de papel. La pasta de juntas se aplica en las cavidades de las placas y una masilla elástica en los encuentros. Atornillada a cada lado de una estructura metálica de acero galvanizado formada por canales de 75 mm y montantes de 51x74x49 mm con una modulación de 600 mm entre ejes, dando un ancho total de tabique de 126 mm. Incluida parte proporcional del resto de materiales: tornillería, pasta de juntas, masilla para encuentros perimetrales, fijaciones, junta estanca, etc. Montaje según norma de instalación UNE 102043 y exigencias del CTE. | K26: Tabique formado por dos placas FUEGO de 13 mm de espesor compuestas por yeso natural, fibra de vidrio y aditivos inorgánicos que le aportan alta dureza y resistencia mecánica. Incorpora perlita y un aumento en la densidad que la hace idónea para un excelente comportamiento y resistencia frente al fuego. Reacción al fuego: EUROCLASE A1. Sistema de galces desiguales: las placas encajan entre ellas dejando una entrecalle de 3 mm por donde se inserta la pasta de juntas. Este sistema no utiliza cinta de papel. La pasta de juntas se aplica en las cavidades de las placas y una masilla elástica en los encuentros. Atornillada a cada lado de una estructura metálica de acero galvanizado formada por canales de 75 mm y montantes de 51x74x49 mm con una modulación de 600 mm entre ejes, dando un ancho total de tabique de 126 mm. Incluida parte proporcional del resto de materiales: tornillería, pasta de juntas, masilla para encuentros perimetrales, fijaciones, junta estanca, etc. Montaje según norma de instalación UNE 102043 y exigencias del CTE. | L26: Tabique formado por dos placas RESIST de 13 mm de espesor compuestas por yeso natural, fibra de vidrio y aditivos inorgánicos que le aportan alta dureza y resistencia mecánica. Con mayor cantidad de fibra de vidrio y dosificación modificada, aumenta su densidad, mejorando notablemente la resistencia mecánica. Idónea para lugares con altas exigencias en cuanto a deterioro y desgaste. Reacción al fuego: EUROCLASE A1. Sistema de galces desiguales: las placas encajan entre ellas dejando una entrecalle de 3 mm por donde se inserta la pasta de juntas. Este sistema no utiliza cinta de papel. La pasta de juntas se aplica en las cavidades de las placas y una masilla elástica en los encuentros. Atornillada a cada lado de una estructura metálica de acero galvanizado formada por canales de 75 mm y montantes de 51x74x49 mm con una modulación de 600 mm entre ejes, dando un ancho total de tabique de 126 mm. Incluida parte proporcional del resto de materiales: tornillería, pasta de juntas, masilla para encuentros perimetrales, fijaciones, junta estanca, etc. Montaje según norma de instalación UNE 102043 y exigencias del CTE. | M26: Tabique formado por dos placas HIDROPLUS de 13 mm de espesor compuestas por yeso natural, fibra de vidrio y aditivos inorgánicos que le aportan alta dureza y resistencia mecánica. Incorpora tratamiento hidrófugo y un aumento en su densidad, características claves para una elevada resistencia a la humedad (absorción de agua menor al 3%) y una gran resistencia mecánica. Idónea para zonas de intemperie. Reacción al fuego: EUROCLASE A1. Sistema de galces desiguales: las placas encajan entre ellas dejando una entrecalle de 3 mm por donde se inserta la pasta de juntas. Este sistema no utiliza cinta de papel. La pasta de juntas se aplica en las cavidades de las placas y una masilla elástica en los encuentros. Atornillada a cada lado de una estructura metálica de acero galvanizado formada por canales de 75 mm y montantes de 51x74x49 mm con una modulación de 600 mm entre ejes, dando un ancho total de tabique de 126 mm. Incluida parte proporcional del resto de materiales: tornillería, pasta de juntas, masilla para encuentros perimetrales, fijaciones, junta estanca, etc. Montaje según norma de instalación UNE 102043 y exigencias del CTE. | N26: Tabique formado por dos placas SUPREM de 13 mm de espesor compuestas por yeso natural, fibra de vidrio y aditivos inorgánicos que le aportan alta dureza y resistencia mecánica. Incorpora tratamiento hidrófugo, perlita y un aumento en la densidad para conseguir soluciones constructivas que cumplan, altos requisitos frente al fuego y una capacidad reducida de absorción de agua. Reacción al fuego: EUROCLASE A1. Sistema de galces desiguales: las placas encajan entre ellas dejando una entrecalle de 3 mm por donde se inserta la pasta de juntas. Este sistema no utiliza cinta de papel. La pasta de juntas se aplica en las cavidades de las placas y una masilla elástica en los encuentros. Atornillada a cada lado de una estructura metálica de acero galvanizado formada por canales de 75 mm y montantes de 51x74x49 mm con una modulación de 600 mm entre ejes, dando un ancho total de tabique de 126 mm. Incluida parte proporcional del resto de materiales: tornillería, pasta de juntas, masilla para encuentros perimetrales, fijaciones, junta estanca, etc. Montaje según norma de instalación UNE 102043 y exigencias del CTE.
C27: 67460 | D27: 1.2.5 | E27: TABIQUE ATT® 134/600 (74) [15+15+74+15+15] | F27: 600 | G27: 74 | H27: 30 | I27: Tabique formado por dos placas BASIC de 15 mm de espesor compuestas por yeso natural, fibra de vidrio y aditivos inorgánicos que le aportan alta dureza y resistencia mecánica. Reacción al fuego: EUROCLASE A1. Sistema de galces desiguales: las placas encajan entre ellas dejando una entrecalle de 3 mm por donde se inserta la pasta de juntas. Este sistema no utiliza cinta de papel. La pasta de juntas se aplica en las cavidades de las placas y una masilla elástica en los encuentros. Atornillada a cada lado de una estructura metálica de acero galvanizado formada por canales de 75 mm y montantes de 51x74x49 mm con una modulación de 600 mm entre ejes, dando un ancho total de tabique de 134 mm. Incluida parte proporcional del resto de materiales: tornillería, pasta de juntas, masilla para encuentros perimetrales, fijaciones, junta estanca, etc. Montaje según norma de instalación UNE 102043 y exigencias del CTE. | J27: Tabique formado por dos placas HIDRO de 15 mm de espesor compuestas por yeso natural, fibra de vidrio y aditivos inorgánicos que le aportan alta dureza y resistencia mecánica. Incorpora tratamiento hidrófugo, disminuyendo así su capacidad de absorción de agua (menor al 5%). Idónea para proteger las estancias de los efectos adversos de la humedad. Reacción al fuego: EUROCLASE A1. Sistema de galces desiguales: las placas encajan entre ellas dejando una entrecalle de 3 mm por donde se inserta la pasta de juntas. Este sistema no utiliza cinta de papel. La pasta de juntas se aplica en las cavidades de las placas y una masilla elástica en los encuentros. Atornillada a cada lado de una estructura metálica de acero galvanizado formada por canales de 75 mm y montantes de 51x74x49 mm con una modulación de 600 mm entre ejes, dando un ancho total de tabique de 134 mm. Incluida parte proporcional del resto de materiales: tornillería, pasta de juntas, masilla para encuentros perimetrales, fijaciones, junta estanca, etc. Montaje según norma de instalación UNE 102043 y exigencias del CTE. | K27: Tabique formado por dos placas FUEGO de 15 mm de espesor compuestas por yeso natural, fibra de vidrio y aditivos inorgánicos que le aportan alta dureza y resistencia mecánica. Incorpora perlita y un aumento en la densidad que la hace idónea para un excelente comportamiento y resistencia frente al fuego. Reacción al fuego: EUROCLASE A1. Sistema de galces desiguales: las placas encajan entre ellas dejando una entrecalle de 3 mm por donde se inserta la pasta de juntas. Este sistema no utiliza cinta de papel. La pasta de juntas se aplica en las cavidades de las placas y una masilla elástica en los encuentros. Atornillada a cada lado de una estructura metálica de acero galvanizado formada por canales de 75 mm y montantes de 51x74x49 mm con una modulación de 600 mm entre ejes, dando un ancho total de tabique de 134 mm. Incluida parte proporcional del resto de materiales: tornillería, pasta de juntas, masilla para encuentros perimetrales, fijaciones, junta estanca, etc. Montaje según norma de instalación UNE 102043 y exigencias del CTE. | L27: Tabique formado por dos placas RESIST de 15 mm de espesor compuestas por yeso natural, fibra de vidrio y aditivos inorgánicos que le aportan alta dureza y resistencia mecánica. Con mayor cantidad de fibra de vidrio y dosificación modificada, aumenta su densidad, mejorando notablemente la resistencia mecánica. Idónea para lugares con altas exigencias en cuanto a deterioro y desgaste. Reacción al fuego: EUROCLASE A1. Sistema de galces desiguales: las placas encajan entre ellas dejando una entrecalle de 3 mm por donde se inserta la pasta de juntas. Este sistema no utiliza cinta de papel. La pasta de juntas se aplica en las cavidades de las placas y una masilla elástica en los encuentros. Atornillada a cada lado de una estructura metálica de acero galvanizado formada por canales de 75 mm y montantes de 51x74x49 mm con una modulación de 600 mm entre ejes, dando un ancho total de tabique de 134 mm. Incluida parte proporcional del resto de materiales: tornillería, pasta de juntas, masilla para encuentros perimetrales, fijaciones, junta estanca, etc. Montaje según norma de instalación UNE 102043 y exigencias del CTE. | M27: Tabique formado por dos placas HIDROPLUS de 15 mm de espesor compuestas por yeso natural, fibra de vidrio y aditivos inorgánicos que le aportan alta dureza y resistencia mecánica. Incorpora tratamiento hidrófugo y un aumento en su densidad, características claves para una elevada resistencia a la humedad (absorción de agua menor al 3%) y una gran resistencia mecánica. Idónea para zonas de intemperie. Reacción al fuego: EUROCLASE A1. Sistema de galces desiguales: las placas encajan entre ellas dejando una entrecalle de 3 mm por donde se inserta la pasta de juntas. Este sistema no utiliza cinta de papel. La pasta de juntas se aplica en las cavidades de las placas y una masilla elástica en los encuentros. Atornillada a cada lado de una estructura metálica de acero galvanizado formada por canales de 75 mm y montantes de 51x74x49 mm con una modulación de 600 mm entre ejes, dando un ancho total de tabique de 134 mm. Incluida parte proporcional del resto de materiales: tornillería, pasta de juntas, masilla para encuentros perimetrales, fijaciones, junta estanca, etc. Montaje según norma de instalación UNE 102043 y exigencias del CTE. | N27: Tabique formado por dos placas SUPREM de 15 mm de espesor compuestas por yeso natural, fibra de vidrio y aditivos inorgánicos que le aportan alta dureza y resistencia mecánica. Incorpora tratamiento hidrófugo, perlita y un aumento en la densidad para conseguir soluciones constructivas que cumplan, altos requisitos frente al fuego y una capacidad reducida de absorción de agua. Reacción al fuego: EUROCLASE A1. Sistema de galces desiguales: las placas encajan entre ellas dejando una entrecalle de 3 mm por donde se inserta la pasta de juntas. Este sistema no utiliza cinta de papel. La pasta de juntas se aplica en las cavidades de las placas y una masilla elástica en los encuentros. Atornillada a cada lado de una estructura metálica de acero galvanizado formada por canales de 75 mm y montantes de 51x74x49 mm con una modulación de 600 mm entre ejes, dando un ancho total de tabique de 134 mm. Incluida parte proporcional del resto de materiales: tornillería, pasta de juntas, masilla para encuentros perimetrales, fijaciones, junta estanca, etc. Montaje según norma de instalación UNE 102043 y exigencias del CTE.
C28: 67480 | D28: 1.2.6 | E28: TABIQUE ATT® 154/600 (74) [20+20+74+20+20] | F28: 600 | G28: 74 | H28: 40 | I28: Tabique formado por dos placas BASIC de 20 mm de espesor compuestas por yeso natural, fibra de vidrio y aditivos inorgánicos que le aportan alta dureza y resistencia mecánica. Reacción al fuego: EUROCLASE A1. Sistema de galces desiguales: las placas encajan entre ellas dejando una entrecalle de 3 mm por donde se inserta la pasta de juntas. Este sistema no utiliza cinta de papel. La pasta de juntas se aplica en las cavidades de las placas y una masilla elástica en los encuentros. Atornillada a cada lado de una estructura metálica de acero galvanizado formada por canales de 75 mm y montantes de 51x74x49 mm con una modulación de 600 mm entre ejes, dando un ancho total de tabique de 154 mm. Incluida parte proporcional del resto de materiales: tornillería, pasta de juntas, masilla para encuentros perimetrales, fijaciones, junta estanca, etc. Montaje según norma de instalación UNE 102043 y exigencias del CTE. | J28: Tabique formado por dos placas HIDRO de 20 mm de espesor compuestas por yeso natural, fibra de vidrio y aditivos inorgánicos que le aportan alta dureza y resistencia mecánica. Incorpora tratamiento hidrófugo, disminuyendo así su capacidad de absorción de agua (menor al 5%). Idónea para proteger las estancias de los efectos adversos de la humedad. Reacción al fuego: EUROCLASE A1. Sistema de galces desiguales: las placas encajan entre ellas dejando una entrecalle de 3 mm por donde se inserta la pasta de juntas. Este sistema no utiliza cinta de papel. La pasta de juntas se aplica en las cavidades de las placas y una masilla elástica en los encuentros. Atornillada a cada lado de una estructura metálica de acero galvanizado formada por canales de 75 mm y montantes de 51x74x49 mm con una modulación de 600 mm entre ejes, dando un ancho total de tabique de 154 mm. Incluida parte proporcional del resto de materiales: tornillería, pasta de juntas, masilla para encuentros perimetrales, fijaciones, junta estanca, etc. Montaje según norma de instalación UNE 102043 y exigencias del CTE. | K28: Tabique formado por dos placas FUEGO de 20 mm de espesor compuestas por yeso natural, fibra de vidrio y aditivos inorgánicos que le aportan alta dureza y resistencia mecánica. Incorpora perlita y un aumento en la densidad que la hace idónea para un excelente comportamiento y resistencia frente al fuego. Reacción al fuego: EUROCLASE A1. Sistema de galces desiguales: las placas encajan entre ellas dejando una entrecalle de 3 mm por donde se inserta la pasta de juntas. Este sistema no utiliza cinta de papel. La pasta de juntas se aplica en las cavidades de las placas y una masilla elástica en los encuentros. Atornillada a cada lado de una estructura metálica de acero galvanizado formada por canales de 75 mm y montantes de 51x74x49 mm con una modulación de 600 mm entre ejes, dando un ancho total de tabique de 154 mm. Incluida parte proporcional del resto de materiales: tornillería, pasta de juntas, masilla para encuentros perimetrales, fijaciones, junta estanca, etc. Montaje según norma de instalación UNE 102043 y exigencias del CTE. | L28: Tabique formado por dos placas RESIST de 20 mm de espesor compuestas por yeso natural, fibra de vidrio y aditivos inorgánicos que le aportan alta dureza y resistencia mecánica. Con mayor cantidad de fibra de vidrio y dosificación modificada, aumenta su densidad, mejorando notablemente la resistencia mecánica. Idónea para lugares con altas exigencias en cuanto a deterioro y desgaste. Reacción al fuego: EUROCLASE A1. Sistema de galces desiguales: las placas encajan entre ellas dejando una entrecalle de 3 mm por donde se inserta la pasta de juntas. Este sistema no utiliza cinta de papel. La pasta de juntas se aplica en las cavidades de las placas y una masilla elástica en los encuentros. Atornillada a cada lado de una estructura metálica de acero galvanizado formada por canales de 75 mm y montantes de 51x74x49 mm con una modulación de 600 mm entre ejes, dando un ancho total de tabique de 154 mm. Incluida parte proporcional del resto de materiales: tornillería, pasta de juntas, masilla para encuentros perimetrales, fijaciones, junta estanca, etc. Montaje según norma de instalación UNE 102043 y exigencias del CTE. | M28: Tabique formado por dos placas HIDROPLUS de 20 mm de espesor compuestas por yeso natural, fibra de vidrio y aditivos inorgánicos que le aportan alta dureza y resistencia mecánica. Incorpora tratamiento hidrófugo y un aumento en su densidad, características claves para una elevada resistencia a la humedad (absorción de agua menor al 3%) y una gran resistencia mecánica. Idónea para zonas de intemperie. Reacción al fuego: EUROCLASE A1. Sistema de galces desiguales: las placas encajan entre ellas dejando una entrecalle de 3 mm por donde se inserta la pasta de juntas. Este sistema no utiliza cinta de papel. La pasta de juntas se aplica en las cavidades de las placas y una masilla elástica en los encuentros. Atornillada a cada lado de una estructura metálica de acero galvanizado formada por canales de 75 mm y montantes de 51x74x49 mm con una modulación de 600 mm entre ejes, dando un ancho total de tabique de 154 mm. Incluida parte proporcional del resto de materiales: tornillería, pasta de juntas, masilla para encuentros perimetrales, fijaciones, junta estanca, etc. Montaje según norma de instalación UNE 102043 y exigencias del CTE. | N28: Tabique formado por dos placas SUPREM de 20 mm de espesor compuestas por yeso natural, fibra de vidrio y aditivos inorgánicos que le aportan alta dureza y resistencia mecánica. Incorpora tratamiento hidrófugo, perlita y un aumento en la densidad para conseguir soluciones constructivas que cumplan, altos requisitos frente al fuego y una capacidad reducida de absorción de agua. Reacción al fuego: EUROCLASE A1. Sistema de galces desiguales: las placas encajan entre ellas dejando una entrecalle de 3 mm por donde se inserta la pasta de juntas. Este sistema no utiliza cinta de papel. La pasta de juntas se aplica en las cavidades de las placas y una masilla elástica en los encuentros. Atornillada a cada lado de una estructura metálica de acero galvanizado formada por canales de 75 mm y montantes de 51x74x49 mm con una modulación de 600 mm entre ejes, dando un ancho total de tabique de 154 mm. Incluida parte proporcional del resto de materiales: tornillería, pasta de juntas, masilla para encuentros perimetrales, fijaciones, junta estanca, etc. Montaje según norma de instalación UNE 102043 y exigencias del CTE.
C29: 69952 | D29: 1.2.7 | E29: TABIQUE ATT® 151/600 (99) [13+13+99+13+13] | F29: 600 | G29: 99 | H29: 26 | I29: Tabique formado por dos placas BASIC de 13 mm de espesor compuestas por yeso natural, fibra de vidrio y aditivos inorgánicos que le aportan alta dureza y resistencia mecánica. Reacción al fuego: EUROCLASE A1. Sistema de galces desiguales: las placas encajan entre ellas dejando una entrecalle de 3 mm por donde se inserta la pasta de juntas. Este sistema no utiliza cinta de papel. La pasta de juntas se aplica en las cavidades de las placas y una masilla elástica en los encuentros. Atornillada a cada lado de una estructura metálica de acero galvanizado formada por canales de 100 mm y montantes de 51x99x49 mm con una modulación de 600 mm entre ejes, dando un ancho total de tabique de 151 mm. Incluida parte proporcional del resto de materiales: tornillería, pasta de juntas, masilla para encuentros perimetrales, fijaciones, junta estanca, etc. Montaje según norma de instalación UNE 102043 y exigencias del CTE. | J29: Tabique formado por dos placas HIDRO de 13 mm de espesor compuestas por yeso natural, fibra de vidrio y aditivos inorgánicos que le aportan alta dureza y resistencia mecánica. Incorpora tratamiento hidrófugo, disminuyendo así su capacidad de absorción de agua (menor al 5%). Idónea para proteger las estancias de los efectos adversos de la humedad. Reacción al fuego: EUROCLASE A1. Sistema de galces desiguales: las placas encajan entre ellas dejando una entrecalle de 3 mm por donde se inserta la pasta de juntas. Este sistema no utiliza cinta de papel. La pasta de juntas se aplica en las cavidades de las placas y una masilla elástica en los encuentros. Atornillada a cada lado de una estructura metálica de acero galvanizado formada por canales de 100 mm y montantes de 51x99x49 mm con una modulación de 600 mm entre ejes, dando un ancho total de tabique de 151 mm. Incluida parte proporcional del resto de materiales: tornillería, pasta de juntas, masilla para encuentros perimetrales, fijaciones, junta estanca, etc. Montaje según norma de instalación UNE 102043 y exigencias del CTE. | K29: Tabique formado por dos placas FUEGO de 13 mm de espesor compuestas por yeso natural, fibra de vidrio y aditivos inorgánicos que le aportan alta dureza y resistencia mecánica. Incorpora perlita y un aumento en la densidad que la hace idónea para un excelente comportamiento y resistencia frente al fuego. Reacción al fuego: EUROCLASE A1. Sistema de galces desiguales: las placas encajan entre ellas dejando una entrecalle de 3 mm por donde se inserta la pasta de juntas. Este sistema no utiliza cinta de papel. La pasta de juntas se aplica en las cavidades de las placas y una masilla elástica en los encuentros. Atornillada a cada lado de una estructura metálica de acero galvanizado formada por canales de 100 mm y montantes de 51x99x49 mm con una modulación de 600 mm entre ejes, dando un ancho total de tabique de 151 mm. Incluida parte proporcional del resto de materiales: tornillería, pasta de juntas, masilla para encuentros perimetrales, fijaciones, junta estanca, etc. Montaje según norma de instalación UNE 102043 y exigencias del CTE. | L29: Tabique formado por dos placas RESIST de 13 mm de espesor compuestas por yeso natural, fibra de vidrio y aditivos inorgánicos que le aportan alta dureza y resistencia mecánica. Con mayor cantidad de fibra de vidrio y dosificación modificada, aumenta su densidad, mejorando notablemente la resistencia mecánica. Idónea para lugares con altas exigencias en cuanto a deterioro y desgaste. Reacción al fuego: EUROCLASE A1. Sistema de galces desiguales: las placas encajan entre ellas dejando una entrecalle de 3 mm por donde se inserta la pasta de juntas. Este sistema no utiliza cinta de papel. La pasta de juntas se aplica en las cavidades de las placas y una masilla elástica en los encuentros. Atornillada a cada lado de una estructura metálica de acero galvanizado formada por canales de 100 mm y montantes de 51x99x49 mm con una modulación de 600 mm entre ejes, dando un ancho total de tabique de 151 mm. Incluida parte proporcional del resto de materiales: tornillería, pasta de juntas, masilla para encuentros perimetrales, fijaciones, junta estanca, etc. Montaje según norma de instalación UNE 102043 y exigencias del CTE. | M29: Tabique formado por dos placas HIDROPLUS de 13 mm de espesor compuestas por yeso natural, fibra de vidrio y aditivos inorgánicos que le aportan alta dureza y resistencia mecánica. Incorpora tratamiento hidrófugo y un aumento en su densidad, características claves para una elevada resistencia a la humedad (absorción de agua menor al 3%) y una gran resistencia mecánica. Idónea para zonas de intemperie. Reacción al fuego: EUROCLASE A1. Sistema de galces desiguales: las placas encajan entre ellas dejando una entrecalle de 3 mm por donde se inserta la pasta de juntas. Este sistema no utiliza cinta de papel. La pasta de juntas se aplica en las cavidades de las placas y una masilla elástica en los encuentros. Atornillada a cada lado de una estructura metálica de acero galvanizado formada por canales de 100 mm y montantes de 51x99x49 mm con una modulación de 600 mm entre ejes, dando un ancho total de tabique de 151 mm. Incluida parte proporcional del resto de materiales: tornillería, pasta de juntas, masilla para encuentros perimetrales, fijaciones, junta estanca, etc. Montaje según norma de instalación UNE 102043 y exigencias del CTE. | N29: Tabique formado por dos placas SUPREM de 13 mm de espesor compuestas por yeso natural, fibra de vidrio y aditivos inorgánicos que le aportan alta dureza y resistencia mecánica. Incorpora tratamiento hidrófugo, perlita y un aumento en la densidad para conseguir soluciones constructivas que cumplan, altos requisitos frente al fuego y una capacidad reducida de absorción de agua. Reacción al fuego: EUROCLASE A1. Sistema de galces desiguales: las placas encajan entre ellas dejando una entrecalle de 3 mm por donde se inserta la pasta de juntas. Este sistema no utiliza cinta de papel. La pasta de juntas se aplica en las cavidades de las placas y una masilla elástica en los encuentros. Atornillada a cada lado de una estructura metálica de acero galvanizado formada por canales de 100 mm y montantes de 51x99x49 mm con una modulación de 600 mm entre ejes, dando un ancho total de tabique de 151 mm. Incluida parte proporcional del resto de materiales: tornillería, pasta de juntas, masilla para encuentros perimetrales, fijaciones, junta estanca, etc. Montaje según norma de instalación UNE 102043 y exigencias del CTE.
C30: 69960 | D30: 1.2.8 | E30: TABIQUE ATT® 159/600 (99) [15+15+99+15+15] | F30: 600 | G30: 99 | H30: 30 | I30: Tabique formado por dos placas BASIC de 15 mm de espesor compuestas por yeso natural, fibra de vidrio y aditivos inorgánicos que le aportan alta dureza y resistencia mecánica. Reacción al fuego: EUROCLASE A1. Sistema de galces desiguales: las placas encajan entre ellas dejando una entrecalle de 3 mm por donde se inserta la pasta de juntas. Este sistema no utiliza cinta de papel. La pasta de juntas se aplica en las cavidades de las placas y una masilla elástica en los encuentros. Atornillada a cada lado de una estructura metálica de acero galvanizado formada por canales de 100 mm y montantes de 51x99x49 mm con una modulación de 600 mm entre ejes, dando un ancho total de tabique de 159 mm. Incluida parte proporcional del resto de materiales: tornillería, pasta de juntas, masilla para encuentros perimetrales, fijaciones, junta estanca, etc. Montaje según norma de instalación UNE 102043 y exigencias del CTE. | J30: Tabique formado por dos placas HIDRO de 15 mm de espesor compuestas por yeso natural, fibra de vidrio y aditivos inorgánicos que le aportan alta dureza y resistencia mecánica. Incorpora tratamiento hidrófugo, disminuyendo así su capacidad de absorción de agua (menor al 5%). Idónea para proteger las estancias de los efectos adversos de la humedad. Reacción al fuego: EUROCLASE A1. Sistema de galces desiguales: las placas encajan entre ellas dejando una entrecalle de 3 mm por donde se inserta la pasta de juntas. Este sistema no utiliza cinta de papel. La pasta de juntas se aplica en las cavidades de las placas y una masilla elástica en los encuentros. Atornillada a cada lado de una estructura metálica de acero galvanizado formada por canales de 100 mm y montantes de 51x99x49 mm con una modulación de 600 mm entre ejes, dando un ancho total de tabique de 159 mm. Incluida parte proporcional del resto de materiales: tornillería, pasta de juntas, masilla para encuentros perimetrales, fijaciones, junta estanca, etc. Montaje según norma de instalación UNE 102043 y exigencias del CTE. | K30: Tabique formado por dos placas FUEGO de 15 mm de espesor compuestas por yeso natural, fibra de vidrio y aditivos inorgánicos que le aportan alta dureza y resistencia mecánica. Incorpora perlita y un aumento en la densidad que la hace idónea para un excelente comportamiento y resistencia frente al fuego. Reacción al fuego: EUROCLASE A1. Sistema de galces desiguales: las placas encajan entre ellas dejando una entrecalle de 3 mm por donde se inserta la pasta de juntas. Este sistema no utiliza cinta de papel. La pasta de juntas se aplica en las cavidades de las placas y una masilla elástica en los encuentros. Atornillada a cada lado de una estructura metálica de acero galvanizado formada por canales de 100 mm y montantes de 51x99x49 mm con una modulación de 600 mm entre ejes, dando un ancho total de tabique de 159 mm. Incluida parte proporcional del resto de materiales: tornillería, pasta de juntas, masilla para encuentros perimetrales, fijaciones, junta estanca, etc. Montaje según norma de instalación UNE 102043 y exigencias del CTE. | L30: Tabique formado por dos placas RESIST de 15 mm de espesor compuestas por yeso natural, fibra de vidrio y aditivos inorgánicos que le aportan alta dureza y resistencia mecánica. Con mayor cantidad de fibra de vidrio y dosificación modificada, aumenta su densidad, mejorando notablemente la resistencia mecánica. Idónea para lugares con altas exigencias en cuanto a deterioro y desgaste. Reacción al fuego: EUROCLASE A1. Sistema de galces desiguales: las placas encajan entre ellas dejando una entrecalle de 3 mm por donde se inserta la pasta de juntas. Este sistema no utiliza cinta de papel. La pasta de juntas se aplica en las cavidades de las placas y una masilla elástica en los encuentros. Atornillada a cada lado de una estructura metálica de acero galvanizado formada por canales de 100 mm y montantes de 51x99x49 mm con una modulación de 600 mm entre ejes, dando un ancho total de tabique de 159 mm. Incluida parte proporcional del resto de materiales: tornillería, pasta de juntas, masilla para encuentros perimetrales, fijaciones, junta estanca, etc. Montaje según norma de instalación UNE 102043 y exigencias del CTE. | M30: Tabique formado por dos placas HIDROPLUS de 15 mm de espesor compuestas por yeso natural, fibra de vidrio y aditivos inorgánicos que le aportan alta dureza y resistencia mecánica. Incorpora tratamiento hidrófugo y un aumento en su densidad, características claves para una elevada resistencia a la humedad (absorción de agua menor al 3%) y una gran resistencia mecánica. Idónea para zonas de intemperie. Reacción al fuego: EUROCLASE A1. Sistema de galces desiguales: las placas encajan entre ellas dejando una entrecalle de 3 mm por donde se inserta la pasta de juntas. Este sistema no utiliza cinta de papel. La pasta de juntas se aplica en las cavidades de las placas y una masilla elástica en los encuentros. Atornillada a cada lado de una estructura metálica de acero galvanizado formada por canales de 100 mm y montantes de 51x99x49 mm con una modulación de 600 mm entre ejes, dando un ancho total de tabique de 159 mm. Incluida parte proporcional del resto de materiales: tornillería, pasta de juntas, masilla para encuentros perimetrales, fijaciones, junta estanca, etc. Montaje según norma de instalación UNE 102043 y exigencias del CTE. | N30: Tabique formado por dos placas SUPREM de 15 mm de espesor compuestas por yeso natural, fibra de vidrio y aditivos inorgánicos que le aportan alta dureza y resistencia mecánica. Incorpora tratamiento hidrófugo, perlita y un aumento en la densidad para conseguir soluciones constructivas que cumplan, altos requisitos frente al fuego y una capacidad reducida de absorción de agua. Reacción al fuego: EUROCLASE A1. Sistema de galces desiguales: las placas encajan entre ellas dejando una entrecalle de 3 mm por donde se inserta la pasta de juntas. Este sistema no utiliza cinta de papel. La pasta de juntas se aplica en las cavidades de las placas y una masilla elástica en los encuentros. Atornillada a cada lado de una estructura metálica de acero galvanizado formada por canales de 100 mm y montantes de 51x99x49 mm con una modulación de 600 mm entre ejes, dando un ancho total de tabique de 159 mm. Incluida parte proporcional del resto de materiales: tornillería, pasta de juntas, masilla para encuentros perimetrales, fijaciones, junta estanca, etc. Montaje según norma de instalación UNE 102043 y exigencias del CTE.
C31: 69980 | D31: 1.2.9 | E31: TABIQUE ATT® 179/600 (99) [20+20+99+20+20] | F31: 600 | G31: 99 | H31: 40 | I31: Tabique formado por dos placas BASIC de 20 mm de espesor compuestas por yeso natural, fibra de vidrio y aditivos inorgánicos que le aportan alta dureza y resistencia mecánica. Reacción al fuego: EUROCLASE A1. Sistema de galces desiguales: las placas encajan entre ellas dejando una entrecalle de 3 mm por donde se inserta la pasta de juntas. Este sistema no utiliza cinta de papel. La pasta de juntas se aplica en las cavidades de las placas y una masilla elástica en los encuentros. Atornillada a cada lado de una estructura metálica de acero galvanizado formada por canales de 100 mm y montantes de 51x99x49 mm con una modulación de 600 mm entre ejes, dando un ancho total de tabique de 179 mm. Incluida parte proporcional del resto de materiales: tornillería, pasta de juntas, masilla para encuentros perimetrales, fijaciones, junta estanca, etc. Montaje según norma de instalación UNE 102043 y exigencias del CTE. | J31: Tabique formado por dos placas HIDRO de 20 mm de espesor compuestas por yeso natural, fibra de vidrio y aditivos inorgánicos que le aportan alta dureza y resistencia mecánica. Incorpora tratamiento hidrófugo, disminuyendo así su capacidad de absorción de agua (menor al 5%). Idónea para proteger las estancias de los efectos adversos de la humedad. Reacción al fuego: EUROCLASE A1. Sistema de galces desiguales: las placas encajan entre ellas dejando una entrecalle de 3 mm por donde se inserta la pasta de juntas. Este sistema no utiliza cinta de papel. La pasta de juntas se aplica en las cavidades de las placas y una masilla elástica en los encuentros. Atornillada a cada lado de una estructura metálica de acero galvanizado formada por canales de 100 mm y montantes de 51x99x49 mm con una modulación de 600 mm entre ejes, dando un ancho total de tabique de 179 mm. Incluida parte proporcional del resto de materiales: tornillería, pasta de juntas, masilla para encuentros perimetrales, fijaciones, junta estanca, etc. Montaje según norma de instalación UNE 102043 y exigencias del CTE. | K31: Tabique formado por dos placas FUEGO de 20 mm de espesor compuestas por yeso natural, fibra de vidrio y aditivos inorgánicos que le aportan alta dureza y resistencia mecánica. Incorpora perlita y un aumento en la densidad que la hace idónea para un excelente comportamiento y resistencia frente al fuego. Reacción al fuego: EUROCLASE A1. Sistema de galces desiguales: las placas encajan entre ellas dejando una entrecalle de 3 mm por donde se inserta la pasta de juntas. Este sistema no utiliza cinta de papel. La pasta de juntas se aplica en las cavidades de las placas y una masilla elástica en los encuentros. Atornillada a cada lado de una estructura metálica de acero galvanizado formada por canales de 100 mm y montantes de 51x99x49 mm con una modulación de 600 mm entre ejes, dando un ancho total de tabique de 179 mm. Incluida parte proporcional del resto de materiales: tornillería, pasta de juntas, masilla para encuentros perimetrales, fijaciones, junta estanca, etc. Montaje según norma de instalación UNE 102043 y exigencias del CTE. | L31: Tabique formado por dos placas RESIST de 20 mm de espesor compuestas por yeso natural, fibra de vidrio y aditivos inorgánicos que le aportan alta dureza y resistencia mecánica. Con mayor cantidad de fibra de vidrio y dosificación modificada, aumenta su densidad, mejorando notablemente la resistencia mecánica. Idónea para lugares con altas exigencias en cuanto a deterioro y desgaste. Reacción al fuego: EUROCLASE A1. Sistema de galces desiguales: las placas encajan entre ellas dejando una entrecalle de 3 mm por donde se inserta la pasta de juntas. Este sistema no utiliza cinta de papel. La pasta de juntas se aplica en las cavidades de las placas y una masilla elástica en los encuentros. Atornillada a cada lado de una estructura metálica de acero galvanizado formada por canales de 100 mm y montantes de 51x99x49 mm con una modulación de 600 mm entre ejes, dando un ancho total de tabique de 179 mm. Incluida parte proporcional del resto de materiales: tornillería, pasta de juntas, masilla para encuentros perimetrales, fijaciones, junta estanca, etc. Montaje según norma de instalación UNE 102043 y exigencias del CTE. | M31: Tabique formado por dos placas HIDROPLUS de 20 mm de espesor compuestas por yeso natural, fibra de vidrio y aditivos inorgánicos que le aportan alta dureza y resistencia mecánica. Incorpora tratamiento hidrófugo y un aumento en su densidad, características claves para una elevada resistencia a la humedad (absorción de agua menor al 3%) y una gran resistencia mecánica. Idónea para zonas de intemperie. Reacción al fuego: EUROCLASE A1. Sistema de galces desiguales: las placas encajan entre ellas dejando una entrecalle de 3 mm por donde se inserta la pasta de juntas. Este sistema no utiliza cinta de papel. La pasta de juntas se aplica en las cavidades de las placas y una masilla elástica en los encuentros. Atornillada a cada lado de una estructura metálica de acero galvanizado formada por canales de 100 mm y montantes de 51x99x49 mm con una modulación de 600 mm entre ejes, dando un ancho total de tabique de 179 mm. Incluida parte proporcional del resto de materiales: tornillería, pasta de juntas, masilla para encuentros perimetrales, fijaciones, junta estanca, etc. Montaje según norma de instalación UNE 102043 y exigencias del CTE. | N31: Tabique formado por dos placas SUPREM de 20 mm de espesor compuestas por yeso natural, fibra de vidrio y aditivos inorgánicos que le aportan alta dureza y resistencia mecánica. Incorpora tratamiento hidrófugo, perlita y un aumento en la densidad para conseguir soluciones constructivas que cumplan, altos requisitos frente al fuego y una capacidad reducida de absorción de agua. Reacción al fuego: EUROCLASE A1. Sistema de galces desiguales: las placas encajan entre ellas dejando una entrecalle de 3 mm por donde se inserta la pasta de juntas. Este sistema no utiliza cinta de papel. La pasta de juntas se aplica en las cavidades de las placas y una masilla elástica en los encuentros. Atornillada a cada lado de una estructura metálica de acero galvanizado formada por canales de 100 mm y montantes de 51x99x49 mm con una modulación de 600 mm entre ejes, dando un ancho total de tabique de 179 mm. Incluida parte proporcional del resto de materiales: tornillería, pasta de juntas, masilla para encuentros perimetrales, fijaciones, junta estanca, etc. Montaje según norma de instalación UNE 102043 y exigencias del CTE.
C32: 44952 | D32: 1.2.10 | E32: TABIQUE ATT® 101/400 (49) [13+13+49+13+13] | F32: 400 | G32: 49 | H32: 26 | I32: Tabique formado por dos placas BASIC de 13 mm de espesor compuestas por yeso natural, fibra de vidrio y aditivos inorgánicos que le aportan alta dureza y resistencia mecánica. Reacción al fuego: EUROCLASE A1. Sistema de galces desiguales: las placas encajan entre ellas dejando una entrecalle de 3 mm por donde se inserta la pasta de juntas. Este sistema no utiliza cinta de papel. La pasta de juntas se aplica en las cavidades de las placas y una masilla elástica en los encuentros. Atornillada a cada lado de una estructura metálica de acero galvanizado formada por canales de 50 mm y montantes de 51x49x49 mm con una modulación de 400 mm entre ejes, dando un ancho total de tabique de 101 mm. Incluida parte proporcional del resto de materiales: tornillería, pasta de juntas, masilla para encuentros perimetrales, fijaciones, junta estanca, etc. Montaje según norma de instalación UNE 102043 y exigencias del CTE. | J32: Tabique formado por dos placas HIDRO de 13 mm de espesor compuestas por yeso natural, fibra de vidrio y aditivos inorgánicos que le aportan alta dureza y resistencia mecánica. Incorpora tratamiento hidrófugo, disminuyendo así su capacidad de absorción de agua (menor al 5%). Idónea para proteger las estancias de los efectos adversos de la humedad. Reacción al fuego: EUROCLASE A1. Sistema de galces desiguales: las placas encajan entre ellas dejando una entrecalle de 3 mm por donde se inserta la pasta de juntas. Este sistema no utiliza cinta de papel. La pasta de juntas se aplica en las cavidades de las placas y una masilla elástica en los encuentros. Atornillada a cada lado de una estructura metálica de acero galvanizado formada por canales de 50 mm y montantes de 51x49x49 mm con una modulación de 400 mm entre ejes, dando un ancho total de tabique de 101 mm. Incluida parte proporcional del resto de materiales: tornillería, pasta de juntas, masilla para encuentros perimetrales, fijaciones, junta estanca, etc. Montaje según norma de instalación UNE 102043 y exigencias del CTE. | K32: Tabique formado por dos placas FUEGO de 13 mm de espesor compuestas por yeso natural, fibra de vidrio y aditivos inorgánicos que le aportan alta dureza y resistencia mecánica. Incorpora perlita y un aumento en la densidad que la hace idónea para un excelente comportamiento y resistencia frente al fuego. Reacción al fuego: EUROCLASE A1. Sistema de galces desiguales: las placas encajan entre ellas dejando una entrecalle de 3 mm por donde se inserta la pasta de juntas. Este sistema no utiliza cinta de papel. La pasta de juntas se aplica en las cavidades de las placas y una masilla elástica en los encuentros. Atornillada a cada lado de una estructura metálica de acero galvanizado formada por canales de 50 mm y montantes de 51x49x49 mm con una modulación de 400 mm entre ejes, dando un ancho total de tabique de 101 mm. Incluida parte proporcional del resto de materiales: tornillería, pasta de juntas, masilla para encuentros perimetrales, fijaciones, junta estanca, etc. Montaje según norma de instalación UNE 102043 y exigencias del CTE. | L32: Tabique formado por dos placas RESIST de 13 mm de espesor compuestas por yeso natural, fibra de vidrio y aditivos inorgánicos que le aportan alta dureza y resistencia mecánica. Con mayor cantidad de fibra de vidrio y dosificación modificada, aumenta su densidad, mejorando notablemente la resistencia mecánica. Idónea para lugares con altas exigencias en cuanto a deterioro y desgaste. Reacción al fuego: EUROCLASE A1. Sistema de galces desiguales: las placas encajan entre ellas dejando una entrecalle de 3 mm por donde se inserta la pasta de juntas. Este sistema no utiliza cinta de papel. La pasta de juntas se aplica en las cavidades de las placas y una masilla elástica en los encuentros. Atornillada a cada lado de una estructura metálica de acero galvanizado formada por canales de 50 mm y montantes de 51x49x49 mm con una modulación de 400 mm entre ejes, dando un ancho total de tabique de 101 mm. Incluida parte proporcional del resto de materiales: tornillería, pasta de juntas, masilla para encuentros perimetrales, fijaciones, junta estanca, etc. Montaje según norma de instalación UNE 102043 y exigencias del CTE. | M32: Tabique formado por dos placas HIDROPLUS de 13 mm de espesor compuestas por yeso natural, fibra de vidrio y aditivos inorgánicos que le aportan alta dureza y resistencia mecánica. Incorpora tratamiento hidrófugo y un aumento en su densidad, características claves para una elevada resistencia a la humedad (absorción de agua menor al 3%) y una gran resistencia mecánica. Idónea para zonas de intemperie. Reacción al fuego: EUROCLASE A1. Sistema de galces desiguales: las placas encajan entre ellas dejando una entrecalle de 3 mm por donde se inserta la pasta de juntas. Este sistema no utiliza cinta de papel. La pasta de juntas se aplica en las cavidades de las placas y una masilla elástica en los encuentros. Atornillada a cada lado de una estructura metálica de acero galvanizado formada por canales de 50 mm y montantes de 51x49x49 mm con una modulación de 400 mm entre ejes, dando un ancho total de tabique de 101 mm. Incluida parte proporcional del resto de materiales: tornillería, pasta de juntas, masilla para encuentros perimetrales, fijaciones, junta estanca, etc. Montaje según norma de instalación UNE 102043 y exigencias del CTE. | N32: Tabique formado por dos placas SUPREM de 13 mm de espesor compuestas por yeso natural, fibra de vidrio y aditivos inorgánicos que le aportan alta dureza y resistencia mecánica. Incorpora tratamiento hidrófugo, perlita y un aumento en la densidad para conseguir soluciones constructivas que cumplan, altos requisitos frente al fuego y una capacidad reducida de absorción de agua. Reacción al fuego: EUROCLASE A1. Sistema de galces desiguales: las placas encajan entre ellas dejando una entrecalle de 3 mm por donde se inserta la pasta de juntas. Este sistema no utiliza cinta de papel. La pasta de juntas se aplica en las cavidades de las placas y una masilla elástica en los encuentros. Atornillada a cada lado de una estructura metálica de acero galvanizado formada por canales de 50 mm y montantes de 51x49x49 mm con una modulación de 400 mm entre ejes, dando un ancho total de tabique de 101 mm. Incluida parte proporcional del resto de materiales: tornillería, pasta de juntas, masilla para encuentros perimetrales, fijaciones, junta estanca, etc. Montaje según norma de instalación UNE 102043 y exigencias del CTE.
C33: 44960 | D33: 1.2.11 | E33: TABIQUE ATT® 109/400 (49) [15+15+49+15+15] | F33: 400 | G33: 49 | H33: 30 | I33: Tabique formado por dos placas BASIC de 15 mm de espesor compuestas por yeso natural, fibra de vidrio y aditivos inorgánicos que le aportan alta dureza y resistencia mecánica. Reacción al fuego: EUROCLASE A1. Sistema de galces desiguales: las placas encajan entre ellas dejando una entrecalle de 3 mm por donde se inserta la pasta de juntas. Este sistema no utiliza cinta de papel. La pasta de juntas se aplica en las cavidades de las placas y una masilla elástica en los encuentros. Atornillada a cada lado de una estructura metálica de acero galvanizado formada por canales de 50 mm y montantes de 51x49x49 mm con una modulación de 400 mm entre ejes, dando un ancho total de tabique de 109 mm. Incluida parte proporcional del resto de materiales: tornillería, pasta de juntas, masilla para encuentros perimetrales, fijaciones, junta estanca, etc. Montaje según norma de instalación UNE 102043 y exigencias del CTE. | J33: Tabique formado por dos placas HIDRO de 15 mm de espesor compuestas por yeso natural, fibra de vidrio y aditivos inorgánicos que le aportan alta dureza y resistencia mecánica. Incorpora tratamiento hidrófugo, disminuyendo así su capacidad de absorción de agua (menor al 5%). Idónea para proteger las estancias de los efectos adversos de la humedad. Reacción al fuego: EUROCLASE A1. Sistema de galces desiguales: las placas encajan entre ellas dejando una entrecalle de 3 mm por donde se inserta la pasta de juntas. Este sistema no utiliza cinta de papel. La pasta de juntas se aplica en las cavidades de las placas y una masilla elástica en los encuentros. Atornillada a cada lado de una estructura metálica de acero galvanizado formada por canales de 50 mm y montantes de 51x49x49 mm con una modulación de 400 mm entre ejes, dando un ancho total de tabique de 109 mm. Incluida parte proporcional del resto de materiales: tornillería, pasta de juntas, masilla para encuentros perimetrales, fijaciones, junta estanca, etc. Montaje según norma de instalación UNE 102043 y exigencias del CTE. | K33: Tabique formado por dos placas FUEGO de 15 mm de espesor compuestas por yeso natural, fibra de vidrio y aditivos inorgánicos que le aportan alta dureza y resistencia mecánica. Incorpora perlita y un aumento en la densidad que la hace idónea para un excelente comportamiento y resistencia frente al fuego. Reacción al fuego: EUROCLASE A1. Sistema de galces desiguales: las placas encajan entre ellas dejando una entrecalle de 3 mm por donde se inserta la pasta de juntas. Este sistema no utiliza cinta de papel. La pasta de juntas se aplica en las cavidades de las placas y una masilla elástica en los encuentros. Atornillada a cada lado de una estructura metálica de acero galvanizado formada por canales de 50 mm y montantes de 51x49x49 mm con una modulación de 400 mm entre ejes, dando un ancho total de tabique de 109 mm. Incluida parte proporcional del resto de materiales: tornillería, pasta de juntas, masilla para encuentros perimetrales, fijaciones, junta estanca, etc. Montaje según norma de instalación UNE 102043 y exigencias del CTE. | L33: Tabique formado por dos placas RESIST de 15 mm de espesor compuestas por yeso natural, fibra de vidrio y aditivos inorgánicos que le aportan alta dureza y resistencia mecánica. Con mayor cantidad de fibra de vidrio y dosificación modificada, aumenta su densidad, mejorando notablemente la resistencia mecánica. Idónea para lugares con altas exigencias en cuanto a deterioro y desgaste. Reacción al fuego: EUROCLASE A1. Sistema de galces desiguales: las placas encajan entre ellas dejando una entrecalle de 3 mm por donde se inserta la pasta de juntas. Este sistema no utiliza cinta de papel. La pasta de juntas se aplica en las cavidades de las placas y una masilla elástica en los encuentros. Atornillada a cada lado de una estructura metálica de acero galvanizado formada por canales de 50 mm y montantes de 51x49x49 mm con una modulación de 400 mm entre ejes, dando un ancho total de tabique de 109 mm. Incluida parte proporcional del resto de materiales: tornillería, pasta de juntas, masilla para encuentros perimetrales, fijaciones, junta estanca, etc. Montaje según norma de instalación UNE 102043 y exigencias del CTE. | M33: Tabique formado por dos placas HIDROPLUS de 15 mm de espesor compuestas por yeso natural, fibra de vidrio y aditivos inorgánicos que le aportan alta dureza y resistencia mecánica. Incorpora tratamiento hidrófugo y un aumento en su densidad, características claves para una elevada resistencia a la humedad (absorción de agua menor al 3%) y una gran resistencia mecánica. Idónea para zonas de intemperie. Reacción al fuego: EUROCLASE A1. Sistema de galces desiguales: las placas encajan entre ellas dejando una entrecalle de 3 mm por donde se inserta la pasta de juntas. Este sistema no utiliza cinta de papel. La pasta de juntas se aplica en las cavidades de las placas y una masilla elástica en los encuentros. Atornillada a cada lado de una estructura metálica de acero galvanizado formada por canales de 50 mm y montantes de 51x49x49 mm con una modulación de 400 mm entre ejes, dando un ancho total de tabique de 109 mm. Incluida parte proporcional del resto de materiales: tornillería, pasta de juntas, masilla para encuentros perimetrales, fijaciones, junta estanca, etc. Montaje según norma de instalación UNE 102043 y exigencias del CTE. | N33: Tabique formado por dos placas SUPREM de 15 mm de espesor compuestas por yeso natural, fibra de vidrio y aditivos inorgánicos que le aportan alta dureza y resistencia mecánica. Incorpora tratamiento hidrófugo, perlita y un aumento en la densidad para conseguir soluciones constructivas que cumplan, altos requisitos frente al fuego y una capacidad reducida de absorción de agua. Reacción al fuego: EUROCLASE A1. Sistema de galces desiguales: las placas encajan entre ellas dejando una entrecalle de 3 mm por donde se inserta la pasta de juntas. Este sistema no utiliza cinta de papel. La pasta de juntas se aplica en las cavidades de las placas y una masilla elástica en los encuentros. Atornillada a cada lado de una estructura metálica de acero galvanizado formada por canales de 50 mm y montantes de 51x49x49 mm con una modulación de 400 mm entre ejes, dando un ancho total de tabique de 109 mm. Incluida parte proporcional del resto de materiales: tornillería, pasta de juntas, masilla para encuentros perimetrales, fijaciones, junta estanca, etc. Montaje según norma de instalación UNE 102043 y exigencias del CTE.
C34: 44980 | D34: 1.2.12 | E34: TABIQUE ATT® 129/400 (49) [20+20+49+20+20] | F34: 400 | G34: 49 | H34: 40 | I34: Tabique formado por dos placas BASIC de 20 mm de espesor compuestas por yeso natural, fibra de vidrio y aditivos inorgánicos que le aportan alta dureza y resistencia mecánica. Reacción al fuego: EUROCLASE A1. Sistema de galces desiguales: las placas encajan entre ellas dejando una entrecalle de 3 mm por donde se inserta la pasta de juntas. Este sistema no utiliza cinta de papel. La pasta de juntas se aplica en las cavidades de las placas y una masilla elástica en los encuentros. Atornillada a cada lado de una estructura metálica de acero galvanizado formada por canales de 50 mm y montantes de 51x49x49 mm con una modulación de 400 mm entre ejes, dando un ancho total de tabique de 129 mm. Incluida parte proporcional del resto de materiales: tornillería, pasta de juntas, masilla para encuentros perimetrales, fijaciones, junta estanca, etc. Montaje según norma de instalación UNE 102043 y exigencias del CTE. | J34: Tabique formado por dos placas HIDRO de 20 mm de espesor compuestas por yeso natural, fibra de vidrio y aditivos inorgánicos que le aportan alta dureza y resistencia mecánica. Incorpora tratamiento hidrófugo, disminuyendo así su capacidad de absorción de agua (menor al 5%). Idónea para proteger las estancias de los efectos adversos de la humedad. Reacción al fuego: EUROCLASE A1. Sistema de galces desiguales: las placas encajan entre ellas dejando una entrecalle de 3 mm por donde se inserta la pasta de juntas. Este sistema no utiliza cinta de papel. La pasta de juntas se aplica en las cavidades de las placas y una masilla elástica en los encuentros. Atornillada a cada lado de una estructura metálica de acero galvanizado formada por canales de 50 mm y montantes de 51x49x49 mm con una modulación de 400 mm entre ejes, dando un ancho total de tabique de 129 mm. Incluida parte proporcional del resto de materiales: tornillería, pasta de juntas, masilla para encuentros perimetrales, fijaciones, junta estanca, etc. Montaje según norma de instalación UNE 102043 y exigencias del CTE. | K34: Tabique formado por dos placas FUEGO de 20 mm de espesor compuestas por yeso natural, fibra de vidrio y aditivos inorgánicos que le aportan alta dureza y resistencia mecánica. Incorpora perlita y un aumento en la densidad que la hace idónea para un excelente comportamiento y resistencia frente al fuego. Reacción al fuego: EUROCLASE A1. Sistema de galces desiguales: las placas encajan entre ellas dejando una entrecalle de 3 mm por donde se inserta la pasta de juntas. Este sistema no utiliza cinta de papel. La pasta de juntas se aplica en las cavidades de las placas y una masilla elástica en los encuentros. Atornillada a cada lado de una estructura metálica de acero galvanizado formada por canales de 50 mm y montantes de 51x49x49 mm con una modulación de 400 mm entre ejes, dando un ancho total de tabique de 129 mm. Incluida parte proporcional del resto de materiales: tornillería, pasta de juntas, masilla para encuentros perimetrales, fijaciones, junta estanca, etc. Montaje según norma de instalación UNE 102043 y exigencias del CTE. | L34: Tabique formado por dos placas RESIST de 20 mm de espesor compuestas por yeso natural, fibra de vidrio y aditivos inorgánicos que le aportan alta dureza y resistencia mecánica. Con mayor cantidad de fibra de vidrio y dosificación modificada, aumenta su densidad, mejorando notablemente la resistencia mecánica. Idónea para lugares con altas exigencias en cuanto a deterioro y desgaste. Reacción al fuego: EUROCLASE A1. Sistema de galces desiguales: las placas encajan entre ellas dejando una entrecalle de 3 mm por donde se inserta la pasta de juntas. Este sistema no utiliza cinta de papel. La pasta de juntas se aplica en las cavidades de las placas y una masilla elástica en los encuentros. Atornillada a cada lado de una estructura metálica de acero galvanizado formada por canales de 50 mm y montantes de 51x49x49 mm con una modulación de 400 mm entre ejes, dando un ancho total de tabique de 129 mm. Incluida parte proporcional del resto de materiales: tornillería, pasta de juntas, masilla para encuentros perimetrales, fijaciones, junta estanca, etc. Montaje según norma de instalación UNE 102043 y exigencias del CTE. | M34: Tabique formado por dos placas HIDROPLUS de 20 mm de espesor compuestas por yeso natural, fibra de vidrio y aditivos inorgánicos que le aportan alta dureza y resistencia mecánica. Incorpora tratamiento hidrófugo y un aumento en su densidad, características claves para una elevada resistencia a la humedad (absorción de agua menor al 3%) y una gran resistencia mecánica. Idónea para zonas de intemperie. Reacción al fuego: EUROCLASE A1. Sistema de galces desiguales: las placas encajan entre ellas dejando una entrecalle de 3 mm por donde se inserta la pasta de juntas. Este sistema no utiliza cinta de papel. La pasta de juntas se aplica en las cavidades de las placas y una masilla elástica en los encuentros. Atornillada a cada lado de una estructura metálica de acero galvanizado formada por canales de 50 mm y montantes de 51x49x49 mm con una modulación de 400 mm entre ejes, dando un ancho total de tabique de 129 mm. Incluida parte proporcional del resto de materiales: tornillería, pasta de juntas, masilla para encuentros perimetrales, fijaciones, junta estanca, etc. Montaje según norma de instalación UNE 102043 y exigencias del CTE. | N34: Tabique formado por dos placas SUPREM de 20 mm de espesor compuestas por yeso natural, fibra de vidrio y aditivos inorgánicos que le aportan alta dureza y resistencia mecánica. Incorpora tratamiento hidrófugo, perlita y un aumento en la densidad para conseguir soluciones constructivas que cumplan, altos requisitos frente al fuego y una capacidad reducida de absorción de agua. Reacción al fuego: EUROCLASE A1. Sistema de galces desiguales: las placas encajan entre ellas dejando una entrecalle de 3 mm por donde se inserta la pasta de juntas. Este sistema no utiliza cinta de papel. La pasta de juntas se aplica en las cavidades de las placas y una masilla elástica en los encuentros. Atornillada a cada lado de una estructura metálica de acero galvanizado formada por canales de 50 mm y montantes de 51x49x49 mm con una modulación de 400 mm entre ejes, dando un ancho total de tabique de 129 mm. Incluida parte proporcional del resto de materiales: tornillería, pasta de juntas, masilla para encuentros perimetrales, fijaciones, junta estanca, etc. Montaje según norma de instalación UNE 102043 y exigencias del CTE.
C35: 47452 | D35: 1.2.13 | E35: TABIQUE ATT® 126/400 (74) [13+13+74+13+13] | F35: 400 | G35: 74 | H35: 26 | I35: Tabique formado por dos placas BASIC de 13 mm de espesor compuestas por yeso natural, fibra de vidrio y aditivos inorgánicos que le aportan alta dureza y resistencia mecánica. Reacción al fuego: EUROCLASE A1. Sistema de galces desiguales: las placas encajan entre ellas dejando una entrecalle de 3 mm por donde se inserta la pasta de juntas. Este sistema no utiliza cinta de papel. La pasta de juntas se aplica en las cavidades de las placas y una masilla elástica en los encuentros. Atornillada a cada lado de una estructura metálica de acero galvanizado formada por canales de 75 mm y montantes de 51x74x49 mm con una modulación de 400 mm entre ejes, dando un ancho total de tabique de 126 mm. Incluida parte proporcional del resto de materiales: tornillería, pasta de juntas, masilla para encuentros perimetrales, fijaciones, junta estanca, etc. Montaje según norma de instalación UNE 102043 y exigencias del CTE. | J35: Tabique formado por dos placas HIDRO de 13 mm de espesor compuestas por yeso natural, fibra de vidrio y aditivos inorgánicos que le aportan alta dureza y resistencia mecánica. Incorpora tratamiento hidrófugo, disminuyendo así su capacidad de absorción de agua (menor al 5%). Idónea para proteger las estancias de los efectos adversos de la humedad. Reacción al fuego: EUROCLASE A1. Sistema de galces desiguales: las placas encajan entre ellas dejando una entrecalle de 3 mm por donde se inserta la pasta de juntas. Este sistema no utiliza cinta de papel. La pasta de juntas se aplica en las cavidades de las placas y una masilla elástica en los encuentros. Atornillada a cada lado de una estructura metálica de acero galvanizado formada por canales de 75 mm y montantes de 51x74x49 mm con una modulación de 400 mm entre ejes, dando un ancho total de tabique de 126 mm. Incluida parte proporcional del resto de materiales: tornillería, pasta de juntas, masilla para encuentros perimetrales, fijaciones, junta estanca, etc. Montaje según norma de instalación UNE 102043 y exigencias del CTE. | K35: Tabique formado por dos placas FUEGO de 13 mm de espesor compuestas por yeso natural, fibra de vidrio y aditivos inorgánicos que le aportan alta dureza y resistencia mecánica. Incorpora perlita y un aumento en la densidad que la hace idónea para un excelente comportamiento y resistencia frente al fuego. Reacción al fuego: EUROCLASE A1. Sistema de galces desiguales: las placas encajan entre ellas dejando una entrecalle de 3 mm por donde se inserta la pasta de juntas. Este sistema no utiliza cinta de papel. La pasta de juntas se aplica en las cavidades de las placas y una masilla elástica en los encuentros. Atornillada a cada lado de una estructura metálica de acero galvanizado formada por canales de 75 mm y montantes de 51x74x49 mm con una modulación de 400 mm entre ejes, dando un ancho total de tabique de 126 mm. Incluida parte proporcional del resto de materiales: tornillería, pasta de juntas, masilla para encuentros perimetrales, fijaciones, junta estanca, etc. Montaje según norma de instalación UNE 102043 y exigencias del CTE. | L35: Tabique formado por dos placas RESIST de 13 mm de espesor compuestas por yeso natural, fibra de vidrio y aditivos inorgánicos que le aportan alta dureza y resistencia mecánica. Con mayor cantidad de fibra de vidrio y dosificación modificada, aumenta su densidad, mejorando notablemente la resistencia mecánica. Idónea para lugares con altas exigencias en cuanto a deterioro y desgaste. Reacción al fuego: EUROCLASE A1. Sistema de galces desiguales: las placas encajan entre ellas dejando una entrecalle de 3 mm por donde se inserta la pasta de juntas. Este sistema no utiliza cinta de papel. La pasta de juntas se aplica en las cavidades de las placas y una masilla elástica en los encuentros. Atornillada a cada lado de una estructura metálica de acero galvanizado formada por canales de 75 mm y montantes de 51x74x49 mm con una modulación de 400 mm entre ejes, dando un ancho total de tabique de 126 mm. Incluida parte proporcional del resto de materiales: tornillería, pasta de juntas, masilla para encuentros perimetrales, fijaciones, junta estanca, etc. Montaje según norma de instalación UNE 102043 y exigencias del CTE. | M35: Tabique formado por dos placas HIDROPLUS de 13 mm de espesor compuestas por yeso natural, fibra de vidrio y aditivos inorgánicos que le aportan alta dureza y resistencia mecánica. Incorpora tratamiento hidrófugo y un aumento en su densidad, características claves para una elevada resistencia a la humedad (absorción de agua menor al 3%) y una gran resistencia mecánica. Idónea para zonas de intemperie. Reacción al fuego: EUROCLASE A1. Sistema de galces desiguales: las placas encajan entre ellas dejando una entrecalle de 3 mm por donde se inserta la pasta de juntas. Este sistema no utiliza cinta de papel. La pasta de juntas se aplica en las cavidades de las placas y una masilla elástica en los encuentros. Atornillada a cada lado de una estructura metálica de acero galvanizado formada por canales de 75 mm y montantes de 51x74x49 mm con una modulación de 400 mm entre ejes, dando un ancho total de tabique de 126 mm. Incluida parte proporcional del resto de materiales: tornillería, pasta de juntas, masilla para encuentros perimetrales, fijaciones, junta estanca, etc. Montaje según norma de instalación UNE 102043 y exigencias del CTE. | N35: Tabique formado por dos placas SUPREM de 13 mm de espesor compuestas por yeso natural, fibra de vidrio y aditivos inorgánicos que le aportan alta dureza y resistencia mecánica. Incorpora tratamiento hidrófugo, perlita y un aumento en la densidad para conseguir soluciones constructivas que cumplan, altos requisitos frente al fuego y una capacidad reducida de absorción de agua. Reacción al fuego: EUROCLASE A1. Sistema de galces desiguales: las placas encajan entre ellas dejando una entrecalle de 3 mm por donde se inserta la pasta de juntas. Este sistema no utiliza cinta de papel. La pasta de juntas se aplica en las cavidades de las placas y una masilla elástica en los encuentros. Atornillada a cada lado de una estructura metálica de acero galvanizado formada por canales de 75 mm y montantes de 51x74x49 mm con una modulación de 400 mm entre ejes, dando un ancho total de tabique de 126 mm. Incluida parte proporcional del resto de materiales: tornillería, pasta de juntas, masilla para encuentros perimetrales, fijaciones, junta estanca, etc. Montaje según norma de instalación UNE 102043 y exigencias del CTE.
C36: 47460 | D36: 1.2.14 | E36: TABIQUE ATT® 134/400 (74) [15+15+74+15+15] | F36: 400 | G36: 74 | H36: 30 | I36: Tabique formado por dos placas BASIC de 15 mm de espesor compuestas por yeso natural, fibra de vidrio y aditivos inorgánicos que le aportan alta dureza y resistencia mecánica. Reacción al fuego: EUROCLASE A1. Sistema de galces desiguales: las placas encajan entre ellas dejando una entrecalle de 3 mm por donde se inserta la pasta de juntas. Este sistema no utiliza cinta de papel. La pasta de juntas se aplica en las cavidades de las placas y una masilla elástica en los encuentros. Atornillada a cada lado de una estructura metálica de acero galvanizado formada por canales de 75 mm y montantes de 51x74x49 mm con una modulación de 400 mm entre ejes, dando un ancho total de tabique de 134 mm. Incluida parte proporcional del resto de materiales: tornillería, pasta de juntas, masilla para encuentros perimetrales, fijaciones, junta estanca, etc. Montaje según norma de instalación UNE 102043 y exigencias del CTE. | J36: Tabique formado por dos placas HIDRO de 15 mm de espesor compuestas por yeso natural, fibra de vidrio y aditivos inorgánicos que le aportan alta dureza y resistencia mecánica. Incorpora tratamiento hidrófugo, disminuyendo así su capacidad de absorción de agua (menor al 5%). Idónea para proteger las estancias de los efectos adversos de la humedad. Reacción al fuego: EUROCLASE A1. Sistema de galces desiguales: las placas encajan entre ellas dejando una entrecalle de 3 mm por donde se inserta la pasta de juntas. Este sistema no utiliza cinta de papel. La pasta de juntas se aplica en las cavidades de las placas y una masilla elástica en los encuentros. Atornillada a cada lado de una estructura metálica de acero galvanizado formada por canales de 75 mm y montantes de 51x74x49 mm con una modulación de 400 mm entre ejes, dando un ancho total de tabique de 134 mm. Incluida parte proporcional del resto de materiales: tornillería, pasta de juntas, masilla para encuentros perimetrales, fijaciones, junta estanca, etc. Montaje según norma de instalación UNE 102043 y exigencias del CTE. | K36: Tabique formado por dos placas FUEGO de 15 mm de espesor compuestas por yeso natural, fibra de vidrio y aditivos inorgánicos que le aportan alta dureza y resistencia mecánica. Incorpora perlita y un aumento en la densidad que la hace idónea para un excelente comportamiento y resistencia frente al fuego. Reacción al fuego: EUROCLASE A1. Sistema de galces desiguales: las placas encajan entre ellas dejando una entrecalle de 3 mm por donde se inserta la pasta de juntas. Este sistema no utiliza cinta de papel. La pasta de juntas se aplica en las cavidades de las placas y una masilla elástica en los encuentros. Atornillada a cada lado de una estructura metálica de acero galvanizado formada por canales de 75 mm y montantes de 51x74x49 mm con una modulación de 400 mm entre ejes, dando un ancho total de tabique de 134 mm. Incluida parte proporcional del resto de materiales: tornillería, pasta de juntas, masilla para encuentros perimetrales, fijaciones, junta estanca, etc. Montaje según norma de instalación UNE 102043 y exigencias del CTE. | L36: Tabique formado por dos placas RESIST de 15 mm de espesor compuestas por yeso natural, fibra de vidrio y aditivos inorgánicos que le aportan alta dureza y resistencia mecánica. Con mayor cantidad de fibra de vidrio y dosificación modificada, aumenta su densidad, mejorando notablemente la resistencia mecánica. Idónea para lugares con altas exigencias en cuanto a deterioro y desgaste. Reacción al fuego: EUROCLASE A1. Sistema de galces desiguales: las placas encajan entre ellas dejando una entrecalle de 3 mm por donde se inserta la pasta de juntas. Este sistema no utiliza cinta de papel. La pasta de juntas se aplica en las cavidades de las placas y una masilla elástica en los encuentros. Atornillada a cada lado de una estructura metálica de acero galvanizado formada por canales de 75 mm y montantes de 51x74x49 mm con una modulación de 400 mm entre ejes, dando un ancho total de tabique de 134 mm. Incluida parte proporcional del resto de materiales: tornillería, pasta de juntas, masilla para encuentros perimetrales, fijaciones, junta estanca, etc. Montaje según norma de instalación UNE 102043 y exigencias del CTE. | M36: Tabique formado por dos placas HIDROPLUS de 15 mm de espesor compuestas por yeso natural, fibra de vidrio y aditivos inorgánicos que le aportan alta dureza y resistencia mecánica. Incorpora tratamiento hidrófugo y un aumento en su densidad, características claves para una elevada resistencia a la humedad (absorción de agua menor al 3%) y una gran resistencia mecánica. Idónea para zonas de intemperie. Reacción al fuego: EUROCLASE A1. Sistema de galces desiguales: las placas encajan entre ellas dejando una entrecalle de 3 mm por donde se inserta la pasta de juntas. Este sistema no utiliza cinta de papel. La pasta de juntas se aplica en las cavidades de las placas y una masilla elástica en los encuentros. Atornillada a cada lado de una estructura metálica de acero galvanizado formada por canales de 75 mm y montantes de 51x74x49 mm con una modulación de 400 mm entre ejes, dando un ancho total de tabique de 134 mm. Incluida parte proporcional del resto de materiales: tornillería, pasta de juntas, masilla para encuentros perimetrales, fijaciones, junta estanca, etc. Montaje según norma de instalación UNE 102043 y exigencias del CTE. | N36: Tabique formado por dos placas SUPREM de 15 mm de espesor compuestas por yeso natural, fibra de vidrio y aditivos inorgánicos que le aportan alta dureza y resistencia mecánica. Incorpora tratamiento hidrófugo, perlita y un aumento en la densidad para conseguir soluciones constructivas que cumplan, altos requisitos frente al fuego y una capacidad reducida de absorción de agua. Reacción al fuego: EUROCLASE A1. Sistema de galces desiguales: las placas encajan entre ellas dejando una entrecalle de 3 mm por donde se inserta la pasta de juntas. Este sistema no utiliza cinta de papel. La pasta de juntas se aplica en las cavidades de las placas y una masilla elástica en los encuentros. Atornillada a cada lado de una estructura metálica de acero galvanizado formada por canales de 75 mm y montantes de 51x74x49 mm con una modulación de 400 mm entre ejes, dando un ancho total de tabique de 134 mm. Incluida parte proporcional del resto de materiales: tornillería, pasta de juntas, masilla para encuentros perimetrales, fijaciones, junta estanca, etc. Montaje según norma de instalación UNE 102043 y exigencias del CTE.
C37: 47480 | D37: 1.2.15 | E37: TABIQUE ATT® 154/400 (74) [20+20+74+20+20] | F37: 400 | G37: 74 | H37: 40 | I37: Tabique formado por dos placas BASIC de 20 mm de espesor compuestas por yeso natural, fibra de vidrio y aditivos inorgánicos que le aportan alta dureza y resistencia mecánica. Reacción al fuego: EUROCLASE A1. Sistema de galces desiguales: las placas encajan entre ellas dejando una entrecalle de 3 mm por donde se inserta la pasta de juntas. Este sistema no utiliza cinta de papel. La pasta de juntas se aplica en las cavidades de las placas y una masilla elástica en los encuentros. Atornillada a cada lado de una estructura metálica de acero galvanizado formada por canales de 75 mm y montantes de 51x74x49 mm con una modulación de 400 mm entre ejes, dando un ancho total de tabique de 154 mm. Incluida parte proporcional del resto de materiales: tornillería, pasta de juntas, masilla para encuentros perimetrales, fijaciones, junta estanca, etc. Montaje según norma de instalación UNE 102043 y exigencias del CTE. | J37: Tabique formado por dos placas HIDRO de 20 mm de espesor compuestas por yeso natural, fibra de vidrio y aditivos inorgánicos que le aportan alta dureza y resistencia mecánica. Incorpora tratamiento hidrófugo, disminuyendo así su capacidad de absorción de agua (menor al 5%). Idónea para proteger las estancias de los efectos adversos de la humedad. Reacción al fuego: EUROCLASE A1. Sistema de galces desiguales: las placas encajan entre ellas dejando una entrecalle de 3 mm por donde se inserta la pasta de juntas. Este sistema no utiliza cinta de papel. La pasta de juntas se aplica en las cavidades de las placas y una masilla elástica en los encuentros. Atornillada a cada lado de una estructura metálica de acero galvanizado formada por canales de 75 mm y montantes de 51x74x49 mm con una modulación de 400 mm entre ejes, dando un ancho total de tabique de 154 mm. Incluida parte proporcional del resto de materiales: tornillería, pasta de juntas, masilla para encuentros perimetrales, fijaciones, junta estanca, etc. Montaje según norma de instalación UNE 102043 y exigencias del CTE. | K37: Tabique formado por dos placas FUEGO de 20 mm de espesor compuestas por yeso natural, fibra de vidrio y aditivos inorgánicos que le aportan alta dureza y resistencia mecánica. Incorpora perlita y un aumento en la densidad que la hace idónea para un excelente comportamiento y resistencia frente al fuego. Reacción al fuego: EUROCLASE A1. Sistema de galces desiguales: las placas encajan entre ellas dejando una entrecalle de 3 mm por donde se inserta la pasta de juntas. Este sistema no utiliza cinta de papel. La pasta de juntas se aplica en las cavidades de las placas y una masilla elástica en los encuentros. Atornillada a cada lado de una estructura metálica de acero galvanizado formada por canales de 75 mm y montantes de 51x74x49 mm con una modulación de 400 mm entre ejes, dando un ancho total de tabique de 154 mm. Incluida parte proporcional del resto de materiales: tornillería, pasta de juntas, masilla para encuentros perimetrales, fijaciones, junta estanca, etc. Montaje según norma de instalación UNE 102043 y exigencias del CTE. | L37: Tabique formado por dos placas RESIST de 20 mm de espesor compuestas por yeso natural, fibra de vidrio y aditivos inorgánicos que le aportan alta dureza y resistencia mecánica. Con mayor cantidad de fibra de vidrio y dosificación modificada, aumenta su densidad, mejorando notablemente la resistencia mecánica. Idónea para lugares con altas exigencias en cuanto a deterioro y desgaste. Reacción al fuego: EUROCLASE A1. Sistema de galces desiguales: las placas encajan entre ellas dejando una entrecalle de 3 mm por donde se inserta la pasta de juntas. Este sistema no utiliza cinta de papel. La pasta de juntas se aplica en las cavidades de las placas y una masilla elástica en los encuentros. Atornillada a cada lado de una estructura metálica de acero galvanizado formada por canales de 75 mm y montantes de 51x74x49 mm con una modulación de 400 mm entre ejes, dando un ancho total de tabique de 154 mm. Incluida parte proporcional del resto de materiales: tornillería, pasta de juntas, masilla para encuentros perimetrales, fijaciones, junta estanca, etc. Montaje según norma de instalación UNE 102043 y exigencias del CTE. | M37: Tabique formado por dos placas HIDROPLUS de 20 mm de espesor compuestas por yeso natural, fibra de vidrio y aditivos inorgánicos que le aportan alta dureza y resistencia mecánica. Incorpora tratamiento hidrófugo y un aumento en su densidad, características claves para una elevada resistencia a la humedad (absorción de agua menor al 3%) y una gran resistencia mecánica. Idónea para zonas de intemperie. Reacción al fuego: EUROCLASE A1. Sistema de galces desiguales: las placas encajan entre ellas dejando una entrecalle de 3 mm por donde se inserta la pasta de juntas. Este sistema no utiliza cinta de papel. La pasta de juntas se aplica en las cavidades de las placas y una masilla elástica en los encuentros. Atornillada a cada lado de una estructura metálica de acero galvanizado formada por canales de 75 mm y montantes de 51x74x49 mm con una modulación de 400 mm entre ejes, dando un ancho total de tabique de 154 mm. Incluida parte proporcional del resto de materiales: tornillería, pasta de juntas, masilla para encuentros perimetrales, fijaciones, junta estanca, etc. Montaje según norma de instalación UNE 102043 y exigencias del CTE. | N37: Tabique formado por dos placas SUPREM de 20 mm de espesor compuestas por yeso natural, fibra de vidrio y aditivos inorgánicos que le aportan alta dureza y resistencia mecánica. Incorpora tratamiento hidrófugo, perlita y un aumento en la densidad para conseguir soluciones constructivas que cumplan, altos requisitos frente al fuego y una capacidad reducida de absorción de agua. Reacción al fuego: EUROCLASE A1. Sistema de galces desiguales: las placas encajan entre ellas dejando una entrecalle de 3 mm por donde se inserta la pasta de juntas. Este sistema no utiliza cinta de papel. La pasta de juntas se aplica en las cavidades de las placas y una masilla elástica en los encuentros. Atornillada a cada lado de una estructura metálica de acero galvanizado formada por canales de 75 mm y montantes de 51x74x49 mm con una modulación de 400 mm entre ejes, dando un ancho total de tabique de 154 mm. Incluida parte proporcional del resto de materiales: tornillería, pasta de juntas, masilla para encuentros perimetrales, fijaciones, junta estanca, etc. Montaje según norma de instalación UNE 102043 y exigencias del CTE.
C38: 49952 | D38: 1.2.16 | E38: TABIQUE ATT® 151/400 (99) [13+13+99+13+13] | F38: 400 | G38: 99 | H38: 26 | I38: Tabique formado por dos placas BASIC de 13 mm de espesor compuestas por yeso natural, fibra de vidrio y aditivos inorgánicos que le aportan alta dureza y resistencia mecánica. Reacción al fuego: EUROCLASE A1. Sistema de galces desiguales: las placas encajan entre ellas dejando una entrecalle de 3 mm por donde se inserta la pasta de juntas. Este sistema no utiliza cinta de papel. La pasta de juntas se aplica en las cavidades de las placas y una masilla elástica en los encuentros. Atornillada a cada lado de una estructura metálica de acero galvanizado formada por canales de 100 mm y montantes de 51x99x49 mm con una modulación de 400 mm entre ejes, dando un ancho total de tabique de 151 mm. Incluida parte proporcional del resto de materiales: tornillería, pasta de juntas, masilla para encuentros perimetrales, fijaciones, junta estanca, etc. Montaje según norma de instalación UNE 102043 y exigencias del CTE. | J38: Tabique formado por dos placas HIDRO de 13 mm de espesor compuestas por yeso natural, fibra de vidrio y aditivos inorgánicos que le aportan alta dureza y resistencia mecánica. Incorpora tratamiento hidrófugo, disminuyendo así su capacidad de absorción de agua (menor al 5%). Idónea para proteger las estancias de los efectos adversos de la humedad. Reacción al fuego: EUROCLASE A1. Sistema de galces desiguales: las placas encajan entre ellas dejando una entrecalle de 3 mm por donde se inserta la pasta de juntas. Este sistema no utiliza cinta de papel. La pasta de juntas se aplica en las cavidades de las placas y una masilla elástica en los encuentros. Atornillada a cada lado de una estructura metálica de acero galvanizado formada por canales de 100 mm y montantes de 51x99x49 mm con una modulación de 400 mm entre ejes, dando un ancho total de tabique de 151 mm. Incluida parte proporcional del resto de materiales: tornillería, pasta de juntas, masilla para encuentros perimetrales, fijaciones, junta estanca, etc. Montaje según norma de instalación UNE 102043 y exigencias del CTE. | K38: Tabique formado por dos placas FUEGO de 13 mm de espesor compuestas por yeso natural, fibra de vidrio y aditivos inorgánicos que le aportan alta dureza y resistencia mecánica. Incorpora perlita y un aumento en la densidad que la hace idónea para un excelente comportamiento y resistencia frente al fuego. Reacción al fuego: EUROCLASE A1. Sistema de galces desiguales: las placas encajan entre ellas dejando una entrecalle de 3 mm por donde se inserta la pasta de juntas. Este sistema no utiliza cinta de papel. La pasta de juntas se aplica en las cavidades de las placas y una masilla elástica en los encuentros. Atornillada a cada lado de una estructura metálica de acero galvanizado formada por canales de 100 mm y montantes de 51x99x49 mm con una modulación de 400 mm entre ejes, dando un ancho total de tabique de 151 mm. Incluida parte proporcional del resto de materiales: tornillería, pasta de juntas, masilla para encuentros perimetrales, fijaciones, junta estanca, etc. Montaje según norma de instalación UNE 102043 y exigencias del CTE. | L38: Tabique formado por dos placas RESIST de 13 mm de espesor compuestas por yeso natural, fibra de vidrio y aditivos inorgánicos que le aportan alta dureza y resistencia mecánica. Con mayor cantidad de fibra de vidrio y dosificación modificada, aumenta su densidad, mejorando notablemente la resistencia mecánica. Idónea para lugares con altas exigencias en cuanto a deterioro y desgaste. Reacción al fuego: EUROCLASE A1. Sistema de galces desiguales: las placas encajan entre ellas dejando una entrecalle de 3 mm por donde se inserta la pasta de juntas. Este sistema no utiliza cinta de papel. La pasta de juntas se aplica en las cavidades de las placas y una masilla elástica en los encuentros. Atornillada a cada lado de una estructura metálica de acero galvanizado formada por canales de 100 mm y montantes de 51x99x49 mm con una modulación de 400 mm entre ejes, dando un ancho total de tabique de 151 mm. Incluida parte proporcional del resto de materiales: tornillería, pasta de juntas, masilla para encuentros perimetrales, fijaciones, junta estanca, etc. Montaje según norma de instalación UNE 102043 y exigencias del CTE. | M38: Tabique formado por dos placas HIDROPLUS de 13 mm de espesor compuestas por yeso natural, fibra de vidrio y aditivos inorgánicos que le aportan alta dureza y resistencia mecánica. Incorpora tratamiento hidrófugo y un aumento en su densidad, características claves para una elevada resistencia a la humedad (absorción de agua menor al 3%) y una gran resistencia mecánica. Idónea para zonas de intemperie. Reacción al fuego: EUROCLASE A1. Sistema de galces desiguales: las placas encajan entre ellas dejando una entrecalle de 3 mm por donde se inserta la pasta de juntas. Este sistema no utiliza cinta de papel. La pasta de juntas se aplica en las cavidades de las placas y una masilla elástica en los encuentros. Atornillada a cada lado de una estructura metálica de acero galvanizado formada por canales de 100 mm y montantes de 51x99x49 mm con una modulación de 400 mm entre ejes, dando un ancho total de tabique de 151 mm. Incluida parte proporcional del resto de materiales: tornillería, pasta de juntas, masilla para encuentros perimetrales, fijaciones, junta estanca, etc. Montaje según norma de instalación UNE 102043 y exigencias del CTE. | N38: Tabique formado por dos placas SUPREM de 13 mm de espesor compuestas por yeso natural, fibra de vidrio y aditivos inorgánicos que le aportan alta dureza y resistencia mecánica. Incorpora tratamiento hidrófugo, perlita y un aumento en la densidad para conseguir soluciones constructivas que cumplan, altos requisitos frente al fuego y una capacidad reducida de absorción de agua. Reacción al fuego: EUROCLASE A1. Sistema de galces desiguales: las placas encajan entre ellas dejando una entrecalle de 3 mm por donde se inserta la pasta de juntas. Este sistema no utiliza cinta de papel. La pasta de juntas se aplica en las cavidades de las placas y una masilla elástica en los encuentros. Atornillada a cada lado de una estructura metálica de acero galvanizado formada por canales de 100 mm y montantes de 51x99x49 mm con una modulación de 400 mm entre ejes, dando un ancho total de tabique de 151 mm. Incluida parte proporcional del resto de materiales: tornillería, pasta de juntas, masilla para encuentros perimetrales, fijaciones, junta estanca, etc. Montaje según norma de instalación UNE 102043 y exigencias del CTE.
C39: 49960 | D39: 1.2.17 | E39: TABIQUE ATT® 159/400 (99) [15+15+99+15+15] | F39: 400 | G39: 99 | H39: 30 | I39: Tabique formado por dos placas BASIC de 15 mm de espesor compuestas por yeso natural, fibra de vidrio y aditivos inorgánicos que le aportan alta dureza y resistencia mecánica. Reacción al fuego: EUROCLASE A1. Sistema de galces desiguales: las placas encajan entre ellas dejando una entrecalle de 3 mm por donde se inserta la pasta de juntas. Este sistema no utiliza cinta de papel. La pasta de juntas se aplica en las cavidades de las placas y una masilla elástica en los encuentros. Atornillada a cada lado de una estructura metálica de acero galvanizado formada por canales de 100 mm y montantes de 51x99x49 mm con una modulación de 400 mm entre ejes, dando un ancho total de tabique de 159 mm. Incluida parte proporcional del resto de materiales: tornillería, pasta de juntas, masilla para encuentros perimetrales, fijaciones, junta estanca, etc. Montaje según norma de instalación UNE 102043 y exigencias del CTE. | J39: Tabique formado por dos placas HIDRO de 15 mm de espesor compuestas por yeso natural, fibra de vidrio y aditivos inorgánicos que le aportan alta dureza y resistencia mecánica. Incorpora tratamiento hidrófugo, disminuyendo así su capacidad de absorción de agua (menor al 5%). Idónea para proteger las estancias de los efectos adversos de la humedad. Reacción al fuego: EUROCLASE A1. Sistema de galces desiguales: las placas encajan entre ellas dejando una entrecalle de 3 mm por donde se inserta la pasta de juntas. Este sistema no utiliza cinta de papel. La pasta de juntas se aplica en las cavidades de las placas y una masilla elástica en los encuentros. Atornillada a cada lado de una estructura metálica de acero galvanizado formada por canales de 100 mm y montantes de 51x99x49 mm con una modulación de 400 mm entre ejes, dando un ancho total de tabique de 159 mm. Incluida parte proporcional del resto de materiales: tornillería, pasta de juntas, masilla para encuentros perimetrales, fijaciones, junta estanca, etc. Montaje según norma de instalación UNE 102043 y exigencias del CTE. | K39: Tabique formado por dos placas FUEGO de 15 mm de espesor compuestas por yeso natural, fibra de vidrio y aditivos inorgánicos que le aportan alta dureza y resistencia mecánica. Incorpora perlita y un aumento en la densidad que la hace idónea para un excelente comportamiento y resistencia frente al fuego. Reacción al fuego: EUROCLASE A1. Sistema de galces desiguales: las placas encajan entre ellas dejando una entrecalle de 3 mm por donde se inserta la pasta de juntas. Este sistema no utiliza cinta de papel. La pasta de juntas se aplica en las cavidades de las placas y una masilla elástica en los encuentros. Atornillada a cada lado de una estructura metálica de acero galvanizado formada por canales de 100 mm y montantes de 51x99x49 mm con una modulación de 400 mm entre ejes, dando un ancho total de tabique de 159 mm. Incluida parte proporcional del resto de materiales: tornillería, pasta de juntas, masilla para encuentros perimetrales, fijaciones, junta estanca, etc. Montaje según norma de instalación UNE 102043 y exigencias del CTE. | L39: Tabique formado por dos placas RESIST de 15 mm de espesor compuestas por yeso natural, fibra de vidrio y aditivos inorgánicos que le aportan alta dureza y resistencia mecánica. Con mayor cantidad de fibra de vidrio y dosificación modificada, aumenta su densidad, mejorando notablemente la resistencia mecánica. Idónea para lugares con altas exigencias en cuanto a deterioro y desgaste. Reacción al fuego: EUROCLASE A1. Sistema de galces desiguales: las placas encajan entre ellas dejando una entrecalle de 3 mm por donde se inserta la pasta de juntas. Este sistema no utiliza cinta de papel. La pasta de juntas se aplica en las cavidades de las placas y una masilla elástica en los encuentros. Atornillada a cada lado de una estructura metálica de acero galvanizado formada por canales de 100 mm y montantes de 51x99x49 mm con una modulación de 400 mm entre ejes, dando un ancho total de tabique de 159 mm. Incluida parte proporcional del resto de materiales: tornillería, pasta de juntas, masilla para encuentros perimetrales, fijaciones, junta estanca, etc. Montaje según norma de instalación UNE 102043 y exigencias del CTE. | M39: Tabique formado por dos placas HIDROPLUS de 15 mm de espesor compuestas por yeso natural, fibra de vidrio y aditivos inorgánicos que le aportan alta dureza y resistencia mecánica. Incorpora tratamiento hidrófugo y un aumento en su densidad, características claves para una elevada resistencia a la humedad (absorción de agua menor al 3%) y una gran resistencia mecánica. Idónea para zonas de intemperie. Reacción al fuego: EUROCLASE A1. Sistema de galces desiguales: las placas encajan entre ellas dejando una entrecalle de 3 mm por donde se inserta la pasta de juntas. Este sistema no utiliza cinta de papel. La pasta de juntas se aplica en las cavidades de las placas y una masilla elástica en los encuentros. Atornillada a cada lado de una estructura metálica de acero galvanizado formada por canales de 100 mm y montantes de 51x99x49 mm con una modulación de 400 mm entre ejes, dando un ancho total de tabique de 159 mm. Incluida parte proporcional del resto de materiales: tornillería, pasta de juntas, masilla para encuentros perimetrales, fijaciones, junta estanca, etc. Montaje según norma de instalación UNE 102043 y exigencias del CTE. | N39: Tabique formado por dos placas SUPREM de 15 mm de espesor compuestas por yeso natural, fibra de vidrio y aditivos inorgánicos que le aportan alta dureza y resistencia mecánica. Incorpora tratamiento hidrófugo, perlita y un aumento en la densidad para conseguir soluciones constructivas que cumplan, altos requisitos frente al fuego y una capacidad reducida de absorción de agua. Reacción al fuego: EUROCLASE A1. Sistema de galces desiguales: las placas encajan entre ellas dejando una entrecalle de 3 mm por donde se inserta la pasta de juntas. Este sistema no utiliza cinta de papel. La pasta de juntas se aplica en las cavidades de las placas y una masilla elástica en los encuentros. Atornillada a cada lado de una estructura metálica de acero galvanizado formada por canales de 100 mm y montantes de 51x99x49 mm con una modulación de 400 mm entre ejes, dando un ancho total de tabique de 159 mm. Incluida parte proporcional del resto de materiales: tornillería, pasta de juntas, masilla para encuentros perimetrales, fijaciones, junta estanca, etc. Montaje según norma de instalación UNE 102043 y exigencias del CTE.
C40: 49980 | D40: 1.2.18 | E40: TABIQUE ATT® 179/400 (99) [20+20+99+20+20] | F40: 400 | G40: 99 | H40: 40 | I40: Tabique formado por dos placas BASIC de 20 mm de espesor compuestas por yeso natural, fibra de vidrio y aditivos inorgánicos que le aportan alta dureza y resistencia mecánica. Reacción al fuego: EUROCLASE A1. Sistema de galces desiguales: las placas encajan entre ellas dejando una entrecalle de 3 mm por donde se inserta la pasta de juntas. Este sistema no utiliza cinta de papel. La pasta de juntas se aplica en las cavidades de las placas y una masilla elástica en los encuentros. Atornillada a cada lado de una estructura metálica de acero galvanizado formada por canales de 100 mm y montantes de 51x99x49 mm con una modulación de 400 mm entre ejes, dando un ancho total de tabique de 179 mm. Incluida parte proporcional del resto de materiales: tornillería, pasta de juntas, masilla para encuentros perimetrales, fijaciones, junta estanca, etc. Montaje según norma de instalación UNE 102043 y exigencias del CTE. | J40: Tabique formado por dos placas HIDRO de 20 mm de espesor compuestas por yeso natural, fibra de vidrio y aditivos inorgánicos que le aportan alta dureza y resistencia mecánica. Incorpora tratamiento hidrófugo, disminuyendo así su capacidad de absorción de agua (menor al 5%). Idónea para proteger las estancias de los efectos adversos de la humedad. Reacción al fuego: EUROCLASE A1. Sistema de galces desiguales: las placas encajan entre ellas dejando una entrecalle de 3 mm por donde se inserta la pasta de juntas. Este sistema no utiliza cinta de papel. La pasta de juntas se aplica en las cavidades de las placas y una masilla elástica en los encuentros. Atornillada a cada lado de una estructura metálica de acero galvanizado formada por canales de 100 mm y montantes de 51x99x49 mm con una modulación de 400 mm entre ejes, dando un ancho total de tabique de 179 mm. Incluida parte proporcional del resto de materiales: tornillería, pasta de juntas, masilla para encuentros perimetrales, fijaciones, junta estanca, etc. Montaje según norma de instalación UNE 102043 y exigencias del CTE. | K40: Tabique formado por dos placas FUEGO de 20 mm de espesor compuestas por yeso natural, fibra de vidrio y aditivos inorgánicos que le aportan alta dureza y resistencia mecánica. Incorpora perlita y un aumento en la densidad que la hace idónea para un excelente comportamiento y resistencia frente al fuego. Reacción al fuego: EUROCLASE A1. Sistema de galces desiguales: las placas encajan entre ellas dejando una entrecalle de 3 mm por donde se inserta la pasta de juntas. Este sistema no utiliza cinta de papel. La pasta de juntas se aplica en las cavidades de las placas y una masilla elástica en los encuentros. Atornillada a cada lado de una estructura metálica de acero galvanizado formada por canales de 100 mm y montantes de 51x99x49 mm con una modulación de 400 mm entre ejes, dando un ancho total de tabique de 179 mm. Incluida parte proporcional del resto de materiales: tornillería, pasta de juntas, masilla para encuentros perimetrales, fijaciones, junta estanca, etc. Montaje según norma de instalación UNE 102043 y exigencias del CTE. | L40: Tabique formado por dos placas RESIST de 20 mm de espesor compuestas por yeso natural, fibra de vidrio y aditivos inorgánicos que le aportan alta dureza y resistencia mecánica. Con mayor cantidad de fibra de vidrio y dosificación modificada, aumenta su densidad, mejorando notablemente la resistencia mecánica. Idónea para lugares con altas exigencias en cuanto a deterioro y desgaste. Reacción al fuego: EUROCLASE A1. Sistema de galces desiguales: las placas encajan entre ellas dejando una entrecalle de 3 mm por donde se inserta la pasta de juntas. Este sistema no utiliza cinta de papel. La pasta de juntas se aplica en las cavidades de las placas y una masilla elástica en los encuentros. Atornillada a cada lado de una estructura metálica de acero galvanizado formada por canales de 100 mm y montantes de 51x99x49 mm con una modulación de 400 mm entre ejes, dando un ancho total de tabique de 179 mm. Incluida parte proporcional del resto de materiales: tornillería, pasta de juntas, masilla para encuentros perimetrales, fijaciones, junta estanca, etc. Montaje según norma de instalación UNE 102043 y exigencias del CTE. | M40: Tabique formado por dos placas HIDROPLUS de 20 mm de espesor compuestas por yeso natural, fibra de vidrio y aditivos inorgánicos que le aportan alta dureza y resistencia mecánica. Incorpora tratamiento hidrófugo y un aumento en su densidad, características claves para una elevada resistencia a la humedad (absorción de agua menor al 3%) y una gran resistencia mecánica. Idónea para zonas de intemperie. Reacción al fuego: EUROCLASE A1. Sistema de galces desiguales: las placas encajan entre ellas dejando una entrecalle de 3 mm por donde se inserta la pasta de juntas. Este sistema no utiliza cinta de papel. La pasta de juntas se aplica en las cavidades de las placas y una masilla elástica en los encuentros. Atornillada a cada lado de una estructura metálica de acero galvanizado formada por canales de 100 mm y montantes de 51x99x49 mm con una modulación de 400 mm entre ejes, dando un ancho total de tabique de 179 mm. Incluida parte proporcional del resto de materiales: tornillería, pasta de juntas, masilla para encuentros perimetrales, fijaciones, junta estanca, etc. Montaje según norma de instalación UNE 102043 y exigencias del CTE. | N40: Tabique formado por dos placas SUPREM de 20 mm de espesor compuestas por yeso natural, fibra de vidrio y aditivos inorgánicos que le aportan alta dureza y resistencia mecánica. Incorpora tratamiento hidrófugo, perlita y un aumento en la densidad para conseguir soluciones constructivas que cumplan, altos requisitos frente al fuego y una capacidad reducida de absorción de agua. Reacción al fuego: EUROCLASE A1. Sistema de galces desiguales: las placas encajan entre ellas dejando una entrecalle de 3 mm por donde se inserta la pasta de juntas. Este sistema no utiliza cinta de papel. La pasta de juntas se aplica en las cavidades de las placas y una masilla elástica en los encuentros. Atornillada a cada lado de una estructura metálica de acero galvanizado formada por canales de 100 mm y montantes de 51x99x49 mm con una modulación de 400 mm entre ejes, dando un ancho total de tabique de 179 mm. Incluida parte proporcional del resto de materiales: tornillería, pasta de juntas, masilla para encuentros perimetrales, fijaciones, junta estanca, etc. Montaje según norma de instalación UNE 102043 y exigencias del CTE.
C41: 64978 | D41: 1.3.1 | E41: TABIQUE ATT® 127/600 (49) [13+13+13+49+13+13+13] | F41: 600 | G41: 49 | H41: =3*13 -> 39 | I41: Tabique formado por tres placas BASIC de 13 mm de espesor compuestas por yeso natural, fibra de vidrio y aditivos inorgánicos que le aportan alta dureza y resistencia mecánica. Reacción al fuego: EUROCLASE A1. Sistema de galces desiguales: las placas encajan entre ellas dejando una entrecalle de 3 mm por donde se inserta la pasta de juntas. Este sistema no utiliza cinta de papel. La pasta de juntas se aplica en las cavidades de las placas y una masilla elástica en los encuentros. Atornillada a cada lado de una estructura metálica de acero galvanizado formada por canales de 50 mm y montantes de 51x49x49 mm con una modulación de 600 mm entre ejes, dando un ancho total de tabique de 127 mm. Incluida parte proporcional del resto de materiales: tornillería, pasta de juntas, masilla para encuentros perimetrales, fijaciones, junta estanca, etc. Montaje según norma de instalación UNE 102043 y exigencias del CTE. | J41: Tabique formado por tres placas HIDRO de 13 mm de espesor compuestas por yeso natural, fibra de vidrio y aditivos inorgánicos que le aportan alta dureza y resistencia mecánica. Incorpora tratamiento hidrófugo, disminuyendo así su capacidad de absorción de agua (menor al 5%). Idónea para proteger las estancias de los efectos adversos de la humedad. Reacción al fuego: EUROCLASE A1. Sistema de galces desiguales: las placas encajan entre ellas dejando una entrecalle de 3 mm por donde se inserta la pasta de juntas. Este sistema no utiliza cinta de papel. La pasta de juntas se aplica en las cavidades de las placas y una masilla elástica en los encuentros. Atornillada a cada lado de una estructura metálica de acero galvanizado formada por canales de 50 mm y montantes de 51x49x49 mm con una modulación de 600 mm entre ejes, dando un ancho total de tabique de 127 mm. Incluida parte proporcional del resto de materiales: tornillería, pasta de juntas, masilla para encuentros perimetrales, fijaciones, junta estanca, etc. Montaje según norma de instalación UNE 102043 y exigencias del CTE. | K41: Tabique formado por tres placas FUEGO de 13 mm de espesor compuestas por yeso natural, fibra de vidrio y aditivos inorgánicos que le aportan alta dureza y resistencia mecánica. Incorpora perlita y un aumento en la densidad que la hace idónea para un excelente comportamiento y resistencia frente al fuego. Reacción al fuego: EUROCLASE A1. Sistema de galces desiguales: las placas encajan entre ellas dejando una entrecalle de 3 mm por donde se inserta la pasta de juntas. Este sistema no utiliza cinta de papel. La pasta de juntas se aplica en las cavidades de las placas y una masilla elástica en los encuentros. Atornillada a cada lado de una estructura metálica de acero galvanizado formada por canales de 50 mm y montantes de 51x49x49 mm con una modulación de 600 mm entre ejes, dando un ancho total de tabique de 127 mm. Incluida parte proporcional del resto de materiales: tornillería, pasta de juntas, masilla para encuentros perimetrales, fijaciones, junta estanca, etc. Montaje según norma de instalación UNE 102043 y exigencias del CTE. | L41: Tabique formado por tres placas RESIST de 13 mm de espesor compuestas por yeso natural, fibra de vidrio y aditivos inorgánicos que le aportan alta dureza y resistencia mecánica. Con mayor cantidad de fibra de vidrio y dosificación modificada, aumenta su densidad, mejorando notablemente la resistencia mecánica. Idónea para lugares con altas exigencias en cuanto a deterioro y desgaste. Reacción al fuego: EUROCLASE A1. Sistema de galces desiguales: las placas encajan entre ellas dejando una entrecalle de 3 mm por donde se inserta la pasta de juntas. Este sistema no utiliza cinta de papel. La pasta de juntas se aplica en las cavidades de las placas y una masilla elástica en los encuentros. Atornillada a cada lado de una estructura metálica de acero galvanizado formada por canales de 50 mm y montantes de 51x49x49 mm con una modulación de 600 mm entre ejes, dando un ancho total de tabique de 127 mm. Incluida parte proporcional del resto de materiales: tornillería, pasta de juntas, masilla para encuentros perimetrales, fijaciones, junta estanca, etc. Montaje según norma de instalación UNE 102043 y exigencias del CTE. | M41: Tabique formado por tres placas HIDROPLUS de 13 mm de espesor compuestas por yeso natural, fibra de vidrio y aditivos inorgánicos que le aportan alta dureza y resistencia mecánica. Incorpora tratamiento hidrófugo y un aumento en su densidad, características claves para una elevada resistencia a la humedad (absorción de agua menor al 3%) y una gran resistencia mecánica. Idónea para zonas de intemperie. Reacción al fuego: EUROCLASE A1. Sistema de galces desiguales: las placas encajan entre ellas dejando una entrecalle de 3 mm por donde se inserta la pasta de juntas. Este sistema no utiliza cinta de papel. La pasta de juntas se aplica en las cavidades de las placas y una masilla elástica en los encuentros. Atornillada a cada lado de una estructura metálica de acero galvanizado formada por canales de 50 mm y montantes de 51x49x49 mm con una modulación de 600 mm entre ejes, dando un ancho total de tabique de 127 mm. Incluida parte proporcional del resto de materiales: tornillería, pasta de juntas, masilla para encuentros perimetrales, fijaciones, junta estanca, etc. Montaje según norma de instalación UNE 102043 y exigencias del CTE. | N41: Tabique formado por tres placas SUPREM de 13 mm de espesor compuestas por yeso natural, fibra de vidrio y aditivos inorgánicos que le aportan alta dureza y resistencia mecánica. Incorpora tratamiento hidrófugo, perlita y un aumento en la densidad para conseguir soluciones constructivas que cumplan, altos requisitos frente al fuego y una capacidad reducida de absorción de agua. Reacción al fuego: EUROCLASE A1. Sistema de galces desiguales: las placas encajan entre ellas dejando una entrecalle de 3 mm por donde se inserta la pasta de juntas. Este sistema no utiliza cinta de papel. La pasta de juntas se aplica en las cavidades de las placas y una masilla elástica en los encuentros. Atornillada a cada lado de una estructura metálica de acero galvanizado formada por canales de 50 mm y montantes de 51x49x49 mm con una modulación de 600 mm entre ejes, dando un ancho total de tabique de 127 mm. Incluida parte proporcional del resto de materiales: tornillería, pasta de juntas, masilla para encuentros perimetrales, fijaciones, junta estanca, etc. Montaje según norma de instalación UNE 102043 y exigencias del CTE.
C42: 64990 | D42: 1.3.2 | E42: TABIQUE ATT® 139/600 (49) [15+15+15+49+15+15+15] | F42: 600 | G42: 49 | H42: =3*15 -> 45 | I42: Tabique formado por tres placas BASIC de 15 mm de espesor compuestas por yeso natural, fibra de vidrio y aditivos inorgánicos que le aportan alta dureza y resistencia mecánica. Reacción al fuego: EUROCLASE A1. Sistema de galces desiguales: las placas encajan entre ellas dejando una entrecalle de 3 mm por donde se inserta la pasta de juntas. Este sistema no utiliza cinta de papel. La pasta de juntas se aplica en las cavidades de las placas y una masilla elástica en los encuentros. Atornillada a cada lado de una estructura metálica de acero galvanizado formada por canales de 50 mm y montantes de 51x49x49 mm con una modulación de 600 mm entre ejes, dando un ancho total de tabique de 139 mm. Incluida parte proporcional del resto de materiales: tornillería, pasta de juntas, masilla para encuentros perimetrales, fijaciones, junta estanca, etc. Montaje según norma de instalación UNE 102043 y exigencias del CTE. | J42: Tabique formado por tres placas HIDRO de 15 mm de espesor compuestas por yeso natural, fibra de vidrio y aditivos inorgánicos que le aportan alta dureza y resistencia mecánica. Incorpora tratamiento hidrófugo, disminuyendo así su capacidad de absorción de agua (menor al 5%). Idónea para proteger las estancias de los efectos adversos de la humedad. Reacción al fuego: EUROCLASE A1. Sistema de galces desiguales: las placas encajan entre ellas dejando una entrecalle de 3 mm por donde se inserta la pasta de juntas. Este sistema no utiliza cinta de papel. La pasta de juntas se aplica en las cavidades de las placas y una masilla elástica en los encuentros. Atornillada a cada lado de una estructura metálica de acero galvanizado formada por canales de 50 mm y montantes de 51x49x49 mm con una modulación de 600 mm entre ejes, dando un ancho total de tabique de 139 mm. Incluida parte proporcional del resto de materiales: tornillería, pasta de juntas, masilla para encuentros perimetrales, fijaciones, junta estanca, etc. Montaje según norma de instalación UNE 102043 y exigencias del CTE. | K42: Tabique formado por tres placas FUEGO de 15 mm de espesor compuestas por yeso natural, fibra de vidrio y aditivos inorgánicos que le aportan alta dureza y resistencia mecánica. Incorpora perlita y un aumento en la densidad que la hace idónea para un excelente comportamiento y resistencia frente al fuego. Reacción al fuego: EUROCLASE A1. Sistema de galces desiguales: las placas encajan entre ellas dejando una entrecalle de 3 mm por donde se inserta la pasta de juntas. Este sistema no utiliza cinta de papel. La pasta de juntas se aplica en las cavidades de las placas y una masilla elástica en los encuentros. Atornillada a cada lado de una estructura metálica de acero galvanizado formada por canales de 50 mm y montantes de 51x49x49 mm con una modulación de 600 mm entre ejes, dando un ancho total de tabique de 139 mm. Incluida parte proporcional del resto de materiales: tornillería, pasta de juntas, masilla para encuentros perimetrales, fijaciones, junta estanca, etc. Montaje según norma de instalación UNE 102043 y exigencias del CTE. | L42: Tabique formado por tres placas RESIST de 15 mm de espesor compuestas por yeso natural, fibra de vidrio y aditivos inorgánicos que le aportan alta dureza y resistencia mecánica. Con mayor cantidad de fibra de vidrio y dosificación modificada, aumenta su densidad, mejorando notablemente la resistencia mecánica. Idónea para lugares con altas exigencias en cuanto a deterioro y desgaste. Reacción al fuego: EUROCLASE A1. Sistema de galces desiguales: las placas encajan entre ellas dejando una entrecalle de 3 mm por donde se inserta la pasta de juntas. Este sistema no utiliza cinta de papel. La pasta de juntas se aplica en las cavidades de las placas y una masilla elástica en los encuentros. Atornillada a cada lado de una estructura metálica de acero galvanizado formada por canales de 50 mm y montantes de 51x49x49 mm con una modulación de 600 mm entre ejes, dando un ancho total de tabique de 139 mm. Incluida parte proporcional del resto de materiales: tornillería, pasta de juntas, masilla para encuentros perimetrales, fijaciones, junta estanca, etc. Montaje según norma de instalación UNE 102043 y exigencias del CTE. | M42: Tabique formado por tres placas HIDROPLUS de 15 mm de espesor compuestas por yeso natural, fibra de vidrio y aditivos inorgánicos que le aportan alta dureza y resistencia mecánica. Incorpora tratamiento hidrófugo y un aumento en su densidad, características claves para una elevada resistencia a la humedad (absorción de agua menor al 3%) y una gran resistencia mecánica. Idónea para zonas de intemperie. Reacción al fuego: EUROCLASE A1. Sistema de galces desiguales: las placas encajan entre ellas dejando una entrecalle de 3 mm por donde se inserta la pasta de juntas. Este sistema no utiliza cinta de papel. La pasta de juntas se aplica en las cavidades de las placas y una masilla elástica en los encuentros. Atornillada a cada lado de una estructura metálica de acero galvanizado formada por canales de 50 mm y montantes de 51x49x49 mm con una modulación de 600 mm entre ejes, dando un ancho total de tabique de 139 mm. Incluida parte proporcional del resto de materiales: tornillería, pasta de juntas, masilla para encuentros perimetrales, fijaciones, junta estanca, etc. Montaje según norma de instalación UNE 102043 y exigencias del CTE. | N42: Tabique formado por tres placas SUPREM de 15 mm de espesor compuestas por yeso natural, fibra de vidrio y aditivos inorgánicos que le aportan alta dureza y resistencia mecánica. Incorpora tratamiento hidrófugo, perlita y un aumento en la densidad para conseguir soluciones constructivas que cumplan, altos requisitos frente al fuego y una capacidad reducida de absorción de agua. Reacción al fuego: EUROCLASE A1. Sistema de galces desiguales: las placas encajan entre ellas dejando una entrecalle de 3 mm por donde se inserta la pasta de juntas. Este sistema no utiliza cinta de papel. La pasta de juntas se aplica en las cavidades de las placas y una masilla elástica en los encuentros. Atornillada a cada lado de una estructura metálica de acero galvanizado formada por canales de 50 mm y montantes de 51x49x49 mm con una modulación de 600 mm entre ejes, dando un ancho total de tabique de 139 mm. Incluida parte proporcional del resto de materiales: tornillería, pasta de juntas, masilla para encuentros perimetrales, fijaciones, junta estanca, etc. Montaje según norma de instalación UNE 102043 y exigencias del CTE.
C43: 65020 | D43: 1.3.3 | E43: TABIQUE ATT® 169/600 (49) [20+20+20+49+20+20+20] | F43: 600 | G43: 49 | H43: =3*20 -> 60 | I43: Tabique formado por tres placas BASIC de 20 mm de espesor compuestas por yeso natural, fibra de vidrio y aditivos inorgánicos que le aportan alta dureza y resistencia mecánica. Reacción al fuego: EUROCLASE A1. Sistema de galces desiguales: las placas encajan entre ellas dejando una entrecalle de 3 mm por donde se inserta la pasta de juntas. Este sistema no utiliza cinta de papel. La pasta de juntas se aplica en las cavidades de las placas y una masilla elástica en los encuentros. Atornillada a cada lado de una estructura metálica de acero galvanizado formada por canales de 50 mm y montantes de 51x49x49 mm con una modulación de 600 mm entre ejes, dando un ancho total de tabique de 169 mm. Incluida parte proporcional del resto de materiales: tornillería, pasta de juntas, masilla para encuentros perimetrales, fijaciones, junta estanca, etc. Montaje según norma de instalación UNE 102043 y exigencias del CTE. | J43: Tabique formado por tres placas HIDRO de 20 mm de espesor compuestas por yeso natural, fibra de vidrio y aditivos inorgánicos que le aportan alta dureza y resistencia mecánica. Incorpora tratamiento hidrófugo, disminuyendo así su capacidad de absorción de agua (menor al 5%). Idónea para proteger las estancias de los efectos adversos de la humedad. Reacción al fuego: EUROCLASE A1. Sistema de galces desiguales: las placas encajan entre ellas dejando una entrecalle de 3 mm por donde se inserta la pasta de juntas. Este sistema no utiliza cinta de papel. La pasta de juntas se aplica en las cavidades de las placas y una masilla elástica en los encuentros. Atornillada a cada lado de una estructura metálica de acero galvanizado formada por canales de 50 mm y montantes de 51x49x49 mm con una modulación de 600 mm entre ejes, dando un ancho total de tabique de 169 mm. Incluida parte proporcional del resto de materiales: tornillería, pasta de juntas, masilla para encuentros perimetrales, fijaciones, junta estanca, etc. Montaje según norma de instalación UNE 102043 y exigencias del CTE. | K43: Tabique formado por tres placas FUEGO de 20 mm de espesor compuestas por yeso natural, fibra de vidrio y aditivos inorgánicos que le aportan alta dureza y resistencia mecánica. Incorpora perlita y un aumento en la densidad que la hace idónea para un excelente comportamiento y resistencia frente al fuego. Reacción al fuego: EUROCLASE A1. Sistema de galces desiguales: las placas encajan entre ellas dejando una entrecalle de 3 mm por donde se inserta la pasta de juntas. Este sistema no utiliza cinta de papel. La pasta de juntas se aplica en las cavidades de las placas y una masilla elástica en los encuentros. Atornillada a cada lado de una estructura metálica de acero galvanizado formada por canales de 50 mm y montantes de 51x49x49 mm con una modulación de 600 mm entre ejes, dando un ancho total de tabique de 169 mm. Incluida parte proporcional del resto de materiales: tornillería, pasta de juntas, masilla para encuentros perimetrales, fijaciones, junta estanca, etc. Montaje según norma de instalación UNE 102043 y exigencias del CTE. | L43: Tabique formado por tres placas RESIST de 20 mm de espesor compuestas por yeso natural, fibra de vidrio y aditivos inorgánicos que le aportan alta dureza y resistencia mecánica. Con mayor cantidad de fibra de vidrio y dosificación modificada, aumenta su densidad, mejorando notablemente la resistencia mecánica. Idónea para lugares con altas exigencias en cuanto a deterioro y desgaste. Reacción al fuego: EUROCLASE A1. Sistema de galces desiguales: las placas encajan entre ellas dejando una entrecalle de 3 mm por donde se inserta la pasta de juntas. Este sistema no utiliza cinta de papel. La pasta de juntas se aplica en las cavidades de las placas y una masilla elástica en los encuentros. Atornillada a cada lado de una estructura metálica de acero galvanizado formada por canales de 50 mm y montantes de 51x49x49 mm con una modulación de 600 mm entre ejes, dando un ancho total de tabique de 169 mm. Incluida parte proporcional del resto de materiales: tornillería, pasta de juntas, masilla para encuentros perimetrales, fijaciones, junta estanca, etc. Montaje según norma de instalación UNE 102043 y exigencias del CTE. | M43: Tabique formado por tres placas HIDROPLUS de 20 mm de espesor compuestas por yeso natural, fibra de vidrio y aditivos inorgánicos que le aportan alta dureza y resistencia mecánica. Incorpora tratamiento hidrófugo y un aumento en su densidad, características claves para una elevada resistencia a la humedad (absorción de agua menor al 3%) y una gran resistencia mecánica. Idónea para zonas de intemperie. Reacción al fuego: EUROCLASE A1. Sistema de galces desiguales: las placas encajan entre ellas dejando una entrecalle de 3 mm por donde se inserta la pasta de juntas. Este sistema no utiliza cinta de papel. La pasta de juntas se aplica en las cavidades de las placas y una masilla elástica en los encuentros. Atornillada a cada lado de una estructura metálica de acero galvanizado formada por canales de 50 mm y montantes de 51x49x49 mm con una modulación de 600 mm entre ejes, dando un ancho total de tabique de 169 mm. Incluida parte proporcional del resto de materiales: tornillería, pasta de juntas, masilla para encuentros perimetrales, fijaciones, junta estanca, etc. Montaje según norma de instalación UNE 102043 y exigencias del CTE. | N43: Tabique formado por tres placas SUPREM de 20 mm de espesor compuestas por yeso natural, fibra de vidrio y aditivos inorgánicos que le aportan alta dureza y resistencia mecánica. Incorpora tratamiento hidrófugo, perlita y un aumento en la densidad para conseguir soluciones constructivas que cumplan, altos requisitos frente al fuego y una capacidad reducida de absorción de agua. Reacción al fuego: EUROCLASE A1. Sistema de galces desiguales: las placas encajan entre ellas dejando una entrecalle de 3 mm por donde se inserta la pasta de juntas. Este sistema no utiliza cinta de papel. La pasta de juntas se aplica en las cavidades de las placas y una masilla elástica en los encuentros. Atornillada a cada lado de una estructura metálica de acero galvanizado formada por canales de 50 mm y montantes de 51x49x49 mm con una modulación de 600 mm entre ejes, dando un ancho total de tabique de 169 mm. Incluida parte proporcional del resto de materiales: tornillería, pasta de juntas, masilla para encuentros perimetrales, fijaciones, junta estanca, etc. Montaje según norma de instalación UNE 102043 y exigencias del CTE.
C44: 67478 | D44: 1.3.4 | E44: TABIQUE ATT® 152/600 (74) [13+13+13+74+13+13+13] | F44: 600 | G44: 74 | H44: =3*13 -> 39 | I44: Tabique formado por tres placas BASIC de 13 mm de espesor compuestas por yeso natural, fibra de vidrio y aditivos inorgánicos que le aportan alta dureza y resistencia mecánica. Reacción al fuego: EUROCLASE A1. Sistema de galces desiguales: las placas encajan entre ellas dejando una entrecalle de 3 mm por donde se inserta la pasta de juntas. Este sistema no utiliza cinta de papel. La pasta de juntas se aplica en las cavidades de las placas y una masilla elástica en los encuentros. Atornillada a cada lado de una estructura metálica de acero galvanizado formada por canales de 75 mm y montantes de 51x74x49 mm con una modulación de 600 mm entre ejes, dando un ancho total de tabique de 152 mm. Incluida parte proporcional del resto de materiales: tornillería, pasta de juntas, masilla para encuentros perimetrales, fijaciones, junta estanca, etc. Montaje según norma de instalación UNE 102043 y exigencias del CTE. | J44: Tabique formado por tres placas HIDRO de 13 mm de espesor compuestas por yeso natural, fibra de vidrio y aditivos inorgánicos que le aportan alta dureza y resistencia mecánica. Incorpora tratamiento hidrófugo, disminuyendo así su capacidad de absorción de agua (menor al 5%). Idónea para proteger las estancias de los efectos adversos de la humedad. Reacción al fuego: EUROCLASE A1. Sistema de galces desiguales: las placas encajan entre ellas dejando una entrecalle de 3 mm por donde se inserta la pasta de juntas. Este sistema no utiliza cinta de papel. La pasta de juntas se aplica en las cavidades de las placas y una masilla elástica en los encuentros. Atornillada a cada lado de una estructura metálica de acero galvanizado formada por canales de 75 mm y montantes de 51x74x49 mm con una modulación de 600 mm entre ejes, dando un ancho total de tabique de 152 mm. Incluida parte proporcional del resto de materiales: tornillería, pasta de juntas, masilla para encuentros perimetrales, fijaciones, junta estanca, etc. Montaje según norma de instalación UNE 102043 y exigencias del CTE. | K44: Tabique formado por tres placas FUEGO de 13 mm de espesor compuestas por yeso natural, fibra de vidrio y aditivos inorgánicos que le aportan alta dureza y resistencia mecánica. Incorpora perlita y un aumento en la densidad que la hace idónea para un excelente comportamiento y resistencia frente al fuego. Reacción al fuego: EUROCLASE A1. Sistema de galces desiguales: las placas encajan entre ellas dejando una entrecalle de 3 mm por donde se inserta la pasta de juntas. Este sistema no utiliza cinta de papel. La pasta de juntas se aplica en las cavidades de las placas y una masilla elástica en los encuentros. Atornillada a cada lado de una estructura metálica de acero galvanizado formada por canales de 75 mm y montantes de 51x74x49 mm con una modulación de 600 mm entre ejes, dando un ancho total de tabique de 152 mm. Incluida parte proporcional del resto de materiales: tornillería, pasta de juntas, masilla para encuentros perimetrales, fijaciones, junta estanca, etc. Montaje según norma de instalación UNE 102043 y exigencias del CTE. | L44: Tabique formado por tres placas RESIST de 13 mm de espesor compuestas por yeso natural, fibra de vidrio y aditivos inorgánicos que le aportan alta dureza y resistencia mecánica. Con mayor cantidad de fibra de vidrio y dosificación modificada, aumenta su densidad, mejorando notablemente la resistencia mecánica. Idónea para lugares con altas exigencias en cuanto a deterioro y desgaste. Reacción al fuego: EUROCLASE A1. Sistema de galces desiguales: las placas encajan entre ellas dejando una entrecalle de 3 mm por donde se inserta la pasta de juntas. Este sistema no utiliza cinta de papel. La pasta de juntas se aplica en las cavidades de las placas y una masilla elástica en los encuentros. Atornillada a cada lado de una estructura metálica de acero galvanizado formada por canales de 75 mm y montantes de 51x74x49 mm con una modulación de 600 mm entre ejes, dando un ancho total de tabique de 152 mm. Incluida parte proporcional del resto de materiales: tornillería, pasta de juntas, masilla para encuentros perimetrales, fijaciones, junta estanca, etc. Montaje según norma de instalación UNE 102043 y exigencias del CTE. | M44: Tabique formado por tres placas HIDROPLUS de 13 mm de espesor compuestas por yeso natural, fibra de vidrio y aditivos inorgánicos que le aportan alta dureza y resistencia mecánica. Incorpora tratamiento hidrófugo y un aumento en su densidad, características claves para una elevada resistencia a la humedad (absorción de agua menor al 3%) y una gran resistencia mecánica. Idónea para zonas de intemperie. Reacción al fuego: EUROCLASE A1. Sistema de galces desiguales: las placas encajan entre ellas dejando una entrecalle de 3 mm por donde se inserta la pasta de juntas. Este sistema no utiliza cinta de papel. La pasta de juntas se aplica en las cavidades de las placas y una masilla elástica en los encuentros. Atornillada a cada lado de una estructura metálica de acero galvanizado formada por canales de 75 mm y montantes de 51x74x49 mm con una modulación de 600 mm entre ejes, dando un ancho total de tabique de 152 mm. Incluida parte proporcional del resto de materiales: tornillería, pasta de juntas, masilla para encuentros perimetrales, fijaciones, junta estanca, etc. Montaje según norma de instalación UNE 102043 y exigencias del CTE. | N44: Tabique formado por tres placas SUPREM de 13 mm de espesor compuestas por yeso natural, fibra de vidrio y aditivos inorgánicos que le aportan alta dureza y resistencia mecánica. Incorpora tratamiento hidrófugo, perlita y un aumento en la densidad para conseguir soluciones constructivas que cumplan, altos requisitos frente al fuego y una capacidad reducida de absorción de agua. Reacción al fuego: EUROCLASE A1. Sistema de galces desiguales: las placas encajan entre ellas dejando una entrecalle de 3 mm por donde se inserta la pasta de juntas. Este sistema no utiliza cinta de papel. La pasta de juntas se aplica en las cavidades de las placas y una masilla elástica en los encuentros. Atornillada a cada lado de una estructura metálica de acero galvanizado formada por canales de 75 mm y montantes de 51x74x49 mm con una modulación de 600 mm entre ejes, dando un ancho total de tabique de 152 mm. Incluida parte proporcional del resto de materiales: tornillería, pasta de juntas, masilla para encuentros perimetrales, fijaciones, junta estanca, etc. Montaje según norma de instalación UNE 102043 y exigencias del CTE.
C45: 67490 | D45: 1.3.5 | E45: TABIQUE ATT® 164/600 (74) [15+15+15+74+15+15+15] | F45: 600 | G45: 74 | H45: =3*15 -> 45 | I45: Tabique formado por tres placas BASIC de 15 mm de espesor compuestas por yeso natural, fibra de vidrio y aditivos inorgánicos que le aportan alta dureza y resistencia mecánica. Reacción al fuego: EUROCLASE A1. Sistema de galces desiguales: las placas encajan entre ellas dejando una entrecalle de 3 mm por donde se inserta la pasta de juntas. Este sistema no utiliza cinta de papel. La pasta de juntas se aplica en las cavidades de las placas y una masilla elástica en los encuentros. Atornillada a cada lado de una estructura metálica de acero galvanizado formada por canales de 75 mm y montantes de 51x74x49 mm con una modulación de 600 mm entre ejes, dando un ancho total de tabique de 164 mm. Incluida parte proporcional del resto de materiales: tornillería, pasta de juntas, masilla para encuentros perimetrales, fijaciones, junta estanca, etc. Montaje según norma de instalación UNE 102043 y exigencias del CTE. | J45: Tabique formado por tres placas HIDRO de 15 mm de espesor compuestas por yeso natural, fibra de vidrio y aditivos inorgánicos que le aportan alta dureza y resistencia mecánica. Incorpora tratamiento hidrófugo, disminuyendo así su capacidad de absorción de agua (menor al 5%). Idónea para proteger las estancias de los efectos adversos de la humedad. Reacción al fuego: EUROCLASE A1. Sistema de galces desiguales: las placas encajan entre ellas dejando una entrecalle de 3 mm por donde se inserta la pasta de juntas. Este sistema no utiliza cinta de papel. La pasta de juntas se aplica en las cavidades de las placas y una masilla elástica en los encuentros. Atornillada a cada lado de una estructura metálica de acero galvanizado formada por canales de 75 mm y montantes de 51x74x49 mm con una modulación de 600 mm entre ejes, dando un ancho total de tabique de 164 mm. Incluida parte proporcional del resto de materiales: tornillería, pasta de juntas, masilla para encuentros perimetrales, fijaciones, junta estanca, etc. Montaje según norma de instalación UNE 102043 y exigencias del CTE. | K45: Tabique formado por tres placas FUEGO de 15 mm de espesor compuestas por yeso natural, fibra de vidrio y aditivos inorgánicos que le aportan alta dureza y resistencia mecánica. Incorpora perlita y un aumento en la densidad que la hace idónea para un excelente comportamiento y resistencia frente al fuego. Reacción al fuego: EUROCLASE A1. Sistema de galces desiguales: las placas encajan entre ellas dejando una entrecalle de 3 mm por donde se inserta la pasta de juntas. Este sistema no utiliza cinta de papel. La pasta de juntas se aplica en las cavidades de las placas y una masilla elástica en los encuentros. Atornillada a cada lado de una estructura metálica de acero galvanizado formada por canales de 75 mm y montantes de 51x74x49 mm con una modulación de 600 mm entre ejes, dando un ancho total de tabique de 164 mm. Incluida parte proporcional del resto de materiales: tornillería, pasta de juntas, masilla para encuentros perimetrales, fijaciones, junta estanca, etc. Montaje según norma de instalación UNE 102043 y exigencias del CTE. | L45: Tabique formado por tres placas RESIST de 15 mm de espesor compuestas por yeso natural, fibra de vidrio y aditivos inorgánicos que le aportan alta dureza y resistencia mecánica. Con mayor cantidad de fibra de vidrio y dosificación modificada, aumenta su densidad, mejorando notablemente la resistencia mecánica. Idónea para lugares con altas exigencias en cuanto a deterioro y desgaste. Reacción al fuego: EUROCLASE A1. Sistema de galces desiguales: las placas encajan entre ellas dejando una entrecalle de 3 mm por donde se inserta la pasta de juntas. Este sistema no utiliza cinta de papel. La pasta de juntas se aplica en las cavidades de las placas y una masilla elástica en los encuentros. Atornillada a cada lado de una estructura metálica de acero galvanizado formada por canales de 75 mm y montantes de 51x74x49 mm con una modulación de 600 mm entre ejes, dando un ancho total de tabique de 164 mm. Incluida parte proporcional del resto de materiales: tornillería, pasta de juntas, masilla para encuentros perimetrales, fijaciones, junta estanca, etc. Montaje según norma de instalación UNE 102043 y exigencias del CTE. | M45: Tabique formado por tres placas HIDROPLUS de 15 mm de espesor compuestas por yeso natural, fibra de vidrio y aditivos inorgánicos que le aportan alta dureza y resistencia mecánica. Incorpora tratamiento hidrófugo y un aumento en su densidad, características claves para una elevada resistencia a la humedad (absorción de agua menor al 3%) y una gran resistencia mecánica. Idónea para zonas de intemperie. Reacción al fuego: EUROCLASE A1. Sistema de galces desiguales: las placas encajan entre ellas dejando una entrecalle de 3 mm por donde se inserta la pasta de juntas. Este sistema no utiliza cinta de papel. La pasta de juntas se aplica en las cavidades de las placas y una masilla elástica en los encuentros. Atornillada a cada lado de una estructura metálica de acero galvanizado formada por canales de 75 mm y montantes de 51x74x49 mm con una modulación de 600 mm entre ejes, dando un ancho total de tabique de 164 mm. Incluida parte proporcional del resto de materiales: tornillería, pasta de juntas, masilla para encuentros perimetrales, fijaciones, junta estanca, etc. Montaje según norma de instalación UNE 102043 y exigencias del CTE. | N45: Tabique formado por tres placas SUPREM de 15 mm de espesor compuestas por yeso natural, fibra de vidrio y aditivos inorgánicos que le aportan alta dureza y resistencia mecánica. Incorpora tratamiento hidrófugo, perlita y un aumento en la densidad para conseguir soluciones constructivas que cumplan, altos requisitos frente al fuego y una capacidad reducida de absorción de agua. Reacción al fuego: EUROCLASE A1. Sistema de galces desiguales: las placas encajan entre ellas dejando una entrecalle de 3 mm por donde se inserta la pasta de juntas. Este sistema no utiliza cinta de papel. La pasta de juntas se aplica en las cavidades de las placas y una masilla elástica en los encuentros. Atornillada a cada lado de una estructura metálica de acero galvanizado formada por canales de 75 mm y montantes de 51x74x49 mm con una modulación de 600 mm entre ejes, dando un ancho total de tabique de 164 mm. Incluida parte proporcional del resto de materiales: tornillería, pasta de juntas, masilla para encuentros perimetrales, fijaciones, junta estanca, etc. Montaje según norma de instalación UNE 102043 y exigencias del CTE.
